Workbook

Sheet Summary #1
B1: Summary of Revenues and Expenses-Poole University
C2: Current Year | D2: Current Year
B3: Previous Year | C3: Budget | D3: Actual | E3: Year 1 | F3: Year 2 | G3: Year 3 | H3: Year 4 | I3: Year 5
A4: Revenues-Generated
A5: Ticket Sales | B5: ='Ticket Sales'!$B$36 -> 11626850 | C5: ='Ticket Sales'!$C$36 -> 13358150 | D5: =SUM('Ticket Sales'!D36) -> 11814600 | E5: =SUM('Ticket Sales'!E36) -> 13619000 | F5: =SUM('Ticket Sales'!G36) -> 13905600 | G5: =SUM('Ticket Sales'!I36) -> 14532400 | H5: =SUM('Ticket Sales'!K36) -> 15248600 | I5: =SUM('Ticket Sales'!M36) -> 15925700
A6: Guarantees | B6: =SUM('Guarantees-Rev'!B13) -> 218000 | C6: =SUM('Guarantees-Rev'!C13) -> 420500 | D6: =SUM('Guarantees-Rev'!D13) -> 347000 | E6: =SUM('Guarantees-Rev'!E13) -> 459300 | F6: =SUM('Guarantees-Rev'!G13) -> 482300 | G6: =SUM('Guarantees-Rev'!I13) -> 506500 | H6: =SUM('Guarantees-Rev'!K13) -> 531900 | I6: =SUM('Guarantees-Rev'!M13) -> 574400
A7: Contributions | B7: =SUM(Contributions!B38) -> 563200 | C7: =SUM(Contributions!C38) -> 579500 | D7: =SUM(Contributions!D38) -> 556800 | E7: =SUM(Contributions!E38) -> 575500 | F7: =SUM(Contributions!G38) -> 608900 | G7: =SUM(Contributions!I38) -> 627300 | H7: =SUM(Contributions!K38) -> 658900 | I7: =SUM(Contributions!M38) -> 693200
A8: 3rd Party Compensation | B8: =SUM('3rd Party Comp'!B35) -> 39000 | C8: =SUM('3rd Party Comp'!C35) -> 38000 | D8: =SUM('3rd Party Comp'!D35) -> 100000 | E8: =SUM('3rd Party Comp'!E35) -> 39000 | F8: =SUM('3rd Party Comp'!G35) -> 39000 | G8: =SUM('3rd Party Comp'!I35) -> 39000 | H8: =SUM('3rd Party Comp'!K35) -> 39000 | I8: =SUM('3rd Party Comp'!M35) -> 39000
A9: NCAA/Conference Distributions | B9: =SUM('NCAA-Conference'!B14) -> 306000 | C9: =SUM('NCAA-Conference'!C14) -> 317500 | D9: =SUM('NCAA-Conference'!D14) -> 293000 | E9: =SUM('NCAA-Conference'!E14) -> 332800 | F9: =SUM('NCAA-Conference'!G14) -> 348800 | G9: =SUM('NCAA-Conference'!I14) -> 365600 | H9: =SUM('NCAA-Conference'!K14) -> 400600 | I9: =SUM('NCAA-Conference'!M14) -> 439000
A10: Broadcast Rights | B10: =SUM('Broadcast Rights'!B10) -> 29500 | C10: =SUM('Broadcast Rights'!C10) -> 35000 | D10: =SUM('Broadcast Rights'!D10) -> 28000 | E10: =SUM('Broadcast Rights'!E10) -> 37000 | F10: =SUM('Broadcast Rights'!G10) -> 39100 | G10: =SUM('Broadcast Rights'!I10) -> 41300 | H10: =SUM('Broadcast Rights'!K10) -> 43700 | I10: =SUM('Broadcast Rights'!M10) -> 46100
A11: Event Sales | B11: =SUM('Event Sales'!B11) -> 8350 | C11: =SUM('Event Sales'!C11) -> 9000 | D11: =SUM('Event Sales'!D11) -> 6500 | E11: =SUM('Event Sales'!E11) -> 9000 | F11: =SUM('Event Sales'!G11) -> 9000 | G11: =SUM('Event Sales'!I11) -> 9000 | H11: =SUM('Event Sales'!K11) -> 9000 | I11: =SUM('Event Sales'!M11) -> 9000
A12: Royalties | B12: =SUM(Royalties!B12) -> 377400 | C12: =SUM(Royalties!C12) -> 393000 | D12: =SUM(Royalties!D12) -> 356000 | E12: =SUM(Royalties!E12) -> 419700 | F12: =SUM(Royalties!G12) -> 455300 | G12: =SUM(Royalties!I12) -> 494200 | H12: =SUM(Royalties!K12) -> 536700 | I12: =SUM(Royalties!M12) -> 583000
A13: Sports Camp Revenues | B13: =SUM('Sports Camps'!B40) -> 239450 | C13: =SUM('Sports Camps'!C40) -> 269700 | D13: =SUM('Sports Camps'!D40) -> 238000 | E13: =SUM('Sports Camps'!E40) -> 283100 | F13: =SUM('Sports Camps'!G40) -> 297400 | G13: =SUM('Sports Camps'!I40) -> 312300 | H13: =SUM('Sports Camps'!K40) -> 328000 | I13: =SUM('Sports Camps'!M40) -> 360600
A14: Endowment and Investment Income | B14: =SUM('Endowment&Investment'!B10) -> 0 | C14: =SUM('Endowment&Investment'!C10) -> 0 | D14: =SUM('Endowment&Investment'!D10) -> 0 | E14: =SUM('Endowment&Investment'!E10) -> 0 | F14: =SUM('Endowment&Investment'!G10) -> 0 | G14: =SUM('Endowment&Investment'!I10) -> 0 | H14: =SUM('Endowment&Investment'!K10) -> 0 | I14: =SUM('Endowment&Investment'!M10) -> 0
A15: Other* | B15: =SUM('Other Revenue'!B10) -> 0 | C15: =SUM('Other Revenue'!C10) -> 0 | D15: =SUM('Other Revenue'!D10) -> 0 | E15: =SUM('Other Revenue'!E10) -> 0 | F15: =SUM('Other Revenue'!G10) -> 0 | G15: =SUM('Other Revenue'!I10) -> 0 | H15: =SUM('Other Revenue'!K10) -> 0 | I15: =SUM('Other Revenue'!M10) -> 0
A16: Subtotal-Generated Revenues | B16: =SUM(B5:B15) -> 13407750 | C16: 15420350 | D16: =SUM(D5:D15) -> 13739900 | E16: 15774400 | F16: 16185400 | G16: 16927600 | H16: 17796400 | I16: 18670000
A18: Revenues-Allocated
A19: Student Athletic Fees | B19: =SUM('Student Fees'!B8) -> 3010000 | C19: =SUM('Student Fees'!C8) -> 3030500 | D19: =SUM('Student Fees'!D8) -> 2900000 | E19: =SUM('Student Fees'!E8) -> 3227500 | F19: =SUM('Student Fees'!G8) -> 3437300 | G19: =SUM('Student Fees'!I8) -> 3660700 | H19: =SUM('Student Fees'!K8) -> 3862000 | I19: =SUM('Student Fees'!M8) -> 4132300
A20: State/Government Support | B20: =SUM('State-Government Support'!B10) -> 0 | C20: =SUM('State-Government Support'!C10) -> 0 | D20: =SUM('State-Government Support'!D10) -> 0 | E20: =SUM('State-Government Support'!E10) -> 0 | F20: =SUM('State-Government Support'!G10) -> 0 | G20: =SUM('State-Government Support'!I10) -> 0 | H20: =SUM('State-Government Support'!K10) -> 0 | I20: =SUM('State-Government Support'!M10) -> 0
A21: General Fund (Institutional) Support | B21: =SUM('General Fund'!$B$12) -> 2050000 | C21: =SUM('General Fund'!$C$12) -> 2161000 | D21: =SUM('General Fund'!D12) -> 1945000 | E21: =SUM('General Fund'!$E$12) -> 2269100 | F21: =SUM('General Fund'!$G$12) -> 2382500 | G21: =SUM('General Fund'!$I$12) -> 2501700 | H21: =SUM('General Fund'!$K$12) -> 2603600 | I21: =SUM('General Fund'!M12) -> 2709700
A22: Indirect Institutional Support | B22: =SUM('Indirect Inst. Support'!B15) -> 105100 | C22: =SUM('Indirect Inst. Support'!C15) -> 105400 | D22: =SUM('Indirect Inst. Support'!D15) -> 89500 | E22: =SUM('Indirect Inst. Support'!E15) -> 106400 | F22: =SUM('Indirect Inst. Support'!G15) -> 107400 | G22: =SUM('Indirect Inst. Support'!I15) -> 111700 | H22: =SUM('Indirect Inst. Support'!K15) -> 116200 | I22: =SUM('Indirect Inst. Support'!M15) -> 120900
A23: Subtotal Allocated Revenues | B23: =SUM(B19:B22) -> 5165100 | C23: 5296900 | D23: =SUM(D19:D22) -> 4934500 | E23: 5603000 | F23: 5927200 | G23: 6274100 | H23: 6581800 | I23: 6962900
A24: Total Revenues | B24: =B16+B23 -> 18572850 | C24: 20717250 | D24: =D16+D23 -> 18674400 | E24: 21377400 | F24: 22112600 | G24: 23201700 | H24: 24378200 | I24: 25632900
A26: Expenses
A27: Student
A28: Athletic Student Aid | B28: =SUM('Athletic Aid'!B47) -> 2261000 | C28: =SUM('Athletic Aid'!C47) -> 2928000 | D28: =SUM('Athletic Aid'!D47) -> 2655000 | E28: =SUM('Athletic Aid'!E47) -> 2998100 | F28: =SUM('Athletic Aid'!G47) -> 3072800 | G28: =SUM('Athletic Aid'!I47) -> 3149300 | H28: =SUM('Athletic Aid'!K47) -> 3228100 | I28: =SUM('Athletic Aid'!M47) -> 3309000
A30: Salaries & Benefits
A31: Coaching Salaries, Benefits, Bonuses | B31: =SUM('Coaching Salaries'!B201) -> 6059460 | C31: =SUM('Coaching Salaries'!C201) -> 6382500 | D31: =SUM('Coaching Salaries'!D201) -> 5271860 | E31: =SUM('Coaching Salaries'!E201) -> 6697000 | F31: =SUM('Coaching Salaries'!G201) -> 7026800 | G31: =SUM('Coaching Salaries'!I201) -> 7373100 | H31: =SUM('Coaching Salaries'!K201) -> 7736400 | I31: =SUM('Coaching Salaries'!M201) -> 8118100
A32: Coaching Compensation & Benefits Paid by Third Party | B32: =SUM('Coaching Comp.'!B36) -> 37000 | C32: =SUM('Coaching Comp.'!C36) -> 175000 | D32: =SUM('Coaching Comp.'!D36) -> 25000 | E32: =SUM('Coaching Comp.'!E36) -> 136300 | F32: =SUM('Coaching Comp.'!G36) -> 141400 | G32: =SUM('Coaching Comp.'!I36) -> 146700 | H32: =SUM('Coaching Comp.'!K36) -> 152200 | I32: =SUM('Coaching Comp.'!M36) -> 158000
A33: Support Staff/Administrative Salaries, Benefits, Bonuses | B33: =SUM('Support Salaries'!B72) -> 3811000 | C33: =SUM('Support Salaries'!C72) -> 4181000 | D33: =SUM('Support Salaries'!D72) -> 4002000 | E33: =SUM('Support Salaries'!E72) -> 4297600 | F33: =SUM('Support Salaries'!G72) -> 4507300 | G33: =SUM('Support Salaries'!I72) -> 4727700 | H33: =SUM('Support Salaries'!K72) -> 4959200 | I33: =SUM('Support Salaries'!M72) -> 5202400
A34: Support Staff/Administrative Compenstation & Benefits Paid by Third Party | B34: =SUM('Support Comp.'!B20) -> 0 | C34: =SUM('Support Comp.'!C20) -> 0 | D34: =SUM('Support Comp.'!D20) -> 0 | E34: =SUM('Support Comp.'!E20) -> 0 | F34: =SUM('Support Comp.'!G20) -> 0 | G34: =SUM('Support Comp.'!I20) -> 0 | H34: =SUM('Support Comp.'!K20) -> 0 | I34: =SUM('Support Comp.'!M20) -> 0
A35: Severance Payments | B35: =SUM(Severance!B10) -> 0 | C35: =SUM(Severance!C10) -> 100000 | D35: =SUM(Severance!D10) -> 100000 | E35: =SUM(Severance!E10) -> 100000 | F35: =SUM(Severance!G10) -> 100000 | G35: =SUM(Severance!I10) -> 100000 | H35: =SUM(Severance!K10) -> 100000 | I35: =SUM(Severance!M10) -> 100000
A36: Subtotal Salaries & Benefits | B36: =SUM(B31:B35) -> 9907460 | C36: 10838500 | D36: =SUM(D31:D35) -> 9398860 | E36: 11230900 | F36: 11775500 | G36: 12347500 | H36: 12947800 | I36: 13578500
A38: Participation and Game Expenses
A39: Recruiting | B39: =SUM(Recruiting!B37) -> 467880 | C39: =SUM(Recruiting!C37) -> 513885 | D39: =SUM(Recruiting!D37) -> 482100 | E39: =SUM(Recruiting!E37) -> 546100 | F39: =SUM(Recruiting!G37) -> 580500 | G39: =SUM(Recruiting!I37) -> 617300 | H39: =SUM(Recruiting!K37) -> 656800 | I39: =SUM(Recruiting!M37) -> 699000
A40: Team Travel | B40: =SUM('Team Travel'!B39) -> 2393700 | C40: =SUM('Team Travel'!C39) -> 2550000 | D40: =SUM('Team Travel'!D39) -> 2288300 | E40: =SUM('Team Travel'!E39) -> 2829000 | F40: =SUM('Team Travel'!G39) -> 2964500 | G40: =SUM('Team Travel'!I39) -> 3106800 | H40: =SUM('Team Travel'!K39) -> 3256100 | I40: =SUM('Team Travel'!M39) -> 3412900
A41: Equipment, Uniforms and Supplies | B41: =SUM(Equipment!B39) -> 540000 | C41: =SUM(Equipment!C39) -> 585500 | D41: =SUM(Equipment!D39) -> 502000 | E41: =SUM(Equipment!E39) -> 654900 | F41: =SUM(Equipment!G39) -> 674600 | G41: =SUM(Equipment!I39) -> 694900 | H41: =SUM(Equipment!K39) -> 715700 | I41: =SUM(Equipment!M39) -> 737200
A42: Game Expenses | B42: =SUM('Game Expenses'!B10) -> 665000 | C42: =SUM('Game Expenses'!C10) -> 737850 | D42: =SUM('Game Expenses'!D10) -> 661300 | E42: =SUM('Game Expenses'!E10) -> 736400 | F42: =SUM('Game Expenses'!G10) -> 783300 | G42: =SUM('Game Expenses'!I10) -> 834800 | H42: =SUM('Game Expenses'!K10) -> 891700 | I42: =SUM('Game Expenses'!M10) -> 954800
A43: Medical Expenses & Insurance | B43: =SUM('Medical Expenses'!B9) -> 480000 | C43: =SUM('Medical Expenses'!C9) -> 552000 | D43: =SUM('Medical Expenses'!D9) -> 450000 | E43: =SUM('Medical Expenses'!E9) -> 599700 | F43: =SUM('Medical Expenses'!G9) -> 651800 | G43: =SUM('Medical Expenses'!I9) -> 708700 | H43: =SUM('Medical Expenses'!K9) -> 770900 | I43: =SUM('Medical Expenses'!M9) -> 838900
A44: Guarantees | B44: =SUM('Guarantees-Exp'!B14) -> 320000 | C44: =SUM('Guarantees-Exp'!C14) -> 360000 | D44: =SUM('Guarantees-Exp'!D14) -> 340000 | E44: =SUM('Guarantees-Exp'!E14) -> 378000 | F44: =SUM('Guarantees-Exp'!G14) -> 396900 | G44: =SUM('Guarantees-Exp'!I14) -> 416800 | H44: =SUM('Guarantees-Exp'!K14) -> 425200 | I44: =SUM('Guarantees-Exp'!M14) -> 433800
A45: Subtotal Participation & Game Expenses | B45: =SUM(B39:B44) -> 4866580 | C45: 5299235 | D45: =SUM(D39:D44) -> 4723700 | E45: 5744100 | F45: 6051600 | G45: 6379300 | H45: 6716400 | I45: 7076600
A47: Facilities Maintenance & Adminstrative Support
A48: Direct Facilities, Maintenance and Rental | B48: =SUM('Direct Facilities'!B13) -> 812800 | C48: =SUM('Direct Facilities'!C13) -> 895000 | D48: =SUM('Direct Facilities'!$D$13) -> 721000 | E48: =SUM('Direct Facilities'!E13) -> 1069800 | F48: =SUM('Direct Facilities'!G13) -> 1102000 | G48: =SUM('Direct Facilities'!I13) -> 1135100 | H48: =SUM('Direct Facilities'!K13) -> 1169100 | I48: =SUM('Direct Facilities'!M13) -> 1204100
A49: Indirect Facilities and Administrative Support | B49: =SUM('Indirect Facilities'!B15) -> 100000 | C49: =SUM('Indirect Facilities'!C15) -> 100000 | D49: =SUM('Indirect Facilities'!D15) -> 90000 | E49: =SUM('Indirect Facilities'!E15) -> 110000 | F49: =SUM('Indirect Facilities'!G15) -> 165000 | G49: =SUM('Indirect Facilities'!I15) -> 247500 | H49: =SUM('Indirect Facilities'!K15) -> 371300 | I49: =SUM('Indirect Facilities'!M15) -> 519800
A50: Subtotal Facilities, Maintenance & Adminstrative Support | B50: =SUM(B48:B49) -> 912800 | C50: 995000 | D50: =SUM(D48:D49) -> 811000 | E50: 1179800 | F50: 1267000 | G50: 1382600 | H50: 1540400 | I50: 1723900
A52: Miscellaneous
A53: Fundraising, Marketing and Promotion | B53: =SUM(Fundraising!B12) -> 158500 | C53: =SUM(Fundraising!C12) -> 205000 | D53: =SUM(Fundraising!D12) -> 153000 | E53: =SUM(Fundraising!E12) -> 217800 | F53: =SUM(Fundraising!G12) -> 231500 | G53: =SUM(Fundraising!I12) -> 246200 | H53: =SUM(Fundraising!K12) -> 261800 | I53: =SUM(Fundraising!M12) -> 278500
A54: Sports Camp Expenses | B54: =SUM('Sports Camp Exp.'!B42) -> 196200 | C54: =SUM('Sports Camp Exp.'!C42) -> 249700 | D54: =SUM('Sports Camp Exp.'!D42) -> 191000 | E54: =SUM('Sports Camp Exp.'!E42) -> 262300 | F54: =SUM('Sports Camp Exp.'!G42) -> 275400 | G54: =SUM('Sports Camp Exp.'!I42) -> 289100 | H54: =SUM('Sports Camp Exp.'!K42) -> 303600 | I54: =SUM('Sports Camp Exp.'!M42) -> 318900
A55: Spirt Groups | B55: =SUM('Spirit Groups'!B12) -> 18300 | C55: =SUM('Spirit Groups'!C12) -> 22000 | D55: =SUM('Spirit Groups'!D12) -> 16300 | E55: =SUM('Spirit Groups'!E12) -> 23200 | F55: =SUM('Spirit Groups'!G12) -> 24400 | G55: =SUM('Spirit Groups'!I12) -> 25700 | H55: =SUM('Spirit Groups'!K12) -> 27000 | I55: =SUM('Spirit Groups'!M12) -> 28400
A56: Memberships & Dues | B56: =SUM('Memberships & Dues'!B40) -> 120650 | C56: =SUM('Memberships & Dues'!C40) -> 158050 | D56: =SUM('Memberships & Dues'!D40) -> 149100 | E56: =SUM('Memberships & Dues'!E40) -> 164500 | F56: =SUM('Memberships & Dues'!G40) -> 171300 | G56: =SUM('Memberships & Dues'!I40) -> 178400 | H56: =SUM('Memberships & Dues'!K40) -> 185900 | I56: =SUM('Memberships & Dues'!M40) -> 193800
A57: Other Operating Expenses* | B57: =SUM('Other Expenses'!B11) -> 0 | C57: =SUM('Other Expenses'!C11) -> 0 | D57: =SUM('Other Expenses'!D11) -> 0 | E57: =SUM('Other Expenses'!E11) -> 0 | F57: =SUM('Other Expenses'!G11) -> 0 | G57: =SUM('Other Expenses'!I11) -> 0 | H57: =SUM('Other Expenses'!K11) -> 0 | I57: =SUM('Other Expenses'!M11) -> 0
A58: Subtotal Miscellaneous | B58: =SUM(B53:B57) -> 493650 | C58: 634750 | D58: =SUM(D53:D57) -> 509400 | E58: 667800 | F58: 702600 | G58: 739400 | H58: 778300 | I58: 819600
A59: Total-Expenses | B59: =B28+B36+B45+B50+B58 -> 18441490 | C59: 20695485 | D59: =D28+D36+D45+D50+D58 -> 18097960 | E59: 21820700 | F59: 22869500 | G59: 23998100 | H59: 25211000 | I59: 26507600
A61: *Must not be more than 5% of total revenues/expenses
A63: Total Revenues - Total Expenses | B63: =B24-B59 -> 131360 | C63: 21765 | D63: =D24-D59 -> 576440 | E63: -443300 | F63: -756900 | G63: -796400 | H63: -832800 | I63: -874700

Sheet Summary #2
B1: Summary of Cash Only Line Items
C2: Current Year | D2: Current Year
B3: Previous Year | C3: Budget | D3: Actual | E3: Year 1 | F3: Year 2 | G3: Year 3 | H3: Year 4 | I3: Year 5
A5: Revenues
A6: Ticket Sales | B6: =SUM('Ticket Sales'!B36) -> 11626850 | C6: =SUM('Ticket Sales'!C36) -> 13358150 | D6: =SUM('Ticket Sales'!D36) -> 11814600 | E6: =SUM('Ticket Sales'!E36) -> 13619000 | F6: =SUM('Ticket Sales'!G36) -> 13905600 | G6: =SUM('Ticket Sales'!I36) -> 14532400 | H6: =SUM('Ticket Sales'!K36) -> 15248600 | I6: =SUM('Ticket Sales'!M36) -> 15925700
A7: Guarantees | B7: =SUM('Guarantees-Rev'!B13) -> 218000 | C7: =SUM('Guarantees-Rev'!C13) -> 420500 | D7: =SUM('Guarantees-Rev'!D13) -> 347000 | E7: =SUM('Guarantees-Rev'!E13) -> 459300 | F7: =SUM('Guarantees-Rev'!G13) -> 482300 | G7: =SUM('Guarantees-Rev'!I13) -> 506500 | H7: =SUM('Guarantees-Rev'!K13) -> 531900 | I7: =SUM('Guarantees-Rev'!M13) -> 574400
A8: Contributions | B8: =SUM(Contributions!B40) -> 560000 | C8: =SUM(Contributions!C40) -> 576000 | D8: =SUM(Contributions!D40) -> 554000 | E8: =SUM(Contributions!E40) -> 571800 | F8: =SUM(Contributions!G40) -> 605200 | G8: =SUM(Contributions!I40) -> 623600 | H8: =SUM(Contributions!K40) -> 655200 | I8: =SUM(Contributions!M40) -> 689500
A9: NCAA Conference Distributions | B9: =SUM('NCAA-Conference'!B14) -> 306000 | C9: =SUM('NCAA-Conference'!C14) -> 317500 | D9: =SUM('NCAA-Conference'!D14) -> 293000 | E9: =SUM('NCAA-Conference'!E14) -> 332800 | F9: =SUM('NCAA-Conference'!G14) -> 348800 | G9: =SUM('NCAA-Conference'!I14) -> 365600 | H9: =SUM('NCAA-Conference'!K14) -> 400600 | I9: =SUM('NCAA-Conference'!M14) -> 439000
A10: Broadcast Rights | B10: =SUM('Broadcast Rights'!B10) -> 29500 | C10: =SUM('Broadcast Rights'!C10) -> 35000 | D10: =SUM('Broadcast Rights'!D10) -> 28000 | E10: =SUM('Broadcast Rights'!E10) -> 37000 | F10: =SUM('Broadcast Rights'!G10) -> 39100 | G10: =SUM('Broadcast Rights'!I10) -> 41300 | H10: =SUM('Broadcast Rights'!K10) -> 43700 | I10: =SUM('Broadcast Rights'!M10) -> 46100
A11: Event Sales | B11: =SUM('Event Sales'!B11) -> 8350 | C11: =SUM('Event Sales'!C11) -> 9000 | D11: =SUM('Event Sales'!D11) -> 6500 | E11: =SUM('Event Sales'!E11) -> 9000 | F11: =SUM('Event Sales'!G11) -> 9000 | G11: =SUM('Event Sales'!I11) -> 9000 | H11: =SUM('Event Sales'!K11) -> 9000 | I11: =SUM('Event Sales'!M11) -> 9000
A12: Royalties | B12: =SUM(Royalties!B14) -> 295400 | C12: =SUM(Royalties!C14) -> 302000 | D12: =SUM(Royalties!D14) -> 276000 | E12: =SUM(Royalties!E14) -> 324100 | F12: =SUM(Royalties!G14) -> 354900 | G12: =SUM(Royalties!I14) -> 388800 | H12: =SUM(Royalties!K14) -> 426000 | I12: =SUM(Royalties!M14) -> 466800
A13: Sports Camps | B13: =SUM('Sports Camps'!B40) -> 239450 | C13: =SUM('Sports Camps'!C40) -> 269700 | D13: =SUM('Sports Camps'!D40) -> 238000 | E13: =SUM('Sports Camps'!E40) -> 283100 | F13: =SUM('Sports Camps'!G40) -> 297400 | G13: =SUM('Sports Camps'!I40) -> 312300 | H13: =SUM('Sports Camps'!K40) -> 328000 | I13: =SUM('Sports Camps'!M40) -> 360600
A14: Endowment & Investments | B14: =SUM('Endowment&Investment'!B10) -> 0 | C14: =SUM('Endowment&Investment'!C10) -> 0 | D14: =SUM('Endowment&Investment'!D10) -> 0 | E14: =SUM('Endowment&Investment'!E10) -> 0 | F14: =SUM('Endowment&Investment'!G10) -> 0 | G14: =SUM('Endowment&Investment'!I10) -> 0 | H14: =SUM('Endowment&Investment'!K10) -> 0 | I14: =SUM('Endowment&Investment'!M10) -> 0
A15: Other | B15: =SUM('Other Revenue'!B10) -> 0 | C15: =SUM('Other Revenue'!C10) -> 0 | D15: =SUM('Other Revenue'!D10) -> 0 | E15: =SUM('Other Revenue'!E10) -> 0 | F15: =SUM('Other Revenue'!G10) -> 0 | G15: =SUM('Other Revenue'!I10) -> 0 | H15: =SUM('Other Revenue'!K10) -> 0 | I15: =SUM('Other Revenue'!M10) -> 0
A16: Student Athletic Fees | B16: =SUM('Student Fees'!B8) -> 3010000 | C16: =SUM('Student Fees'!C8) -> 3030500 | D16: =SUM('Student Fees'!D8) -> 2900000 | E16: =SUM('Student Fees'!E8) -> 3227500 | F16: =SUM('Student Fees'!G8) -> 3437300 | G16: =SUM('Student Fees'!I8) -> 3660700 | H16: =SUM('Student Fees'!K8) -> 3862000 | I16: =SUM('Student Fees'!M8) -> 4132300
A17: State-Government Support | B17: =SUM('State-Government Support'!B10) -> 0 | C17: =SUM('State-Government Support'!C10) -> 0 | D17: =SUM('State-Government Support'!D10) -> 0 | E17: =SUM('State-Government Support'!E10) -> 0 | F17: =SUM('State-Government Support'!G10) -> 0 | G17: =SUM('State-Government Support'!I10) -> 0 | H17: =SUM('State-Government Support'!K10) -> 0 | I17: =SUM('State-Government Support'!M10) -> 0
A18: General Fund | B18: =SUM('General Fund'!B12) -> 2050000 | C18: =SUM('General Fund'!C12) -> 2161000 | D18: =SUM('General Fund'!D12) -> 1945000 | E18: =SUM('General Fund'!E12) -> 2269100 | F18: =SUM('General Fund'!G12) -> 2382500 | G18: =SUM('General Fund'!I12) -> 2501700 | H18: =SUM('General Fund'!K12) -> 2603600 | I18: =SUM('General Fund'!M12) -> 2709700
A19: Total Cash Only Revenues | B19: =SUM(B6:B18) -> 18343550 | C19: 20479350 | D19: 18402100 | E19: 21132700 | F19: 21862100 | G19: 22941900 | H19: 24108600 | I19: 25353100
A21: Expenses
A22: Athletic Student Aid | B22: =SUM('Athletic Aid'!B47) -> 2261000 | C22: =SUM('Athletic Aid'!C47) -> 2928000 | D22: =SUM('Athletic Aid'!D47) -> 2655000 | E22: =SUM('Athletic Aid'!E47) -> 2998100 | F22: =SUM('Athletic Aid'!G47) -> 3072800 | G22: =SUM('Athletic Aid'!I47) -> 3149300 | H22: =SUM('Athletic Aid'!K47) -> 3228100 | I22: =SUM('Athletic Aid'!M47) -> 3309000
A23: Coaching Salaries | B23: =SUM('Coaching Salaries'!B201) -> 6059460 | C23: =SUM('Coaching Salaries'!C201) -> 6382500 | D23: =SUM('Coaching Salaries'!D201) -> 5271860 | E23: =SUM('Coaching Salaries'!E201) -> 6697000 | F23: =SUM('Coaching Salaries'!G201) -> 7026800 | G23: =SUM('Coaching Salaries'!I201) -> 7373100 | H23: =SUM('Coaching Salaries'!K201) -> 7736400 | I23: =SUM('Coaching Salaries'!M201) -> 8118100
A24: Support Staff Salaries | B24: =SUM('Support Salaries'!B72) -> 3811000 | C24: =SUM('Support Salaries'!C72) -> 4181000 | D24: =SUM('Support Salaries'!D72) -> 4002000 | E24: =SUM('Support Salaries'!E72) -> 4297600 | F24: =SUM('Support Salaries'!G72) -> 4507300 | G24: =SUM('Support Salaries'!I72) -> 4727700 | H24: =SUM('Support Salaries'!K72) -> 4959200 | I24: =SUM('Support Salaries'!M72) -> 5202400
A25: Severance | B25: =SUM(Severance!B10) -> 0 | C25: =SUM(Severance!C10) -> 100000 | D25: =SUM(Severance!D10) -> 100000 | E25: =SUM(Severance!E10) -> 100000 | F25: =SUM(Severance!G10) -> 100000 | G25: =SUM(Severance!I10) -> 100000 | H25: =SUM(Severance!K10) -> 100000 | I25: =SUM(Severance!M10) -> 100000
A26: Recruiting | B26: =SUM(Recruiting!B40) -> 466480 | C26: =SUM(Recruiting!C40) -> 512185 | D26: =SUM(Recruiting!D40) -> 480700 | E26: =SUM(Recruiting!E40) -> 544400 | F26: =SUM(Recruiting!G40) -> 578800 | G26: =SUM(Recruiting!I40) -> 615600 | H26: =SUM(Recruiting!K40) -> 655100 | I26: =SUM(Recruiting!M40) -> 697300
A27: Team Travel | B27: =SUM('Team Travel'!B42) -> 2386400 | C27: =SUM('Team Travel'!C42) -> 2542450 | D27: =SUM('Team Travel'!D42) -> 2281400 | E27: =SUM('Team Travel'!E42) -> 2821100 | F27: =SUM('Team Travel'!G42) -> 2956200 | G27: =SUM('Team Travel'!I42) -> 3098100 | H27: =SUM('Team Travel'!K42) -> 3247000 | I27: =SUM('Team Travel'!M42) -> 3403300
A28: Equipment | B28: =SUM(Equipment!B43) -> 467000 | C28: =SUM(Equipment!C43) -> 505500 | D28: =SUM(Equipment!D43) -> 429000 | E28: =SUM(Equipment!E43) -> 572500 | F28: =SUM(Equipment!G43) -> 589800 | G28: =SUM(Equipment!I43) -> 607500 | H28: =SUM(Equipment!K43) -> 625700 | I28: =SUM(Equipment!M43) -> 644500
A29: Game Expenses | B29: =SUM('Game Expenses'!B10) -> 665000 | C29: =SUM('Game Expenses'!C10) -> 737850 | D29: =SUM('Game Expenses'!D10) -> 661300 | E29: =SUM('Game Expenses'!E10) -> 736400 | F29: =SUM('Game Expenses'!G10) -> 783300 | G29: =SUM('Game Expenses'!I10) -> 834800 | H29: =SUM('Game Expenses'!K10) -> 891700 | I29: =SUM('Game Expenses'!M10) -> 954800
A30: Medical Expenses | B30: =SUM('Medical Expenses'!B9) -> 480000 | C30: =SUM('Medical Expenses'!C9) -> 552000 | D30: =SUM('Medical Expenses'!D9) -> 450000 | E30: =SUM('Medical Expenses'!E9) -> 599700 | F30: =SUM('Medical Expenses'!G9) -> 651800 | G30: =SUM('Medical Expenses'!I9) -> 708700 | H30: =SUM('Medical Expenses'!K9) -> 770900 | I30: =SUM('Medical Expenses'!M9) -> 838900
A31: Guarantees | B31: =SUM('Guarantees-Exp'!B14) -> 320000 | C31: =SUM('Guarantees-Exp'!C14) -> 360000 | D31: =SUM('Guarantees-Exp'!D14) -> 340000 | E31: =SUM('Guarantees-Exp'!E14) -> 378000 | F31: =SUM('Guarantees-Exp'!G14) -> 396900 | G31: =SUM('Guarantees-Exp'!I14) -> 416800 | H31: =SUM('Guarantees-Exp'!K14) -> 425200 | I31: =SUM('Guarantees-Exp'!M14) -> 433800
A32: Direct Facilitites | B32: =SUM('Direct Facilities'!B13) -> 812800 | C32: =SUM('Direct Facilities'!C13) -> 895000 | D32: =SUM('Direct Facilities'!D13) -> 721000 | E32: =SUM('Direct Facilities'!E13) -> 1069800 | F32: =SUM('Direct Facilities'!G13) -> 1102000 | G32: =SUM('Direct Facilities'!I13) -> 1135100 | H32: =SUM('Direct Facilities'!K13) -> 1169100 | I32: =SUM('Direct Facilities'!M13) -> 1204100
A33: Fundraising | B33: =SUM(Fundraising!B12) -> 158500 | C33: =SUM(Fundraising!C12) -> 205000 | D33: =SUM(Fundraising!D12) -> 153000 | E33: =SUM(Fundraising!E12) -> 217800 | F33: =SUM(Fundraising!G12) -> 231500 | G33: =SUM(Fundraising!I12) -> 246200 | H33: =SUM(Fundraising!K12) -> 261800 | I33: =SUM(Fundraising!M12) -> 278500
A34: Sports Camps | B34: =SUM('Sports Camp Exp.'!B42) -> 196200 | C34: =SUM('Sports Camp Exp.'!C42) -> 249700 | D34: =SUM('Sports Camp Exp.'!D42) -> 191000 | E34: =SUM('Sports Camp Exp.'!E42) -> 262300 | F34: =SUM('Sports Camp Exp.'!G42) -> 275400 | G34: =SUM('Sports Camp Exp.'!I42) -> 289100 | H34: =SUM('Sports Camp Exp.'!K42) -> 303600 | I34: =SUM('Sports Camp Exp.'!M42) -> 318900
A35: Spirit Groups | B35: =SUM('Spirit Groups'!B12) -> 18300 | C35: =SUM('Spirit Groups'!C12) -> 22000 | D35: =SUM('Spirit Groups'!D12) -> 16300 | E35: =SUM('Spirit Groups'!E12) -> 23200 | F35: =SUM('Spirit Groups'!G12) -> 24400 | G35: =SUM('Spirit Groups'!I12) -> 25700 | H35: =SUM('Spirit Groups'!K12) -> 27000 | I35: =SUM('Spirit Groups'!M12) -> 28400
A36: Membership Dues | B36: =SUM('Memberships & Dues'!B40) -> 120650 | C36: =SUM('Memberships & Dues'!C40) -> 158050 | D36: =SUM('Memberships & Dues'!D40) -> 149100 | E36: =SUM('Memberships & Dues'!E40) -> 164500 | F36: =SUM('Memberships & Dues'!G40) -> 171300 | G36: =SUM('Memberships & Dues'!I40) -> 178400 | H36: =SUM('Memberships & Dues'!K40) -> 185900 | I36: =SUM('Memberships & Dues'!M40) -> 193800
A37: Other Expenses | B37: =SUM('Other Expenses'!B11) -> 0 | C37: =SUM('Other Expenses'!C11) -> 0 | D37: =SUM('Other Expenses'!D11) -> 0 | E37: =SUM('Other Expenses'!E11) -> 0 | F37: =SUM('Other Expenses'!G11) -> 0 | G37: =SUM('Other Expenses'!I11) -> 0 | H37: =SUM('Other Expenses'!K11) -> 0 | I37: =SUM('Other Expenses'!M11) -> 0
A38: Total Cash Only Expenses | B38: =SUM(B22:B37) -> 18222790 | C38: 20331235 | D38: 17901660 | E38: 21482400 | F38: 22468300 | G38: 23506100 | H38: 24586700 | I38: 25725800
A40: Cash Revenues-Cash Expenses | B40: =B19-B38 -> 120760 | C40: 148115 | D40: 500440 | E40: -349700 | F40: -606200 | G40: -564200 | H40: -478100 | I40: -372700

Sheet Summary #3
B1: In-Kind Gifts (Revenues and Expenses)
C2: Current Year | D2: Current Year
B3: Previous Year | C3: Budget | D3: Actual | E3: Year 1 | F3: Year 2 | G3: Year 3 | H3: Year 4 | I3: Year 5
A5: In-Kind Revenues
A6: Contributions | B6: =SUM(Contributions!B36) -> 3200 | C6: =SUM(Contributions!C36) -> 3500 | D6: =SUM(Contributions!D36) -> 2800 | E6: =SUM(Contributions!E36) -> 3700 | F6: =SUM(Contributions!G36) -> 3700 | G6: =SUM(Contributions!I36) -> 3700 | H6: =SUM(Contributions!K36) -> 3700 | I6: =SUM(Contributions!M36) -> 3700
A7: Royalties | B7: =SUM(Royalties!B10) -> 82000 | C7: =SUM(Royalties!C10) -> 91000 | D7: =SUM(Royalties!D10) -> 80000 | E7: =SUM(Royalties!E10) -> 95600 | F7: =SUM(Royalties!G10) -> 100400 | G7: =SUM(Royalties!I10) -> 105400 | H7: =SUM(Royalties!K10) -> 110700 | I7: =SUM(Royalties!M10) -> 116200
A9: Total In-Kind Revenues | B9: =SUM(B6:B8) -> 85200 | C9: 94500 | D9: 82800 | E9: 99300 | F9: 104100 | G9: 109100 | H9: 114400 | I9: 119900
A11: In-Kind Expenses
A12: Recruiting | B12: =SUM(Recruiting!B39) -> 1400 | C12: =SUM(Recruiting!C39) -> 1700 | D12: =SUM(Recruiting!D39) -> 1400 | E12: =SUM(Recruiting!E39) -> 1700 | F12: =SUM(Recruiting!G39) -> 1700 | G12: =SUM(Recruiting!I39) -> 1700 | H12: =SUM(Recruiting!K39) -> 1700 | I12: =SUM(Recruiting!M39) -> 1700
A13: Team Travel | B13: =SUM('Team Travel'!B41) -> 7300 | C13: =SUM('Team Travel'!C41) -> 7550 | D13: =SUM('Team Travel'!D41) -> 6900 | E13: =SUM('Team Travel'!E41) -> 7900 | F13: =SUM('Team Travel'!G41) -> 8300 | G13: =SUM('Team Travel'!I41) -> 8700 | H13: =SUM('Team Travel'!K41) -> 9100 | I13: =SUM('Team Travel'!M41) -> 9600
A14: Equipment | B14: =SUM(Equipment!B41) -> 73000 | C14: =SUM(Equipment!C41) -> 80000 | D14: =SUM(Equipment!D41) -> 73000 | E14: =SUM(Equipment!E41) -> 82400 | F14: =SUM(Equipment!G41) -> 84800 | G14: =SUM(Equipment!I41) -> 87400 | H14: =SUM(Equipment!K41) -> 90000 | I14: =SUM(Equipment!M41) -> 92700
A16: Total In-Kind Expenses | B16: =SUM(B12:B15) -> 81700 | C16: 89250 | D16: 81300 | E16: 92000 | F16: 94800 | G16: 97800 | H16: 100800 | I16: 104000

Sheet Summary #4
B1: Sports Camps-Revenues and Expenses Summary
C2: Current Year | D2: Current Year
B3: Previous Year | C3: Budget | D3: Actual | E3: Year 1 | F3: Year 2 | G3: Year 3 | H3: Year 4 | I3: Year 5
A5: Revenues | B5: =SUM('Sports Camps'!B40) -> 239450 | C5: =SUM('Sports Camps'!C40) -> 269700 | D5: =SUM('Sports Camps'!D40) -> 238000 | E5: =SUM('Sports Camps'!E40) -> 283100 | F5: =SUM('Sports Camps'!G40) -> 297400 | G5: =SUM('Sports Camps'!I40) -> 312300 | H5: =SUM('Sports Camps'!K40) -> 328000 | I5: =SUM('Sports Camps'!M40) -> 360600
A6: Expenses | B6: =SUM('Sports Camp Exp.'!B42) -> 196200 | C6: =SUM('Sports Camp Exp.'!C42) -> 249700 | D6: =SUM('Sports Camp Exp.'!D42) -> 191000 | E6: =SUM('Sports Camp Exp.'!E42) -> 262300 | F6: =SUM('Sports Camp Exp.'!G42) -> 275400 | G6: =SUM('Sports Camp Exp.'!I42) -> 289100 | H6: =SUM('Sports Camp Exp.'!K42) -> 303600 | I6: =SUM('Sports Camp Exp.'!M42) -> 318900
A8: Revenues-Expenses | B8: =B5-B6 -> 43250 | C8: 20000 | D8: 47000 | E8: 20800 | F8: 22000 | G8: 23200 | H8: 24400 | I8: 41700

Sheet Ticket Sales
B1: Ticket Sales Revenue-All Sports
C2: Current Year | D2: Current Year
B3: Previous Year | C3: Budget | D3: Actual | E3: Year 1 | F3: Yr1 % | G3: Year 2 | H3: Yr2 % | I3: Year 3 | J3: Yr3 % | K3: Year 4 | L3: Yr4 % | M3: Year 5 | N3: Yr5 %
A4: Men's Sports
A5: Basketball* | B5: =SUM('Ticket Plans'!B19) -> 128500 | C5: =SUM('Ticket Plans'!C19) -> 147000 | D5: =SUM('Ticket Plans'!D19) -> 127000 | E5: =SUM('Ticket Plans'!E19) -> 159100 | G5: =SUM('Ticket Plans'!G19) -> 173200 | I5: =SUM('Ticket Plans'!I19) -> 180300 | K5: =SUM('Ticket Plans'!K19) -> 187800 | M5: =SUM('Ticket Plans'!M19) -> 195600
A6: Baseball | B6: 40200 | C6: 41100 | D6: 39000 | E6: 45500 | F6: 0.1 | G6: =ROUND(E6+(E6*H6),-2) -> 47800 | H6: 0.05 | I6: =ROUND(G6+(G6*J6),-2) -> 50200 | J6: 0.05 | K6: =ROUND(I6+(I6*L6),-2) -> 52700 | L6: 0.05 | M6: =ROUND(K6+(K6*N6),-2) -> 55300 | N6: 0.05
A7: Football* | B7: =SUM('Ticket Plans'!B11) -> 11348500 | C7: =SUM('Ticket Plans'!C11) -> 13050000 | D7: =SUM('Ticket Plans'!D11) -> 11538000 | E7: =SUM('Ticket Plans'!E11) -> 13291700 | G7: =SUM('Ticket Plans'!G11) -> 13557500 | I7: =SUM('Ticket Plans'!I11) -> 14172400 | K7: =SUM('Ticket Plans'!K11) -> 14874000 | M7: =SUM('Ticket Plans'!M11) -> 15535900
A8: Gymnastics | B8: 0 | C8: 0 | D8: 0 | E8: =ROUND(C8+(C8*F8),-2) -> 0 | F8: 0.01 | G8: 0 | H8: 0.01 | I8: 0 | J8: 0.01 | K8: 0 | L8: 0.01 | M8: 0 | N8: 0.01
A9: Golf | B9: 2000 | C9: 3600 | D9: 3500 | E9: 3700 | F9: 0.02 | G9: 3800 | H9: 0.02 | I9: 3900 | J9: 0.02 | K9: 4000 | L9: 0.02 | M9: 4100 | N9: 0.02
A10: Ice Hockey | B10: 0 | C10: 0 | D10: 0 | E10: 0 | F10: 0.02 | G10: 0 | H10: 0.02 | I10: 0 | J10: 0.02 | K10: 0 | L10: 0.02 | M10: 0 | N10: 0.02
A11: Lacrosse | B11: 0 | C11: 0 | D11: 0 | E11: 0 | F11: 0.02 | G11: 0 | H11: 0.02 | I11: 0 | J11: 0.02 | K11: 0 | L11: 0.02 | M11: 0 | N11: 0.02
A12: Soccer | B12: 2500 | C12: 3100 | D12: 2900 | E12: 3200 | F12: 0.02 | G12: 3300 | H12: 0.02 | I12: 3400 | J12: 0.02 | K12: 3500 | L12: 0.02 | M12: 3600 | N12: 0.02
A13: Swimming | B13: 33100 | C13: 34800 | D13: 35000 | E13: 35500 | F13: 0.02 | G13: 37300 | H13: 0.05 | I13: 38000 | J13: 0.02 | K13: 39900 | L13: 0.05 | M13: 41900 | N13: 0.05
A14: Tennis | B14: 2000 | C14: 3000 | D14: 2500 | E14: 3100 | F14: 0.02 | G14: 3200 | H14: 0.02 | I14: 3300 | J14: 0.02 | K14: 3400 | L14: 0.02 | M14: 3500 | N14: 0.02
A15: Track and Field | B15: 2000 | C15: 3000 | D15: 2400 | E15: 3100 | F15: 0.02 | G15: 3200 | H15: 0.02 | I15: 3300 | J15: 0.02 | K15: 3400 | L15: 0.02 | M15: 3500 | N15: 0.02
A16: Volleyball | B16: 0 | C16: 0 | D16: 0 | E16: 0 | F16: 0.02 | G16: 0 | H16: 0.02 | I16: 0 | J16: 0.02 | K16: 0 | L16: 0.02 | M16: 0 | N16: 0.02
A17: Wrestling | B17: 0 | C17: 0 | D17: 0 | E17: 0 | F17: 0.02 | G17: 0 | H17: 0.02 | I17: 0 | J17: 0.02 | K17: 0 | L17: 0.02 | M17: 0 | N17: 0.02
A18: Other | B18: 0 | C18: 0 | D18: 0 | E18: 0 | F18: 0.02 | G18: =ROUND(E18+(E18*H18),-2) -> 0 | H18: 0.02 | I18: =ROUND(G18+(G18*J18),-2) -> 0 | J18: 0.02 | K18: =ROUND(I18+(I18*L18),-2) -> 0 | L18: 0.02 | M18: =ROUND(K18+(K18*N18),-2) -> 0 | N18: 0.02
A20: Women's Sports
A21: Basketball* | B21: =SUM('Ticket Plans'!B27) -> 7800 | C21: =SUM('Ticket Plans'!C27) -> 7800 | D21: =SUM('Ticket Plans'!D27) -> 6500 | E21: =SUM('Ticket Plans'!E27) -> 8200 | G21: =SUM('Ticket Plans'!G27) -> 8300 | I21: =SUM('Ticket Plans'!I27) -> 8400 | K21: =SUM('Ticket Plans'!K27) -> 8500 | M21: =SUM('Ticket Plans'!M27) -> 8600
A22: Field Hockey | B22: 0 | C22: 0 | D22: 0 | E22: =ROUND(C22+(C22*F22),-2) -> 0 | F22: 0.02 | G22: 0 | H22: 0.02 | I22: 0 | J22: 0.02 | K22: 0 | L22: 0.02 | M22: 0 | N22: 0.02
A23: Golf | B23: 0 | C23: 0 | D23: 0 | E23: 0 | F23: 0.02 | G23: 0 | H23: 0.02 | I23: 0 | J23: 0.02 | K23: 0 | L23: 0.02 | M23: 0 | N23: 0.02
A24: Gymnastics | B24: 0 | C24: 0 | D24: 0 | E24: 0 | F24: 0.02 | G24: 0 | H24: 0.02 | I24: 0 | J24: 0.02 | K24: 0 | L24: 0.02 | M24: 0 | N24: 0.02
A25: Ice Hockey | B25: 0 | C25: 0 | D25: 0 | E25: 0 | F25: 0.02 | G25: 0 | H25: 0.02 | I25: 0 | J25: 0.02 | K25: 0 | L25: 0.02 | M25: 0 | N25: 0.02
A26: Lacrosse | B26: 0 | C26: 0 | D26: 0 | E26: 0 | F26: 0.02 | G26: 0 | H26: 0.02 | I26: 0 | J26: 0.02 | K26: 0 | L26: 0.02 | M26: 0 | N26: 0.02
A27: Soccer | B27: 2000 | C27: 2200 | D27: 2000 | E27: 2200 | F27: 0.02 | G27: 2200 | H27: 0.02 | I27: 2200 | J27: 0.02 | K27: 2200 | L27: 0.02 | M27: 2200 | N27: 0.02
A28: Softball | B28: 1800 | C28: 2300 | D28: 2000 | E28: 2300 | F28: 0.02 | G28: 2300 | H28: 0.02 | I28: 2300 | J28: 0.02 | K28: 2300 | L28: 0.02 | M28: 2300 | N28: 0.02
A29: Swimming | B29: 29200 | C29: 30500 | D29: 31000 | E29: 31100 | F29: 0.02 | G29: 32700 | H29: 0.05 | I29: 33400 | J29: 0.02 | K29: 35100 | L29: 0.05 | M29: 36900 | N29: 0.05
A30: Tennis | B30: 1800 | C30: 2000 | D30: 1500 | E30: 2000 | F30: 0.02 | G30: 2000 | H30: 0.02 | I30: 2000 | J30: 0.02 | K30: 2000 | L30: 0.02 | M30: 2000 | N30: 0.02
A31: Track and Field | B31: 1600 | C31: 1800 | D31: 1500 | E31: 1800 | F31: 0.02 | G31: 1800 | H31: 0.02 | I31: 1800 | J31: 0.02 | K31: 1800 | L31: 0.02 | M31: 1800 | N31: 0.02
A32: Volleyball | B32: 850 | C32: 950 | D32: 800 | E32: 1000 | F32: 0.02 | G32: 1000 | H32: 0.02 | I32: 1000 | J32: 0.02 | K32: 1000 | L32: 0.02 | M32: 1000 | N32: 0.02
A33: Other
A35: Postage and Handling | B35: 23000 | C35: 25000 | D35: 19000 | E35: =ROUND(C35+(C35*F35),-2) -> 25500 | F35: 0.02 | G35: =ROUND(E35+(E35*H35),-2) -> 26000 | H35: 0.02 | I35: 26500 | J35: 0.02 | K35: 27000 | L35: 0.02 | M35: 27500 | N35: 0.02
A36: Total Ticket Sale Revenue | B36: =SUM(B5:B35) -> 11626850 | C36: 13358150 | D36: =SUM(D5:D35) -> 11814600 | E36: 13619000 | G36: 13905600 | I36: 14532400 | K36: 15248600 | M36: 15925700
A39: *Prefills from Ticket Plans Sheet

Sheet Ticket Plans
B1: Ticket Plans
C2: Current Year | D2: Current Year
B3: Previous Year | C3: Budget | D3: Actual | E3: Year 1 | F3: Yr1 % | G3: Year 2 | H3: Yr2 % | I3: Year 3 | J3: Yr3 % | K3: Year 4 | L3: Yr4 % | M3: Year 5 | N3: Yr5 %
A5: Football
A6: Regular Season | B6: 9000000 | C6: 9890000 | D6: 9000000 | E6: =ROUND(C6+(C6*F6),-2) -> 9692200 | F6: -0.02 | G6: =ROUND(E6+(E6*H6),-2) -> 9886000 | H6: 0.02 | I6: =ROUND(G6+(G6*J6),-2) -> 10380300 | J6: 0.05 | K6: =ROUND(I6+(I6*L6),-2) -> 10899300 | L6: 0.05 | M6: =ROUND(K6+(K6*N6),-2) -> 11444300 | N6: 0.05
A7: Mini-Plans | B7: 2200000 | C7: 3000000 | D7: 2400000 | E7: =ROUND(C7+(C7*F7),-2) -> 3420000 | F7: 0.14 | G7: =ROUND(E7+(E7*H7),-2) -> 3488400 | H7: 0.02 | I7: =ROUND(G7+(G7*J7),-2) -> 3558200 | J7: 0.02 | K7: =ROUND(I7+(I7*L7),-2) -> 3736100 | L7: 0.05 | M7: =ROUND(K7+(K7*N7),-2) -> 3848200 | N7: 0.03
A8: Discounted Faculty/Staff | B8: 8500 | C8: 10000 | D8: 8000 | E8: =ROUND(C8+(C8*F8),-2) -> 14500 | F8: 0.45 | G8: =ROUND(E8+(E8*H8),-2) -> 14800 | H8: 0.02 | I8: =ROUND(G8+(G8*J8),-2) -> 15100 | J8: 0.02 | K8: =ROUND(I8+(I8*L8),-2) -> 15400 | L8: 0.02 | M8: =ROUND(K8+(K8*N8),-2) -> 15700 | N8: 0.02
A9: Student | B9: 140000 | C9: 150000 | D9: 130000 | E9: =ROUND(C9+(C9*F9),-2) -> 165000 | F9: 0.1 | G9: =ROUND(E9+(E9*H9),-2) -> 168300 | H9: 0.02 | I9: =ROUND(G9+(G9*J9),-2) -> 218800 | J9: 0.3 | K9: =ROUND(I9+(I9*L9),-2) -> 223200 | L9: 0.02 | M9: =ROUND(K9+(K9*N9),-2) -> 227700 | N9: 0.02
A10: Other | B10: 0 | C10: 0 | D10: 0 | E10: =ROUND(C10+(C10*F10),-2) -> 0 | F10: 0 | G10: =ROUND(E10+(E10*H10),-2) -> 0 | H10: 0.02 | I10: =ROUND(G10+(G10*J10),-2) -> 0 | J10: 0.02 | K10: =ROUND(I10+(I10*L10),-2) -> 0 | L10: 0.02 | M10: =ROUND(K10+(K10*N10),-2) -> 0 | N10: 0.02
A11: Total Football Ticket Sales | B11: =SUM(B6:B10) -> 11348500 | C11: 13050000 | D11: =SUM(D6:D10) -> 11538000 | E11: 13291700 | G11: 13557500 | I11: 14172400 | K11: 14874000 | M11: 15535900
A13: Men's Basketball
A14: Regular Season | B14: 90000 | C14: 100000 | D14: 90000 | E14: =ROUND(C14+(C14*F14),-2) -> 110000 | F14: 0.1 | G14: =ROUND(E14+(E14*H14),-2) -> 123200 | H14: 0.12 | I14: =ROUND(G14+(G14*J14),-2) -> 129400 | J14: 0.05 | K14: =ROUND(I14+(I14*L14),-2) -> 135900 | L14: 0.05 | M14: =ROUND(K14+(K14*N14),-2) -> 142700 | N14: 0.05
A15: Mini-Plans | B15: 25000 | C15: 30000 | D15: 28000 | E15: =ROUND(C15+(C15*F15),-2) -> 31500 | F15: 0.05 | G15: =ROUND(E15+(E15*H15),-2) -> 32100 | H15: 0.02 | I15: =ROUND(G15+(G15*J15),-2) -> 32700 | J15: 0.02 | K15: =ROUND(I15+(I15*L15),-2) -> 33400 | L15: 0.02 | M15: =ROUND(K15+(K15*N15),-2) -> 34100 | N15: 0.02
A16: Discounted Faculty/Staff | B16: 4500 | C16: 6000 | D16: 3000 | E16: =ROUND(C16+(C16*F16),-2) -> 6400 | F16: 0.06 | G16: =ROUND(E16+(E16*H16),-2) -> 6500 | H16: 0.02 | I16: =ROUND(G16+(G16*J16),-2) -> 6600 | J16: 0.02 | K16: =ROUND(I16+(I16*L16),-2) -> 6700 | L16: 0.02 | M16: =ROUND(K16+(K16*N16),-2) -> 6800 | N16: 0.02
A17: Student | B17: 9000 | C17: 11000 | D17: 6000 | E17: =ROUND(C17+(C17*F17),-2) -> 11200 | F17: 0.02 | G17: =ROUND(E17+(E17*H17),-2) -> 11400 | H17: 0.02 | I17: =ROUND(G17+(G17*J17),-2) -> 11600 | J17: 0.02 | K17: =ROUND(I17+(I17*L17),-2) -> 11800 | L17: 0.02 | M17: =ROUND(K17+(K17*N17),-2) -> 12000 | N17: 0.02
A18: Other | B18: 0 | C18: 0 | D18: 0 | E18: =ROUND(C18+(C18*F18),-2) -> 0 | F18: 0.02 | G18: =ROUND(E18+(E18*H18),-2) -> 0 | H18: 0.02 | I18: =ROUND(G18+(G18*J18),-2) -> 0 | J18: 0.02 | K18: =ROUND(I18+(I18*L18),-2) -> 0 | L18: 0.02 | M18: =ROUND(K18+(K18*N18),-2) -> 0 | N18: 0.02
A19: Total Men's Basketball Ticket Sales | B19: =SUM(B14:B18) -> 128500 | C19: 147000 | D19: 127000 | E19: 159100 | G19: 173200 | I19: 180300 | K19: 187800 | M19: 195600
A21: Women's Basketball
A22: Regular Season | B22: 4000 | C22: 4000 | D22: 3600 | E22: =ROUND(C22+(C22*F22),-2) -> 4200 | F22: 0.05 | G22: =ROUND(E22+(E22*H22),-2) -> 4300 | H22: 0.02 | I22: =ROUND(G22+(G22*J22),-2) -> 4400 | J22: 0.02 | K22: =ROUND(I22+(I22*L22),-2) -> 4500 | L22: 0.02 | M22: =ROUND(K22+(K22*N22),-2) -> 4600 | N22: 0.02
A23: Mini-Plans | B23: 1200 | C23: 1200 | D23: 1000 | E23: =ROUND(C23+(C23*F23),-2) -> 1300 | F23: 0.05 | G23: =ROUND(E23+(E23*H23),-2) -> 1300 | H23: 0.02 | I23: =ROUND(G23+(G23*J23),-2) -> 1300 | J23: 0.02 | K23: =ROUND(I23+(I23*L23),-2) -> 1300 | L23: 0.02 | M23: =ROUND(K23+(K23*N23),-2) -> 1300 | N23: 0.02
A24: Discounted Faculty/Staff | B24: 600 | C24: 600 | D24: 400 | E24: =ROUND(C24+(C24*F24),-2) -> 600 | F24: 0.02 | G24: =ROUND(E24+(E24*H24),-2) -> 600 | H24: 0.02 | I24: =ROUND(G24+(G24*J24),-2) -> 600 | J24: 0.02 | K24: =ROUND(I24+(I24*L24),-2) -> 600 | L24: 0.02 | M24: =ROUND(K24+(K24*N24),-2) -> 600 | N24: 0.02
A25: Student | B25: 2000 | C25: 2000 | D25: 1500 | E25: =ROUND(C25+(C25*F25),-2) -> 2100 | F25: 0.03 | G25: =ROUND(E25+(E25*H25),-2) -> 2100 | H25: 0.02 | I25: =ROUND(G25+(G25*J25),-2) -> 2100 | J25: 0.02 | K25: =ROUND(I25+(I25*L25),-2) -> 2100 | L25: 0.02 | M25: =ROUND(K25+(K25*N25),-2) -> 2100 | N25: 0.02
A26: Other | B26: 0 | C26: 0 | D26: 0 | E26: =ROUND(C26+(C26*F26),-2) -> 0 | F26: 0.02 | G26: =ROUND(E26+(E26*H26),-2) -> 0 | H26: 0.02 | I26: =ROUND(G26+(G26*J26),-2) -> 0 | J26: 0.02 | K26: =ROUND(I26+(I26*L26),-2) -> 0 | L26: 0.02 | M26: =ROUND(K26+(K26*N26),-2) -> 0 | N26: 0.02
A27: Total Women's Basketball Ticket Sales | B27: =SUM(B22:B26) -> 7800 | C27: 7800 | D27: 6500 | E27: 8200 | G27: 8300 | I27: 8400 | K27: 8500 | M27: 8600
A29: Other Sport
A30: Regular Season | B30: 0 | C30: 0 | D30: 0 | E30: =ROUND(C30+(C30*F30),-2) -> 0 | G30: =ROUND(E30+(E30*H30),-2) -> 0 | I30: =ROUND(G30+(G30*J30),-2) -> 0 | K30: =ROUND(I30+(I30*L30),-2) -> 0 | M30: =ROUND(K30+(K30*N30),-2) -> 0
A31: Mini-Plans | B31: 0 | C31: 0 | D31: 0 | E31: =ROUND(C31+(C31*F31),-2) -> 0 | G31: =ROUND(E31+(E31*H31),-2) -> 0 | I31: =ROUND(G31+(G31*J31),-2) -> 0 | K31: =ROUND(I31+(I31*L31),-2) -> 0 | M31: =ROUND(K31+(K31*N31),-2) -> 0
A32: Discounted Faculty/Staff | B32: 0 | C32: 0 | D32: 0 | E32: =ROUND(C32+(C32*F32),-2) -> 0 | G32: =ROUND(E32+(E32*H32),-2) -> 0 | I32: =ROUND(G32+(G32*J32),-2) -> 0 | K32: =ROUND(I32+(I32*L32),-2) -> 0 | M32: =ROUND(K32+(K32*N32),-2) -> 0
A33: Student | B33: 0 | C33: 0 | D33: 0 | E33: =ROUND(C33+(C33*F33),-2) -> 0 | G33: =ROUND(E33+(E33*H33),-2) -> 0 | I33: =ROUND(G33+(G33*J33),-2) -> 0 | K33: =ROUND(I33+(I33*L33),-2) -> 0 | M33: =ROUND(K33+(K33*N33),-2) -> 0
A34: Other | B34: 0 | C34: 0 | D34: 0 | E34: =ROUND(C34+(C34*F34),-2) -> 0 | G34: =ROUND(E34+(E34*H34),-2) -> 0 | I34: =ROUND(G34+(G34*J34),-2) -> 0 | K34: =ROUND(I34+(I34*L34),-2) -> 0 | M34: =ROUND(K34+(K34*N34),-2) -> 0
A35: Total Other Ticket Sales | B35: =SUM(B30:B34) -> 0 | C35: 0 | D35: 0 | E35: 0 | G35: 0 | I35: 0 | K35: 0 | M35: 0
A37: Total Ticket Plans | B37: =B11+B19+B27 -> 11484800 | C37: 13204800 | D37: 11671500 | E37: 13459000 | G37: 13739000 | I37: 14361100 | K37: 15070300 | M37: 15740100
A40: *Prefills to Ticket Sales Sheet

Sheet Guarantees-Rev
B1: Guarantees (Revenues)
C2: Current Year | D2: Current Year
B3: Previous Year | C3: Budget | D3: Actual | E3: Year 1 | F3: Yr1 % | G3: Year 2 | H3: Yr2 % | I3: Year 3 | J3: Yr3 % | K3: Year 4 | L3: Yr4 % | M3: Year 5 | N3: Yr5 %
A5: Football | B5: 82000 | C5: 250000 | D5: 220000 | E5: =ROUND(C5+(C5*F5),-2) -> 265000 | F5: 0.06 | G5: =ROUND(E5+(E5*H5),-2) -> 278300 | H5: 0.05 | I5: =ROUND(G5+(G5*J5),-2) -> 292200 | J5: 0.05 | K5: =ROUND(I5+(I5*L5),-2) -> 306800 | L5: 0.05 | M5: =ROUND(K5+(K5*N5),-2) -> 331300 | N5: 0.08
A6: Men's Basketball | B6: 120500 | C6: 150000 | D6: 110000 | E6: =ROUND(C6+(C6*F6),-2) -> 157500 | F6: 0.05 | G6: =ROUND(E6+(E6*H6),-2) -> 165400 | H6: 0.05 | I6: 173700 | J6: 0.05 | K6: 182400 | L6: 0.05 | M6: 197000 | N6: 0.08
A7: Women's Basketball | B7: 5500 | C7: 10000 | D7: 8000 | E7: 10500 | F7: 0.05 | G7: 11000 | H7: 0.05 | I7: 11600 | J7: 0.05 | K7: 12200 | L7: 0.05 | M7: 13200 | N7: 0.08
A8: Men's Baseball | B8: 10000 | C8: 10500 | D8: 9000 | E8: 26300 | F8: 1.5 | G8: 27600 | H8: 0.05 | I8: 29000 | J8: 0.05 | K8: 30500 | L8: 0.05 | M8: 32900 | N8: 0.08
A9: Other | B9: 0 | C9: 0 | D9: 0 | E9: 0 | G9: 0 | I9: 0 | K9: 0 | M9: 0
A10: Other | B10: 0 | C10: 0 | D10: 0 | E10: 0 | G10: 0 | I10: 0 | K10: 0 | M10: 0
A11: Other | B11: 0 | C11: 0 | D11: 0 | E11: 0 | G11: 0 | I11: 0 | K11: 0 | M11: 0
A13: Total Guarantees-Revenues | B13: =SUM(B5:B12) -> 218000 | C13: =SUM(C5:C12) -> 420500 | D13: =SUM(D5:D12) -> 347000 | E13: =SUM(E5:E12) -> 459300 | G13: =SUM(G5:G12) -> 482300 | I13: =SUM(I5:I12) -> 506500 | K13: =SUM(K5:K12) -> 531900 | M13: =SUM(M5:M12) -> 574400

Sheet Contributions
B1: Contributions (Individuals, Corporations, Associations, Foundations, Clubs, Other)
C2: Current Year | D2: Current Year
B3: Previous Year | C3: Budget | D3: Actual | E3: Year 1 | F3: Yr1 % | G3: Year 2 | H3: Yr2 % | I3: Year 3 | J3: Yr3 % | K3: Year 4 | L3: Yr4 % | M3: Year 5 | N3: Yr5 %
A5: Men's Sports
A6: Basketball | B6: 90000 | C6: 92000 | D6: 85000 | E6: =ROUND(C6+(C6*F6),-2) -> 87400 | F6: -0.05 | G6: =ROUND(E6+(E6*H6),-2) -> 96100 | H6: 0.1 | I6: =ROUND(G6+(G6*J6),-2) -> 100900 | J6: 0.05 | K6: =ROUND(I6+(I6*L6),-2) -> 111000 | L6: 0.1 | M6: =ROUND(K6+(K6*N6),-2) -> 122100 | N6: 0.1
A7: Baseball | B7: 46000 | C7: 49000 | D7: 40000 | E7: 46600 | F7: -0.05 | G7: 51300 | H7: 0.1 | I7: 53900 | J7: 0.05 | K7: 59300 | L7: 0.1 | M7: 65200 | N7: 0.1
A8: Football | B8: 205000 | C8: 210000 | D8: 215000 | E8: 199500 | F8: -0.05 | G8: 219500 | H8: 0.1 | I8: 230500 | J8: 0.05 | K8: 246600 | L8: 0.07 | M8: 263900 | N8: 0.07
A9: Gymnastics | B9: 0 | C9: 0 | D9: 0 | E9: 0 | G9: 0 | I9: 0 | K9: 0 | M9: 0
A10: Golf | B10: 0 | C10: 0 | D10: 0 | E10: 0 | G10: 0 | I10: 0 | K10: 0 | M10: 0
A11: Ice Hockey | B11: 0 | C11: 0 | D11: 0 | E11: 0 | G11: 0 | I11: 0 | K11: 0 | M11: 0
A12: Lacrosse | B12: 0 | C12: 0 | D12: 0 | E12: 0 | G12: 0 | I12: 0 | K12: 0 | M12: 0
A13: Soccer | B13: 0 | C13: 0 | D13: 0 | E13: 0 | G13: 0 | I13: 0 | K13: 0 | M13: 0
A14: Swimming | B14: 132000 | C14: 133000 | D14: 130000 | E14: 146300 | F14: 0.1 | G14: 146300 | I14: 146300 | K14: 146300 | M14: 146300
A15: Tennis | B15: 0 | C15: 0 | D15: 0 | E15: 0 | G15: 0 | I15: 0 | K15: 0 | M15: 0
A16: Track and Field | B16: 0 | C16: 0 | D16: 0 | E16: 0 | G16: 0 | I16: 0 | K16: 0 | M16: 0
A17: Volleyball | B17: 0 | C17: 0 | D17: 0 | E17: 0 | G17: 0 | I17: 0 | K17: 0 | M17: 0
A18: Wrestling | B18: 0 | C18: 0 | D18: 0 | E18: 0 | G18: 0 | I18: 0 | K18: 0 | M18: 0
A19: Other | B19: 0 | C19: 0 | D19: 0 | E19: 0 | G19: 0 | I19: 0 | K19: 0 | M19: 0
A21: Women's Sports
A22: Basketball | B22: 16000 | C22: 20000 | D22: 19000 | E22: =ROUND(C22+(C22*F22),-2) -> 20000 | G22: 20000 | I22: 20000 | K22: 20000 | M22: 20000
A23: Field Hockey | B23: 0 | C23: 0 | D23: 0 | E23: 0 | G23: 0 | I23: 0 | K23: 0 | M23: 0
A24: Golf | B24: 0 | C24: 0 | D24: 0 | E24: 0 | G24: 0 | I24: 0 | K24: 0 | M24: 0
A25: Gymnastics | B25: 0 | C25: 0 | D25: 0 | E25: 0 | G25: 0 | I25: 0 | K25: 0 | M25: 0
A26: Ice Hockey | B26: 0 | C26: 0 | D26: 0 | E26: 0 | G26: 0 | I26: 0 | K26: 0 | M26: 0
A27: Lacrosse | B27: 0 | C27: 0 | D27: 0 | E27: 0 | G27: 0 | I27: 0 | K27: 0 | M27: 0
A28: Soccer | B28: 0 | C28: 0 | D28: 0 | E28: 0 | G28: 0 | I28: 0 | K28: 0 | M28: 0
A29: Softball | B29: 0 | C29: 0 | D29: 0 | E29: 0 | G29: 0 | I29: 0 | K29: 0 | M29: 0
A30: Swimming | B30: 71000 | C30: 72000 | D30: 65000 | E30: 72000 | G30: 72000 | I30: 72000 | K30: 72000 | M30: 72000
A31: Tennis | B31: 0 | C31: 0 | D31: 0 | E31: 0 | G31: 0 | I31: 0 | K31: 0 | M31: 0
A32: Track and Field | B32: 0 | C32: 0 | D32: 0 | E32: 0 | G32: 0 | I32: 0 | K32: 0 | M32: 0
A33: Volleyball | B33: 0 | C33: 0 | D33: 0 | E33: 0 | G33: 0 | I33: 0 | K33: 0 | M33: 0
A34: Other | B34: 0 | C34: 0 | D34: 0 | E34: 0 | G34: 0 | I34: 0 | K34: 0 | M34: 0
A36: Men's and Women's In-Kind Gifts | B36: 3200 | C36: 3500 | D36: 2800 | E36: 3700 | F36: 0.05 | G36: 3700 | I36: 3700 | K36: 3700 | M36: 3700
A38: Total Contributions | B38: =SUM(B6:B37) -> 563200 | C38: 579500 | D38: 556800 | E38: 575500 | G38: 608900 | I38: 627300 | K38: 658900 | M38: 693200
A40: Total Contributions less In-Kind* | B40: =B38-B36 -> 560000 | C40: 576000 | D40: 554000 | E40: 571800 | G40: 605200 | I40: 623600 | K40: 655200 | M40: 689500
A41: *Prefills to Summary #2

Sheet 3rd Party Comp
B1: 3rd Party Compensation
C2: Current Year | D2: Current Year
B3: Previous Year | C3: Budget | D3: Actual | E3: Year 1 | F3: Yr1 % | G3: Year 2 | H3: Yr2 % | I3: Year 3 | J3: Yr3 % | K3: Year 4 | L3: Yr4 % | M3: Year 5 | N3: Yr5 %
A4: Men's Sports
A5: Basketball | B5: 10000 | C5: 10000 | D5: 80000 | E5: =ROUND(C5+(C5*F5),-2) -> 11000 | F5: 0.1 | G5: =ROUND(E5+(E5*H5),-2) -> 11000 | I5: =ROUND(G5+(G5*J5),-2) -> 11000 | K5: =ROUND(I5+(I5*L5),-2) -> 11000 | M5: =ROUND(K5+(K5*N5),-2) -> 11000
A6: Baseball | B6: 0 | C6: 0 | D6: 0 | E6: =ROUND(C6+(C6*F6),-2) -> 0 | G6: 0 | I6: 0 | K6: 0 | M6: 0
A7: Football | B7: 29000 | C7: 28000 | D7: 20000 | E7: 28000 | G7: 28000 | I7: 28000 | K7: 28000 | M7: 28000
A8: Gymnastics | B8: 0 | C8: 0 | D8: 0 | E8: 0 | G8: 0 | I8: 0 | K8: 0 | M8: 0
A9: Golf | B9: 0 | C9: 0 | D9: 0 | E9: 0 | G9: 0 | I9: 0 | K9: 0 | M9: 0
A10: Ice Hockey | B10: 0 | C10: 0 | D10: 0 | E10: 0 | G10: 0 | I10: 0 | K10: 0 | M10: 0
A11: Lacrosse | B11: 0 | C11: 0 | D11: 0 | E11: 0 | G11: 0 | I11: 0 | K11: 0 | M11: 0
A12: Soccer | B12: 0 | C12: 0 | D12: 0 | E12: 0 | G12: 0 | I12: 0 | K12: 0 | M12: 0
A13: Swimming | B13: 0 | C13: 0 | D13: 0 | E13: 0 | G13: 0 | I13: 0 | K13: 0 | M13: 0
A14: Tennis | B14: 0 | C14: 0 | D14: 0 | E14: 0 | G14: 0 | I14: 0 | K14: 0 | M14: 0
A15: Track and Field | B15: 0 | C15: 0 | D15: 0 | E15: 0 | G15: 0 | I15: 0 | K15: 0 | M15: 0
A16: Volleyball | B16: 0 | C16: 0 | D16: 0 | E16: 0 | G16: 0 | I16: 0 | K16: 0 | M16: 0
A17: Wrestling | B17: 0 | C17: 0 | D17: 0 | E17: 0 | G17: 0 | I17: 0 | K17: 0 | M17: 0
A18: Other | B18: 0 | C18: 0 | D18: 0 | E18: 0 | G18: 0 | I18: 0 | K18: 0 | M18: 0
A20: Women's Sports
A21: Basketball | B21: 0 | C21: 0 | D21: 0 | E21: =ROUND(C21+(C21*F21),-2) -> 0 | G21: 0 | I21: 0 | K21: 0 | M21: 0
A22: Field Hockey | B22: 0 | C22: 0 | D22: 0 | E22: 0 | G22: 0 | I22: 0 | K22: 0 | M22: 0
A23: Golf | B23: 0 | C23: 0 | D23: 0 | E23: 0 | G23: 0 | I23: 0 | K23: 0 | M23: 0
A24: Gymnastics | B24: 0 | C24: 0 | D24: 0 | E24: 0 | G24: 0 | I24: 0 | K24: 0 | M24: 0
A25: Ice Hockey | B25: 0 | C25: 0 | D25: 0 | E25: 0 | G25: 0 | I25: 0 | K25: 0 | M25: 0
A26: Lacrosse | B26: 0 | C26: 0 | D26: 0 | E26: 0 | G26: 0 | I26: 0 | K26: 0 | M26: 0
A27: Soccer | B27: 0 | C27: 0 | D27: 0 | E27: 0 | G27: 0 | I27: 0 | K27: 0 | M27: 0
A28: Softball | B28: 0 | C28: 0 | D28: 0 | E28: 0 | G28: 0 | I28: 0 | K28: 0 | M28: 0
A29: Swimming | B29: 0 | C29: 0 | D29: 0 | E29: 0 | G29: 0 | I29: 0 | K29: 0 | M29: 0
A30: Tennis | B30: 0 | C30: 0 | D30: 0 | E30: 0 | G30: 0 | I30: 0 | K30: 0 | M30: 0
A31: Track and Field | B31: 0 | C31: 0 | D31: 0 | E31: 0 | G31: 0 | I31: 0 | K31: 0 | M31: 0
A32: Volleyball | B32: 0 | C32: 0 | D32: 0 | E32: 0 | G32: 0 | I32: 0 | K32: 0 | M32: 0
A33: Other | B33: 0 | C33: 0 | D33: 0 | E33: 0 | G33: 0 | I33: 0 | K33: 0 | M33: 0
A35: Total 3rd Party Compensation | B35: =SUM(B5:B34) -> 39000 | C35: 38000 | D35: =SUM(D5:D34) -> 100000 | E35: 39000 | G35: 39000 | I35: 39000 | K35: 39000 | M35: 39000

Sheet NCAA-Conference
B1: NCAA/Conference Distributions
C2: Current Year | D2: Current Year
B3: Previous Year | C3: Budget | D3: Actual | E3: Year 1 | F3: Yr1 % | G3: Year 2 | H3: Yr2 % | I3: Year 3 | J3: Yr3 % | K3: Year 4 | L3: Yr4 % | M3: Year 5 | N3: Yr5 %
A5: Basketball Television | B5: 7000 | C5: 6000 | D5: 4000 | E5: =ROUND(C5+(C5*F5),-2) -> 6100 | F5: 0.02 | G5: =ROUND(E5+(E5*H5),-2) -> 6200 | H5: 0.02 | I5: =ROUND(G5+(G5*J5),-2) -> 6300 | J5: 0.02 | K5: =ROUND(I5+(I5*L5),-2) -> 6400 | L5: 0.02 | M5: =ROUND(K5+(K5*N5),-2) -> 6500 | N5: 0.02
A6: Basketball Revenue Sharing | B6: 7000 | C6: 6000 | D6: 4000 | E6: 6100 | F6: 0.02 | G6: 6200 | H6: 0.02 | I6: 6300 | J6: 0.02 | K6: 6400 | L6: 0.02 | M6: 6500 | N6: 0.02
A7: NCAA Tournament | B7: 285000 | C7: 299500 | D7: 280000 | E7: 314500 | F7: 0.05 | G7: 330200 | H7: 0.05 | I7: 346700 | J7: 0.05 | K7: 381400 | L7: 0.1 | M7: 419500 | N7: 0.1
A8: Football Television | B8: 0 | C8: 0 | D8: 0 | E8: 0 | G8: 0 | I8: 0 | K8: 0 | M8: 0
A9: Football Bowls | B9: 0 | C9: 0 | D9: 0 | E9: 0 | G9: 0 | I9: 0 | K9: 0 | M9: 0
A10: Additional NCAA Distribution | B10: 7000 | C10: 6000 | D10: 5000 | E10: 6100 | F10: 0.02 | G10: 6200 | H10: 0.02 | I10: 6300 | J10: 0.02 | K10: 6400 | L10: 0.02 | M10: 6500 | N10: 0.02
A11: Other | B11: 0 | C11: 0 | D11: 0 | E11: 0 | G11: 0 | I11: 0 | K11: 0 | M11: 0
A14: Total Conference Revenue | B14: =SUM(B5:B13) -> 306000 | C14: 317500 | D14: =SUM(D5:D13) -> 293000 | E14: 332800 | G14: 348800 | I14: 365600 | K14: 400600 | M14: 439000

Sheet Broadcast Rights
B1: Broadcast Rights
C2: Current Year | D2: Current Year
B3: Previous Year | C3: Budget | D3: Actual | E3: Year 1 | F3: Yr1 % | G3: Year 2 | H3: Yr2 % | I3: Year 3 | J3: Yr3 % | K3: Year 4 | L3: Yr4 % | M3: Year 5 | N3: Yr5 %
A5: Internet/E-commerce | B5: 3000 | C5: 5000 | D5: 4000 | E5: =ROUND(C5+(C5*F5),-2) -> 5500 | F5: 0.1 | G5: =ROUND(E5+(E5*H5),-2) -> 6100 | H5: 0.1 | I5: =ROUND(G5+(G5*J5),-2) -> 6700 | J5: 0.1 | K5: =ROUND(I5+(I5*L5),-2) -> 7400 | L5: 0.1 | M5: =ROUND(K5+(K5*N5),-2) -> 8100 | N5: 0.1
A6: Radio | B6: 22500 | C6: 25000 | D6: 20000 | E6: =ROUND(C6+(C6*F6),-2) -> 26300 | F6: 0.05 | G6: 27600 | H6: 0.05 | I6: 29000 | J6: 0.05 | K6: 30500 | L6: 0.05 | M6: 32000 | N6: 0.05
A7: Television | B7: 4000 | C7: 5000 | D7: 4000 | E7: 5200 | F7: 0.03 | G7: 5400 | H7: 0.03 | I7: 5600 | J7: 0.03 | K7: 5800 | L7: 0.03 | M7: 6000 | N7: 0.03
A10: Total Broadcast Rights | B10: =SUM(B5:B9) -> 29500 | C10: 35000 | D10: =SUM(D5:D9) -> 28000 | E10: 37000 | G10: 39100 | I10: 41300 | K10: 43700 | M10: 46100

Sheet Event Sales
B1: Event Sales
C2: Current Year | D2: Current Year
B3: Previous Year | C3: Budget | D3: Actual | E3: Year 1 | F3: Yr1 % | G3: Year 2 | H3: Yr2 % | I3: Year 3 | J3: Yr3 % | K3: Year 4 | L3: Yr4 % | M3: Year 5 | N3: Yr5 %
A5: Food concession | B5: 6500 | C5: 7000 | D5: 5000 | E5: =ROUND(C5+(C5*F5),-2) -> 7000 | G5: =ROUND(E5+(E5*H5),-2) -> 7000 | I5: =ROUND(G5+(G5*J5),-2) -> 7000 | K5: =ROUND(I5+(I5*L5),-2) -> 7000 | M5: =ROUND(K5+(K5*N5),-2) -> 7000
A6: Game programs | B6: 750 | C6: 800 | D6: 500 | E6: =ROUND(C6+(C6*F6),-2) -> 800 | G6: 800 | I6: 800 | K6: 800 | M6: 800
A7: Novelties | B7: 1100 | C7: 1200 | D7: 1000 | E7: 1200 | G7: 1200 | I7: 1200 | K7: 1200 | M7: 1200
A8: Parking revenue | B8: 0 | C8: 0 | D8: 0 | E8: 0 | G8: 0 | I8: 0 | K8: 0 | M8: 0
A11: Total Event Sales | B11: =SUM(B5:B10) -> 8350 | C11: 9000 | D11: =SUM(D5:D10) -> 6500 | E11: 9000 | G11: 9000 | I11: 9000 | K11: 9000 | M11: 9000

Sheet Royalties
B1: Royalties, Licensing, Advertisements and Sponsorships
C2: Current Year | D2: Current Year
B3: Previous Year | C3: Budget | D3: Actual | E3: Year 1 | F3: Yr1 % | G3: Year 2 | H3: Yr2 % | I3: Year 3 | J3: Yr3 % | K3: Year 4 | L3: Yr4 % | M3: Year 5 | N3: Yr5 %
A5: Advertisements | B5: 130000 | C5: 132000 | D5: 120000 | E5: =ROUND(C5+(C5*F5),-2) -> 138600 | F5: 0.05 | G5: =ROUND(E5+(E5*H5),-2) -> 152500 | H5: 0.1 | I5: =ROUND(G5+(G5*J5),-2) -> 167800 | J5: 0.1 | K5: =ROUND(I5+(I5*L5),-2) -> 184600 | L5: 0.1 | M5: =ROUND(K5+(K5*N5),-2) -> 203100 | N5: 0.1
A6: Corporate sponsorships | B6: 138000 | C6: 140000 | D6: 130000 | E6: =ROUND(C6+(C6*F6),-2) -> 154000 | F6: 0.1 | G6: 169400 | H6: 0.1 | I6: 186300 | J6: 0.1 | K6: 204900 | L6: 0.1 | M6: 225400 | N6: 0.1
A7: Licensing | B7: 9200 | C7: 10000 | D7: 8000 | E7: 10500 | F7: 0.05 | G7: 11000 | H7: 0.05 | I7: 11600 | J7: 0.05 | K7: 12200 | L7: 0.05 | M7: 12800 | N7: 0.05
A8: Royalties | B8: 11000 | C8: 12000 | D8: 12000 | E8: 12600 | F8: 0.05 | G8: 13200 | H8: 0.05 | I8: 13900 | J8: 0.05 | K8: 14600 | L8: 0.05 | M8: 15300 | N8: 0.05
A9: Trademarks | B9: 7200 | C9: 8000 | D9: 6000 | E9: 8400 | F9: 0.05 | G9: 8800 | H9: 0.05 | I9: 9200 | J9: 0.05 | K9: 9700 | L9: 0.05 | M9: 10200 | N9: 0.05
A10: In-Kind products/services | B10: 82000 | C10: 91000 | D10: 80000 | E10: 95600 | F10: 0.05 | G10: 100400 | H10: 0.05 | I10: 105400 | J10: 0.05 | K10: 110700 | L10: 0.05 | M10: 116200 | N10: 0.05
A12: Total Royalties | B12: =SUM(B5:B11) -> 377400 | C12: 393000 | D12: =SUM(D5:D11) -> 356000 | E12: 419700 | G12: 455300 | I12: 494200 | K12: 536700 | M12: 583000
A14: Total Royalties less In-Kind* | B14: =B12-B10 -> 295400 | C14: 302000 | D14: 276000 | E14: 324100 | G14: 354900 | I14: 388800 | K14: 426000 | M14: 466800
A16: *fills to Summary #2

Sheet Sports Camps
B1: Sports Camp Revenues
C2: Current Year | D2: Current Year
B3: Previous Year | C3: Budget | D3: Actual | E3: Year 1 | F3: Yr1 % | G3: Year 2 | H3: Yr2 % | I3: Year 3 | J3: Yr3 % | K3: Year 4 | L3: Yr4 % | M3: Year 5 | N3: Yr5 %
A5: Men's-Boy's Sports
A6: Basketball | B6: 25000 | C6: 25700 | D6: 20000 | E6: =ROUND(C6+(C6*F6),-2) -> 27000 | F6: 0.05 | G6: =ROUND(E6+(E6*H6),-2) -> 28400 | H6: 0.05 | I6: =ROUND(G6+(G6*J6),-2) -> 29800 | J6: 0.05 | K6: =ROUND(I6+(I6*L6),-2) -> 31300 | L6: 0.05 | M6: =ROUND(K6+(K6*N6),-2) -> 34400 | N6: 0.1
A7: Baseball | B7: 53800 | C7: 54500 | D7: 50000 | E7: =ROUND(C7+(C7*F7),-2) -> 57200 | F7: 0.05 | G7: 60100 | H7: 0.05 | I7: 63100 | J7: 0.05 | K7: 66300 | L7: 0.05 | M7: 72900 | N7: 0.1
A8: Football | B8: 96500 | C8: 97800 | D8: 90000 | E8: 102700 | F8: 0.05 | G8: 107800 | H8: 0.05 | I8: 113200 | J8: 0.05 | K8: 118900 | L8: 0.05 | M8: 130800 | N8: 0.1
A9: Gymnastics | B9: 0 | C9: 0 | D9: 0 | E9: 0 | G9: 0 | I9: 0 | K9: 0 | M9: 0
A10: Golf | B10: 0 | C10: 0 | D10: 0 | E10: 0 | G10: 0 | I10: 0 | K10: 0 | M10: 0
A11: Ice Hockey | B11: 0 | C11: 0 | D11: 0 | E11: 0 | G11: 0 | I11: 0 | K11: 0 | M11: 0
A12: Lacrosse | B12: 0 | C12: 0 | D12: 0 | E12: 0 | G12: 0 | I12: 0 | K12: 0 | M12: 0
A13: Soccer | B13: 12400 | C13: 12700 | D13: 11000 | E13: 13300 | F13: 0.05 | G13: 14000 | H13: 0.05 | I13: 14700 | J13: 0.05 | K13: 15400 | L13: 0.05 | M13: 16900 | N13: 0.1
A14: Swimming | B14: 9800 | C14: 10000 | D14: 9000 | E14: 10500 | F14: 0.05 | G14: 11000 | H14: 0.05 | I14: 11600 | J14: 0.05 | K14: 12200 | L14: 0.05 | M14: 13400 | N14: 0.1
A15: Tennis | B15: 0 | C15: 0 | D15: 0 | E15: 0 | G15: 0 | I15: 0 | K15: 0 | M15: 0
A16: Track and Field | B16: 0 | C16: 0 | D16: 0 | E16: 0 | G16: 0 | I16: 0 | K16: 0 | M16: 0
A17: Volleyball | B17: 0 | C17: 0 | D17: 0 | E17: 0 | G17: 0 | I17: 0 | K17: 0 | M17: 0
A18: Wrestling | B18: 0 | C18: 0 | D18: 0 | E18: 0 | G18: 0 | I18: 0 | K18: 0 | M18: 0
A19: Strength | B19: 0 | C19: 0 | D19: 0 | E19: 0 | G19: 0 | I19: 0 | K19: 0 | M19: 0
A20: Other | B20: 0 | C20: 0 | D20: 0 | E20: 0 | G20: 0 | I20: 0 | K20: 0 | M20: 0
A22: Women's-Girls Sports
A23: Basketball | B23: 250 | C23: 25700 | D23: 20000 | E23: =ROUND(C23+(C23*F23),-2) -> 27000 | F23: 0.05 | G23: 28400 | H23: 0.05 | I23: 29800 | J23: 0.05 | K23: 31300 | L23: 0.05 | M23: 34400 | N23: 0.1
A24: Field Hockey | B24: 0 | C24: 0 | D24: 0 | E24: 0 | G24: 0 | I24: 0 | K24: 0 | M24: 0
A25: Golf | B25: 0 | C25: 0 | D25: 0 | E25: 0 | G25: 0 | I25: 0 | K25: 0 | M25: 0
A26: Gymnastics | B26: 0 | C26: 0 | D26: 0 | E26: 0 | G26: 0 | I26: 0 | K26: 0 | M26: 0
A27: Ice Hockey | B27: 0 | C27: 0 | D27: 0 | E27: 0 | G27: 0 | I27: 0 | K27: 0 | M27: 0
A28: Lacrosse | B28: 0 | C28: 0 | D28: 0 | E28: 0 | G28: 0 | I28: 0 | K28: 0 | M28: 0
A29: Soccer | B29: 12500 | C29: 12700 | D29: 11000 | E29: 13300 | F29: 0.05 | G29: 14000 | H29: 0.05 | I29: 14700 | J29: 0.05 | K29: 15400 | L29: 0.05 | M29: 16900 | N29: 0.1
A30: Softball | B30: 19800 | C30: 20600 | D30: 18000 | E30: 21600 | F30: 0.05 | G30: 22700 | H30: 0.05 | I30: 23800 | J30: 0.05 | K30: 25000 | L30: 0.05 | M30: 27500 | N30: 0.1
A31: Swimming | B31: 9400 | C31: 10000 | D31: 9000 | E31: 10500 | F31: 0.05 | G31: 11000 | H31: 0.05 | I31: 11600 | J31: 0.05 | K31: 12200 | L31: 0.05 | M31: 13400 | N31: 0.1
A32: Tennis | B32: 0 | C32: 0 | D32: 0 | E32: 0 | G32: 0 | I32: 0 | K32: 0 | M32: 0
A33: Track and Field | B33: 0 | C33: 0 | D33: 0 | E33: 0 | G33: 0 | I33: 0 | K33: 0 | M33: 0
A34: Volleyball | B34: 0 | C34: 0 | D34: 0 | E34: 0 | G34: 0 | I34: 0 | K34: 0 | M34: 0
A35: Cheerleading | B35: 0 | C35: 0 | D35: 0 | E35: 0 | G35: 0 | I35: 0 | K35: 0 | M35: 0
A36: Dance | B36: 0 | C36: 0 | D36: 0 | E36: 0 | G36: 0 | I36: 0 | K36: 0 | M36: 0
A37: Strength | B37: 0 | C37: 0 | D37: 0 | E37: 0 | G37: 0 | I37: 0 | K37: 0 | M37: 0
A38: Other | B38: 0 | C38: 0 | D38: 0 | E38: 0 | G38: 0 | I38: 0 | K38: 0 | M38: 0
A40: Total Sports Camp Revenues | B40: =SUM(B6:B39) -> 239450 | C40: 269700 | D40: =SUM(D6:D39) -> 238000 | E40: 283100 | G40: 297400 | I40: 312300 | K40: 328000 | M40: 360600

Sheet Endowment&Investment
B1: Endowment and Investment Income
C2: Current Year | D2: Current Year
B3: Previous Year | C3: Budget | D3: Actual | E3: Year 1 | F3: Yr1 % | G3: Year 2 | H3: Yr2 % | I3: Year 3 | J3: Yr3 % | K3: Year 4 | L3: Yr4 % | M3: Year 5 | N3: Yr5 %
A5: Endowment income | B5: 0 | C5: 0 | D5: 0 | E5: =ROUND(C5+(C5*F5),-2) -> 0 | G5: =ROUND(E5+(E5*H5),-2) -> 0 | I5: =ROUND(G5+(G5*J5),-2) -> 0 | K5: =ROUND(I5+(I5*L5),-2) -> 0 | M5: =ROUND(K5+(K5*N5),-2) -> 0
A6: Investment income | B6: 0 | C6: 0 | D6: 0 | E6: =ROUND(C6+(C6*F6),-2) -> 0 | G6: =ROUND(E6+(E6*H6),-2) -> 0 | I6: =ROUND(G6+(G6*J6),-2) -> 0 | K6: =ROUND(I6+(I6*L6),-2) -> 0 | M6: =ROUND(K6+(K6*N6),-2) -> 0
A10: Total Endowment & Investment Income | B10: =SUM(B5:B9) -> 0 | C10: 0 | D10: =SUM(D5:D9) -> 0 | E10: 0 | G10: 0 | I10: 0 | K10: 0 | M10: 0

Sheet Other Revenue
B1: Other
C2: Current Year | D2: Current Year
B3: Previous Year | C3: Budget | D3: Actual | E3: Year 1 | F3: Yr1 % | G3: Year 2 | H3: Yr2 % | I3: Year 3 | J3: Yr3 % | K3: Year 4 | L3: Yr4 % | M3: Year 5 | N3: Yr5 %
A5: Other revenue | B5: 0 | C5: 0 | D5: 0 | E5: =ROUND(C5+(C5*F5),-2) -> 0 | G5: =ROUND(E5+(E5*H5),-2) -> 0 | I5: =ROUND(G5+(G5*J5),-2) -> 0 | K5: =ROUND(I5+(I5*L5),-2) -> 0 | M5: =ROUND(K5+(K5*N5),-2) -> 0
A6: Other revenue | B6: 0 | C6: 0 | D6: 0 | E6: =ROUND(C6+(C6*F6),-2) -> 0 | G6: 0 | I6: 0 | K6: 0 | M6: 0
A7: Other revenue | B7: 0 | C7: 0 | D7: 0 | E7: 0 | G7: 0 | I7: 0 | K7: 0 | M7: 0
A10: Total Other Revenue | B10: =SUM(B5:B9) -> 0 | C10: 0 | D10: =SUM(D5:D9) -> 0 | E10: 0 | G10: 0 | I10: 0 | K10: 0 | M10: 0

Sheet Student Fees
B1: Student Athletic Fees
C2: Current Year | D2: Current Year
B3: Previous Year | C3: Budget | D3: Actual | E3: Year 1 | F3: Yr1 % | G3: Year 2 | H3: Yr2 % | I3: Year 3 | J3: Yr3 % | K3: Year 4 | L3: Yr4 % | M3: Year 5 | N3: Yr5 %
A5: Student Athletic Fees | B5: 3010000 | C5: 3030500 | D5: 2900000 | E5: =ROUND(C5+(C5*F5),-2) -> 3227500 | F5: 0.065 | G5: =ROUND(E5+(E5*H5),-2) -> 3437300 | H5: 0.065 | I5: =ROUND(G5+(G5*J5),-2) -> 3660700 | J5: 0.065 | K5: =ROUND(I5+(I5*L5),-2) -> 3862000 | L5: 0.055 | M5: =ROUND(K5+(K5*N5),-2) -> 4132300 | N5: 0.07
A8: Total Student Athletic Fees | B8: =SUM(B5:B7) -> 3010000 | C8: 3030500 | D8: =SUM(D5:D7) -> 2900000 | E8: 3227500 | G8: 3437300 | I8: 3660700 | K8: 3862000 | M8: 4132300

Sheet State-Government Support
B1: State/Government Support
C2: Current Year | D2: Current Year
B3: Previous Year | C3: Budget | D3: Actual | E3: Year 1 | F3: Yr1 % | G3: Year 2 | H3: Yr2 % | I3: Year 3 | J3: Yr3 % | K3: Year 4 | L3: Yr4 % | M3: Year 5 | N3: Yr5 %
A5: Federal level | B5: 0 | C5: 0 | D5: 0 | E5: =ROUND(C5+(C5*F5),-2) -> 0 | G5: =ROUND(E5+(E5*H5),-2) -> 0 | I5: =ROUND(G5+(G5*J5),-2) -> 0 | K5: =ROUND(I5+(I5*L5),-2) -> 0 | M5: =ROUND(K5+(K5*N5),-2) -> 0
A6: Municipal level | B6: 0 | C6: 0 | D6: 0 | E6: =ROUND(C6+(C6*F6),-2) -> 0 | G6: 0 | I6: 0 | K6: 0 | M6: 0
A7: State level | B7: 0 | C7: 0 | D7: 0 | E7: 0 | G7: 0 | I7: 0 | K7: 0 | M7: 0
A10: Total State/Government Support | B10: =SUM(B5:B9) -> 0 | C10: 0 | D10: =SUM(D5:D9) -> 0 | E10: 0 | G10: 0 | I10: 0 | K10: 0 | M10: 0

Sheet General Fund
B1: General Fund (Institutional) Support
C2: Current Year | D2: Current Year
B3: Previous Year | C3: Budget | D3: Actual | E3: Year 1 | F3: Yr1 % | G3: Year 2 | H3: Yr2 % | I3: Year 3 | J3: Yr3 % | K3: Year 4 | L3: Yr4 % | M3: Year 5 | N3: Yr5 %
A5: General Institutional Support | B5: 0 | C5: 0 | D5: 0 | E5: =ROUND(C5+(C5*F5),-2) -> 0 | G5: =ROUND(E5+(E5*H5),-2) -> 0 | I5: =ROUND(G5+(G5*J5),-2) -> 0 | K5: =ROUND(I5+(I5*L5),-2) -> 0 | M5: =ROUND(K5+(K5*N5),-2) -> 0
A6: Tuition | B6: 85000 | C6: 92000 | D6: 80000 | E6: =ROUND(C6+(C6*F6),-2) -> 96600 | F6: 0.05 | G6: 101400 | H6: 0.05 | I6: 106500 | J6: 0.05 | K6: 111800 | L6: 0.05 | M6: 117400 | N6: 0.05
A7: Tuition transfers | B7: 1900000 | C7: 2000000 | D7: 1800000 | E7: 2100000 | F7: 0.05 | G7: 2205000 | H7: 0.05 | I7: 2315300 | J7: 0.05 | K7: 2407900 | L7: 0.04 | M7: 2504200 | N7: 0.04
A8: Tuition waivers | B8: 65000 | C8: 69000 | D8: 65000 | E8: 72500 | F8: 0.05 | G8: 76100 | H8: 0.05 | I8: 79900 | J8: 0.05 | K8: 83900 | L8: 0.05 | M8: 88100 | N8: 0.05
A9: Other | B9: 0 | C9: 0 | D9: 0 | E9: 0 | G9: 0 | I9: 0 | K9: 0 | M9: 0
A12: Total General Fund(Institutional) Support | B12: =SUM(B5:B11) -> 2050000 | C12: 2161000 | D12: =SUM(D5:D11) -> 1945000 | E12: 2269100 | G12: 2382500 | I12: 2501700 | K12: 2603600 | M12: 2709700

Sheet Indirect Inst. Support
B1: Indirect Institutional Support
C2: Current Year | D2: Current Year
B3: Previous Year | C3: Budget | D3: Actual | E3: Year 1 | F3: Yr1 % | G3: Year 2 | H3: Yr2 % | I3: Year 3 | J3: Yr3 % | K3: Year 4 | L3: Yr4 % | M3: Year 5 | N3: Yr5 %
A5: Administrative Costs | B5: 0 | C5: 0 | D5: 0 | E5: =ROUND(C5+(C5*F5),-2) -> 0 | G5: =ROUND(E5+(E5*H5),-2) -> 0 | I5: =ROUND(G5+(G5*J5),-2) -> 0 | K5: =ROUND(I5+(I5*L5),-2) -> 0 | M5: =ROUND(K5+(K5*N5),-2) -> 0
A6: Debt Service | B6: 80000 | C6: 80000 | D6: 70000 | E6: =ROUND(C6+(C6*F6),-2) -> 80800 | F6: 0.01 | G6: 81600 | H6: 0.01 | I6: 85700 | J6: 0.05 | K6: 90000 | L6: 0.05 | M6: 94500 | N6: 0.05
A7: Depreciation | B7: 2000 | C7: 2000 | D7: 1500 | E7: 2100 | F7: 0.03 | G7: 2200 | H7: 0.03 | I7: 2300 | J7: 0.03 | K7: 2400 | L7: 0.03 | M7: 2500 | N7: 0.03
A8: Facilities & Maintenance | B8: 3100 | C8: 3400 | D8: 3000 | E8: 3500 | F8: 0.03 | G8: 3600 | H8: 0.02 | I8: 3700 | J8: 0.02 | K8: 3800 | L8: 0.02 | M8: 3900 | N8: 0.02
A9: Grounds & Field Maintenance | B9: 10000 | C9: 10000 | D9: 8000 | E9: 10000 | G9: 10000 | I9: 10000 | K9: 10000 | M9: 10000
A10: Risk Management | B10: 0 | C10: 0 | D10: 0 | E10: 0 | G10: 0 | I10: 0 | K10: 0 | M10: 0
A11: Security | B11: 10000 | C11: 10000 | D11: 7000 | E11: 10000 | G11: 10000 | I11: 10000 | K11: 10000 | M11: 10000
A12: Utilities | B12: 0 | C12: 0 | D12: 0 | E12: 0 | G12: 0 | I12: 0 | K12: 0 | M12: 0
A13: Other | B13: 0 | C13: 0 | D13: 0 | E13: 0 | G13: 0 | I13: 0 | K13: 0 | M13: 0
A15: Total Indirect Facilities & Administrative Support | B15: =SUM(B5:B14) -> 105100 | C15: 105400 | D15: =SUM(D5:D14) -> 89500 | E15: 106400 | G15: 107400 | I15: 111700 | K15: 116200 | M15: 120900

Sheet Athletic Aid
B1: Athletic Student Aid
C2: Current Year | D2: Current Year
B3: Previous Year | C3: Budget | D3: Actual | E3: Year 1 | F3: Yr1 % | G3: Year 2 | H3: Yr2 % | I3: Year 3 | J3: Yr3 % | K3: Year 4 | L3: Yr4 % | M3: Year 5 | N3: Yr5 %
A5: Men's Sports
A6: Basketball | B6: 305000 | C6: 268000 | D6: 280000 | E6: =ROUND(C6+(C6*F6),-2) -> 273400 | F6: 0.02 | G6: =ROUND(E6+(E6*H6),-2) -> 287100 | H6: 0.05 | I6: =ROUND(G6+(G6*J6),-2) -> 301500 | J6: 0.05 | K6: =ROUND(I6+(I6*L6),-2) -> 316600 | L6: 0.05 | M6: =ROUND(K6+(K6*N6),-2) -> 332400 | N6: 0.05
A7: Baseball | B7: 0 | C7: 0 | D7: 0 | E7: =ROUND(C7+(C7*F7),-2) -> 0 | G7: 0 | I7: 0 | K7: 0 | M7: 0
A8: Football | B8: 800000 | C8: 860000 | D8: 800000 | E8: 881500 | F8: 0.025 | G8: 903500 | H8: 0.025 | I8: 926100 | J8: 0.025 | K8: 949300 | L8: 0.025 | M8: 973000 | N8: 0.025
A9: Gymnastics | B9: 0 | C9: 0 | D9: 0 | E9: 0 | G9: 0 | I9: 0 | K9: 0 | M9: 0
A10: Golf | B10: 55000 | C10: 72000 | D10: 60000 | E10: 74200 | F10: 0.03 | G10: 75700 | H10: 0.02 | I10: 77200 | J10: 0.02 | K10: 78700 | L10: 0.02 | M10: 80300 | N10: 0.02
A11: Ice Hockey | B11: 0 | C11: 0 | D11: 0 | E11: 0 | G11: 0 | I11: 0 | K11: 0 | M11: 0
A12: Lacrosse | B12: 0 | C12: 0 | D12: 0 | E12: 0 | G12: 0 | I12: 0 | K12: 0 | M12: 0
A13: Soccer | B13: 92000 | C13: 168000 | D13: 152000 | E13: 173000 | F13: 0.03 | G13: 176500 | H13: 0.02 | I13: 180000 | J13: 0.02 | K13: 183600 | L13: 0.02 | M13: 187300 | N13: 0.02
A14: Swimming | B14: 202000 | C14: 216000 | D14: 203000 | E14: 222500 | F14: 0.03 | G14: 227000 | H14: 0.02 | I14: 231500 | J14: 0.02 | K14: 236100 | L14: 0.02 | M14: 240800 | N14: 0.02
A15: Tennis | B15: 42000 | C15: 96000 | D15: 90000 | E15: 98900 | F15: 0.03 | G15: 100900 | H15: 0.02 | I15: 102900 | J15: 0.02 | K15: 105000 | L15: 0.02 | M15: 107100 | N15: 0.02
A16: Track and Field | B16: 26000 | C16: 168000 | D16: 160000 | E16: 173000 | F16: 0.03 | G16: 176500 | H16: 0.02 | I16: 180000 | J16: 0.02 | K16: 183600 | L16: 0.02 | M16: 187300 | N16: 0.02
A17: Volleyball | B17: 0 | C17: 0 | D17: 0 | E17: 0 | G17: 0 | I17: 0 | K17: 0 | M17: 0
A18: Wrestling | B18: 0 | C18: 0 | D18: 0 | E18: 0 | G18: 0 | I18: 0 | K18: 0 | M18: 0
A19: Other | B19: 0 | C19: 0 | D19: 0 | E19: 0 | G19: 0 | I19: 0 | K19: 0 | M19: 0
A20: Total Male Sports Student Aid | B20: =SUM(B6:B19) -> 1522000 | C20: 1848000 | D20: 1745000 | E20: 1896500 | G20: 1947200 | I20: 1999200 | K20: 2052900 | M20: 2108200
A22: Women's Sports
A23: Basketball | B23: 200000 | C23: 192000 | D23: 180000 | E23: =ROUND(C23+(C23*F23),-2) -> 195800 | F23: 0.02 | G23: 201700 | H23: 0.03 | I23: 207800 | J23: 0.03 | K23: 214000 | L23: 0.03 | M23: 220400 | N23: 0.03
A24: Field Hockey | B24: 0 | C24: 0 | D24: 0 | E24: 0 | G24: 0 | I24: 0 | K24: 0 | M24: 0
A25: Golf | B25: 0 | C25: 0 | D25: 0 | E25: 0 | G25: 0 | I25: 0 | K25: 0 | M25: 0
A26: Gymnastics | B26: 0 | C26: 0 | D26: 0 | E26: 0 | G26: 0 | I26: 0 | K26: 0 | M26: 0
A27: Ice Hockey | B27: 0 | C27: 0 | D27: 0 | E27: 0 | G27: 0 | I27: 0 | K27: 0 | M27: 0
A28: Lacrosse | B28: 0 | C28: 0 | D28: 0 | E28: 0 | G28: 0 | I28: 0 | K28: 0 | M28: 0
A29: Soccer | B29: 111000 | C29: 192000 | D29: 180000 | E29: 195800 | F29: 0.02 | G29: 199700 | H29: 0.02 | I29: 203700 | J29: 0.02 | K29: 207800 | L29: 0.02 | M29: 212000 | N29: 0.02
A30: Softball | B30: 62000 | C30: 168000 | D30: 150000 | E30: 171400 | F30: 0.02 | G30: 174800 | H30: 0.02 | I30: 178300 | J30: 0.02 | K30: 181900 | L30: 0.02 | M30: 185500 | N30: 0.02
A31: Swimming | B31: 203000 | C31: 228000 | D31: 200000 | E31: 232600 | F31: 0.02 | G31: 237300 | H31: 0.02 | I31: 242000 | J31: 0.02 | K31: 246800 | L31: 0.02 | M31: 251700 | N31: 0.02
A32: Tennis | B32: 60000 | C32: 108000 | D32: 100000 | E32: 110200 | F32: 0.02 | G32: 112400 | H32: 0.02 | I32: 114600 | J32: 0.02 | K32: 116900 | L32: 0.02 | M32: 119200 | N32: 0.02
A33: Track and Field | B33: 0 | C33: 0 | D33: 0 | E33: 0 | G33: 0 | I33: 0 | K33: 0 | M33: 0
A34: Volleyball | B34: 103000 | C34: 192000 | D34: 100000 | E34: 195800 | F34: 0.02 | G34: 199700 | H34: 0.02 | I34: 203700 | J34: 0.02 | K34: 207800 | L34: 0.02 | M34: 212000 | N34: 0.02
A35: Other | B35: 0 | C35: 0 | D35: 0 | E35: 0 | G35: 0 | I35: 0 | K35: 0 | M35: 0
A36: Total Female Sports Student Aid | B36: =SUM(B23:B35) -> 739000 | C36: 1080000 | D36: 910000 | E36: 1101600 | G36: 1125600 | I36: 1150100 | K36: 1175200 | M36: 1200800
A38: Other Aid
A39: Graduate Assistants | B39: 0 | C39: 0 | D39: 0 | E39: =ROUND(C39+(C39*F39),-2) -> 0 | G39: 0 | I39: 0 | K39: 0 | M39: 0
A40: Athletic Trainers | B40: 0 | C40: 0 | D40: 0 | E40: 0 | G40: 0 | I40: 0 | K40: 0 | M40: 0
A41: Managers | B41: 0 | C41: 0 | D41: 0 | E41: 0 | G41: 0 | I41: 0 | K41: 0 | M41: 0
A42: Summer School | B42: 0 | C42: 0 | D42: 0 | E42: 0 | G42: 0 | I42: 0 | K42: 0 | M42: 0
A43: 5th Year | B43: 0 | C43: 0 | D43: 0 | E43: 0 | G43: 0 | I43: 0 | K43: 0 | M43: 0
A44: Other | B44: 0 | C44: 0 | D44: 0 | E44: 0 | G44: 0 | I44: 0 | K44: 0 | M44: 0
A45: Total Other Aid | B45: =SUM(B39:B44) -> 0 | C45: 0 | D45: 0 | E45: 0 | G45: 0 | I45: 0 | K45: 0 | M45: 0
A47: Total Student Aid | B47: =B20+B36+B45 -> 2261000 | C47: =C20+C36+C45 -> 2928000 | D47: =D20+D36+D45 -> 2655000 | E47: =E20+E36+E45 -> 2998100 | G47: =G20+G36+G45 -> 3072800 | I47: =I20+I36+I45 -> 3149300 | K47: =K20+K36+K45 -> 3228100 | M47: =M20+M36+M45 -> 3309000

Sheet Coaching Salaries
B1: Coaching Salaries, Benefits & Bonuses Paid by the University and Related Entities
C2: Current Year | D2: Current Year
B3: Previous Year | C3: Budget | D3: Actual | E3: Year 1 | F3: Yr1 % | G3: Year 2 | H3: Yr2 % | I3: Year 3 | J3: Yr3 % | K3: Year 4 | L3: Yr4 % | M3: Year 5 | N3: Yr5 %
A4: Men's Sports
A5: Basketball
A6: Salaries | B6: 1400000 | C6: 1500000 | D6: 1300000 | E6: =ROUND(C6+(C6*F6),-2) -> 1575000 | F6: 0.05 | G6: =ROUND(E6+(E6*H6),-2) -> 1653800 | H6: 0.05 | I6: =ROUND(G6+(G6*J6),-2) -> 1736500 | J6: 0.05 | K6: =ROUND(I6+(I6*L6),-2) -> 1823300 | L6: 0.05 | M6: =ROUND(K6+(K6*N6),-2) -> 1914500 | N6: 0.05
A7: Fringe Benefits | B7: 560000 | C7: 600000 | D7: 400000 | E7: =ROUND(C7+(C7*F7),-2) -> 630000 | F7: 0.05 | G7: 661500 | H7: 0.05 | I7: 694600 | J7: 0.05 | K7: 729300 | L7: 0.05 | M7: 765800 | N7: 0.05
A8: Other Benefits | B8: 0 | C8: 0 | D8: 0 | E8: 0 | G8: 0 | I8: 0 | K8: 0 | M8: 0
A9: Bonuses | B9: 40000 | C9: 50000 | D9: 40000 | E9: 51000 | F9: 0.02 | G9: 52000 | H9: 0.02 | I9: 53000 | J9: 0.02 | K9: 54100 | L9: 0.02 | M9: 55200 | N9: 0.02
A10: Other | B10: 0 | C10: 0 | D10: 0 | E10: 0 | G10: 0 | I10: 0 | K10: 0 | M10: 0
A11: Total Men's Basketball Compensation | B11: =SUM(B6:B10) -> 2000000 | C11: 2150000 | D11: 1740000 | E11: 2256000 | G11: 2367300 | I11: 2484100 | K11: 2606700 | M11: 2735500
A12: Baseball
A13: Salaries | B13: 0 | C13: 0 | D13: 0 | E13: =ROUND(C13+(C13*F13),-2) -> 0 | G13: 0 | I13: 0 | K13: 0 | M13: 0
A14: Fringe Benefits | B14: 0 | C14: 0 | D14: 0 | E14: 0 | G14: 0 | I14: 0 | K14: 0 | M14: 0
A15: Other Benefits | B15: 0 | C15: 0 | D15: 0 | E15: 0 | G15: 0 | I15: 0 | K15: 0 | M15: 0
A16: Bonuses | B16: 0 | C16: 0 | D16: 0 | E16: 0 | G16: 0 | I16: 0 | K16: 0 | M16: 0
A17: Other | B17: 0 | C17: 0 | D17: 0 | E17: 0 | G17: 0 | I17: 0 | K17: 0 | M17: 0
A18: Total Baseball Compensation | B18: =SUM(B13:B17) -> 0 | C18: 0 | D18: 0 | E18: 0 | G18: 0 | I18: 0 | K18: 0 | M18: 0
A19: Football
A20: Salaries | B20: 2400000 | C20: 2500000 | D20: 2200000 | E20: =ROUND(C20+(C20*F20),-2) -> 2625000 | F20: 0.05 | G20: 2756300 | H20: 0.05 | I20: 2894100 | J20: 0.05 | K20: 3038800 | L20: 0.05 | M20: 3190700 | N20: 0.05
A21: Fringe Benefits | B21: 960000 | C21: 1000000 | D21: 800000 | E21: 1050000 | F21: 0.05 | G21: 1102500 | H21: 0.05 | I21: 1157600 | J21: 0.05 | K21: 1215500 | L21: 0.05 | M21: 1276300 | N21: 0.05
A22: Other Benefits | B22: 0 | C22: 0 | D22: 0 | E22: 0 | G22: 0 | I22: 0 | K22: 0 | M22: 0
A23: Bonuses | B23: 90000 | C23: 100000 | D23: 90000 | E23: 102000 | F23: 0.02 | G23: 104000 | H23: 0.02 | I23: 106100 | J23: 0.02 | K23: 108200 | L23: 0.02 | M23: 110400 | N23: 0.02
A24: Other | B24: 0 | C24: 0 | E24: 0 | G24: 0 | I24: 0 | K24: 0 | M24: 0
A25: Total Football Compensation | B25: =SUM(B20:B24) -> 3450000 | C25: 3600000 | D25: 3090000 | E25: 3777000 | G25: 3962800 | I25: 4157800 | K25: 4362500 | M25: 4577400
A26: Gymnastics
A27: Salaries | B27: 0 | C27: 0 | D27: 0 | E27: =ROUND(C27+(C27*F27),-2) -> 0 | G27: 0 | I27: 0 | K27: 0 | M27: 0
A28: Fringe Benefits | B28: 0 | C28: 0 | D28: 0 | E28: 0 | G28: 0 | I28: 0 | K28: 0 | M28: 0
A29: Other Benefits | B29: 0 | C29: 0 | D29: 0 | E29: 0 | G29: 0 | I29: 0 | K29: 0 | M29: 0
A30: Bonuses | B30: 0 | C30: 0 | D30: 0 | E30: 0 | G30: 0 | I30: 0 | K30: 0 | M30: 0
A31: Other | B31: 0 | C31: 0 | D31: 0 | E31: 0 | G31: 0 | I31: 0 | K31: 0 | M31: 0
A32: Total Gymnastics Compensation | B32: =SUM(B27:B31) -> 0 | C32: 0 | D32: 0 | E32: 0 | G32: 0 | I32: 0 | K32: 0 | M32: 0
A33: Golf
A34: Salaries | B34: 37000 | C34: 38000 | D34: 28000 | E34: =ROUND(C34+(C34*F34),-2) -> 39900 | F34: 0.05 | G34: 41900 | H34: 0.05 | I34: 44000 | J34: 0.05 | K34: 46200 | L34: 0.05 | M34: 48500 | N34: 0.05
A35: Fringe Benefits | B35: 11100 | C35: 11400 | D35: 8000 | E35: 12000 | F35: 0.05 | G35: 12600 | H35: 0.05 | I35: 13200 | J35: 0.05 | K35: 13900 | L35: 0.05 | M35: 14600 | N35: 0.05
A36: Other Benefits | B36: 0 | C36: 0 | D36: 0 | E36: 0 | G36: 0 | I36: 0 | K36: 0 | M36: 0
A37: Bonuses | B37: 2000 | C37: 2000 | D37: 0 | E37: 2000 | F37: 0.02 | G37: 2000 | H37: 0.02 | I37: 2000 | J37: 0.02 | K37: 2000 | L37: 0.02 | M37: 2000 | N37: 0.02
A38: Other | B38: 0 | C38: 0 | D38: 0 | E38: 0 | G38: 0 | I38: 0 | K38: 0 | M38: 0
A39: Total Golf Compensation | B39: =SUM(B34:B38) -> 50100 | C39: 51400 | D39: 36000 | E39: 53900 | G39: 56500 | I39: 59200 | K39: 62100 | M39: 65100
A40: Ice Hockey
A41: Salaries | B41: 0 | C41: 0 | D41: 0 | E41: =ROUND(C41+(C41*F41),-2) -> 0 | G41: 0 | I41: 0 | K41: 0 | M41: 0
A42: Fringe Benefits | B42: 0 | C42: 0 | D42: 0 | E42: 0 | G42: 0 | I42: 0 | K42: 0 | M42: 0
A43: Other Benefits | B43: 0 | C43: 0 | D43: 0 | E43: 0 | G43: 0 | I43: 0 | K43: 0 | M43: 0
A44: Bonuses | B44: 0 | C44: 0 | D44: 0 | E44: 0 | G44: 0 | I44: 0 | K44: 0 | M44: 0
A45: Other | B45: 0 | C45: 0 | D45: 0 | E45: 0 | G45: 0 | I45: 0 | K45: 0 | M45: 0
A46: Total Ice Hockey Compensation | B46: =SUM(B41:B45) -> 0 | C46: 0 | D46: 0 | E46: 0 | G46: 0 | I46: 0 | K46: 0 | M46: 0
A47: Lacrosse
A48: Salaries | B48: 0 | C48: 0 | D48: 0 | E48: =ROUND(C48+(C48*F48),-2) -> 0 | G48: 0 | I48: 0 | K48: 0 | M48: 0
A49: Fringe Benefits | B49: 0 | C49: 0 | D49: 0 | E49: 0 | G49: 0 | I49: 0 | K49: 0 | M49: 0
A50: Other Benefits | B50: 0 | C50: 0 | D50: 0 | E50: 0 | G50: 0 | I50: 0 | K50: 0 | M50: 0
A51: Bonuses | B51: 0 | C51: 0 | D51: 0 | E51: 0 | G51: 0 | I51: 0 | K51: 0 | M51: 0
A52: Other | B52: 0 | C52: 0 | D52: 0 | E52: 0 | G52: 0 | I52: 0 | K52: 0 | M52: 0
A53: Total Lacrosse Compensation | B53: =SUM(B48:B52) -> 0 | C53: 0 | D53: 0 | E53: 0 | G53: 0 | I53: 0 | K53: 0 | M53: 0
A54: Soccer
A55: Salaries | B55: 29000 | C55: 31000 | D55: 22000 | E55: =ROUND(C55+(C55*F55),-2) -> 32600 | F55: 0.05 | G55: 34200 | H55: 0.05 | I55: 35900 | J55: 0.05 | K55: 37700 | L55: 0.05 | M55: 39600 | N55: 0.05
A56: Fringe Benefits | B56: 8700 | C56: 9300 | D56: 6600 | E56: 9800 | F56: 0.05 | G56: 10300 | H56: 0.05 | I56: 10800 | J56: 0.05 | K56: 11300 | L56: 0.05 | M56: 11900 | N56: 0.05
A57: Other Benefits | B57: 0 | C57: 0 | D57: 0 | E57: 0 | G57: 0 | I57: 0 | K57: 0 | M57: 0
A58: Bonuses | B58: 2000 | C58: 2000 | D58: 0 | E58: 2000 | F58: 0.02 | G58: 2000 | H58: 0.02 | I58: 2000 | J58: 0.02 | K58: 2000 | L58: 0.02 | M58: 2000 | N58: 0.02
A59: Other | B59: 0 | C59: 0 | D59: 0 | E59: 0 | G59: 0 | I59: 0 | K59: 0 | M59: 0
A60: Total Soccer Compensation | B60: =SUM(B55:B59) -> 39700 | C60: 42300 | D60: 28600 | E60: 44400 | G60: 46500 | I60: 48700 | K60: 51000 | M60: 53500
A61: Swimming
A62: Salaries | B62: 57000 | C62: 59000 | D62: 42000 | E62: =ROUND(C62+(C62*F62),-2) -> 62000 | F62: 0.05 | G62: 65100 | H62: 0.05 | I62: 68400 | J62: 0.05 | K62: 71800 | L62: 0.05 | M62: 75400 | N62: 0.05
A63: Fringe Benefits | B63: 17100 | C63: 17700 | D63: 12600 | E63: 18600 | F63: 0.05 | G63: 19500 | H63: 0.05 | I63: 20500 | J63: 0.05 | K63: 21500 | L63: 0.05 | M63: 22600 | N63: 0.05
A64: Other Benefits | B64: 0 | C64: 0 | D64: 0 | E64: 0 | G64: 0 | I64: 0 | K64: 0 | M64: 0
A65: Bonuses | B65: 4000 | C65: 4200 | D65: 0 | E65: 4300 | F65: 0.02 | G65: 4400 | H65: 0.02 | I65: 4500 | J65: 0.02 | K65: 4600 | L65: 0.02 | M65: 4700 | N65: 0.02
A66: Other | B66: 0 | C66: 0 | D66: 0 | E66: 0 | G66: 0 | I66: 0 | K66: 0 | M66: 0
A67: Total Swimming Compensation | B67: =SUM(B62:B66) -> 78100 | C67: 80900 | D67: 54600 | E67: 84900 | G67: 89000 | I67: 93400 | K67: 97900 | M67: 102700
A68: Tennis
A69: Salaries | B69: 16000 | C69: 18000 | D69: 12000 | E69: =ROUND(C69+(C69*F69),-2) -> 18900 | F69: 0.05 | G69: 19800 | H69: 0.05 | I69: 20800 | J69: 0.05 | K69: 21800 | L69: 0.05 | M69: 22900 | N69: 0.05
A70: Fringe Benefits | B70: 4800 | C70: 5400 | D70: 3600 | E70: 5700 | F70: 0.05 | G70: 6000 | H70: 0.05 | I70: 6300 | J70: 0.05 | K70: 6600 | L70: 0.05 | M70: 6900 | N70: 0.05
A71: Other Benefits | B71: 0 | C71: 0 | D71: 0 | E71: 0 | G71: 0 | I71: 0 | K71: 0 | M71: 0
A72: Bonuses | B72: 0 | C72: 0 | D72: 0 | E72: 0 | G72: 0 | I72: 0 | K72: 0 | M72: 0
A73: Other | B73: 0 | C73: 0 | D73: 0 | E73: 0 | G73: 0 | I73: 0 | K73: 0 | M73: 0
A74: Total Tennis Compensation | B74: =SUM(B69:B73) -> 20800 | C74: 23400 | D74: 15600 | E74: 24600 | G74: 25800 | I74: 27100 | K74: 28400 | M74: 29800
A75: Track and Field
A76: Salaries | B76: 9500 | C76: 9500 | D76: 7000 | E76: =ROUND(C76+(C76*F76),-2) -> 10000 | F76: 0.05 | G76: 10500 | H76: 0.05 | I76: 11000 | J76: 0.05 | K76: 11600 | L76: 0.05 | M76: 12200 | N76: 0.05
A77: Fringe Benefits | B77: 2850 | C77: 2850 | D77: 2100 | E77: 3000 | F77: 0.05 | G77: 3200 | H77: 0.05 | I77: 3400 | J77: 0.05 | K77: 3600 | L77: 0.05 | M77: 3800 | N77: 0.05
A78: Other Benefits | B78: 0 | C78: 0 | D78: 0 | E78: 0 | G78: 0 | I78: 0 | K78: 0 | M78: 0
A79: Bonuses | B79: 0 | C79: 0 | D79: 0 | E79: 0 | G79: 0 | I79: 0 | K79: 0 | M79: 0
A80: Other | B80: 0 | C80: 0 | D80: 0 | E80: 0 | G80: 0 | I80: 0 | K80: 0 | M80: 0
A81: Total Track and Field Compensation | B81: =SUM(B76:B80) -> 12350 | C81: 12350 | D81: 9100 | E81: 13000 | G81: 13700 | I81: 14400 | K81: 15200 | M81: 16000
A82: Volleyball
A83: Salaries | B83: 0 | C83: 0 | D83: 0 | E83: =ROUND(C83+(C83*F83),-2) -> 0 | G83: 0 | I83: 0 | K83: 0 | M83: 0
A84: Fringe Benefits | B84: 0 | C84: 0 | D84: 0 | E84: 0 | G84: 0 | I84: 0 | K84: 0 | M84: 0
A85: Other Benefits | B85: 0 | C85: 0 | D85: 0 | E85: 0 | G85: 0 | I85: 0 | K85: 0 | M85: 0
A86: Bonuses | B86: 0 | C86: 0 | D86: 0 | E86: 0 | G86: 0 | I86: 0 | K86: 0 | M86: 0
A87: Other | B87: 0 | C87: 0 | D87: 0 | E87: 0 | G87: 0 | I87: 0 | K87: 0 | M87: 0
A88: Total Volleyball Compensation | B88: =SUM(B83:B87) -> 0 | C88: 0 | D88: 0 | E88: 0 | G88: 0 | I88: 0 | K88: 0 | M88: 0
A89: Wrestling
A90: Salaries | B90: 0 | C90: 0 | D90: 0 | E90: =ROUND(C90+(C90*F90),-2) -> 0 | G90: 0 | I90: 0 | K90: 0 | M90: 0
A91: Fringe Benefits | B91: 0 | C91: 0 | D91: 0 | E91: 0 | G91: 0 | I91: 0 | K91: 0 | M91: 0
A92: Other Benefits | B92: 0 | C92: 0 | D92: 0 | E92: 0 | G92: 0 | I92: 0 | K92: 0 | M92: 0
A93: Bonuses | B93: 0 | C93: 0 | D93: 0 | E93: 0 | G93: 0 | I93: 0 | K93: 0 | M93: 0
A94: Other | B94: 0 | C94: 0 | D94: 0 | E94: 0 | G94: 0 | I94: 0 | K94: 0 | M94: 0
A95: Total Wrestling Compensation | B95: =SUM(B90:B94) -> 0 | C95: 0 | D95: 0 | E95: 0 | G95: 0 | I95: 0 | K95: 0 | M95: 0
A96: Other
A97: Salaries | B97: 0 | C97: 0 | D97: 0 | E97: =ROUND(C97+(C97*F97),-2) -> 0 | G97: 0 | I97: 0 | K97: 0 | M97: 0
A98: Fringe Benefits | B98: 0 | C98: 0 | D98: 0 | E98: 0 | G98: 0 | I98: 0 | K98: 0 | M98: 0
A99: Other Benefits | B99: 0 | C99: 0 | D99: 0 | E99: 0 | G99: 0 | I99: 0 | K99: 0 | M99: 0
A100: Bonuses | B100: 0 | C100: 0 | D100: 0 | E100: 0 | G100: 0 | I100: 0 | K100: 0 | M100: 0
A101: Other | B101: 0 | C101: 0 | D101: 0 | E101: 0 | G101: 0 | I101: 0 | K101: 0 | M101: 0
A102: Total Other Compensation | B102: =SUM(B97:B101) -> 0 | C102: 0 | D102: 0 | E102: 0 | G102: 0 | I102: 0 | K102: 0 | M102: 0
A103: Total Coaching Salaries-Men's Sports | B103: =B11+B18+B25+B32+B39+B46+B53+B60+B67+B74+B81+B88+B95+B102 -> 5651050 | C103: 5960350 | D103: 4973900 | E103: 6253800 | G103: 6561600 | I103: 6884700 | K103: 7223800 | M103: 7580000
C105: Current Year | D105: Current Year
B106: Previous Year | C106: Budget | D106: Actual | E106: Year 1 | G106: Year 1 | I106: Year 1 | K106: Year 1 | M106: Year 1
A107: Women's Sports
A108: Basketball
A109: Salaries | B109: 74500 | C109: 75900 | D109: 62500 | E109: =ROUND(C109+(C109*F109),-2) -> 79700 | F109: 0.05 | G109: 83700 | H109: 0.05 | I109: 87900 | J109: 0.05 | K109: 92300 | L109: 0.05 | M109: 96900 | N109: 0.05
A110: Fringe Benefits | B110: 22350 | C110: 22770 | D110: 18750 | E110: 23900 | F110: 0.05 | G110: 25100 | H110: 0.05 | I110: 26400 | J110: 0.05 | K110: 27700 | L110: 0.05 | M110: 29100 | N110: 0.05
A111: Other Benefits | B111: 0 | C111: 0 | D111: 0 | E111: 0 | G111: 0 | I111: 0 | K111: 0 | M111: 0
A112: Bonuses | B112: 2500 | C112: 2500 | D112: 0 | E112: 2600 | F112: 0.02 | G112: 2700 | H112: 0.02 | I112: 2800 | J112: 0.02 | K112: 2900 | L112: 0.02 | M112: 3000 | N112: 0.02
A113: Other | B113: 0 | C113: 0 | D113: 0 | E113: 0 | G113: 0 | I113: 0 | K113: 0 | M113: 0
A114: Total Women's Basketball Compensation | B114: =SUM(B109:B113) -> 99350 | C114: 101170 | D114: 81250 | E114: 106200 | G114: 111500 | I114: 117100 | K114: 122900 | M114: 129000
A115: Field Hockey
A116: Salaries | B116: 0 | C116: 0 | D116: 0 | E116: =ROUND(C116+(C116*F116),-2) -> 0 | G116: 0 | I116: 0 | K116: 0 | M116: 0
A117: Fringe Benefits | B117: 0 | C117: 0 | D117: 0 | E117: 0 | G117: 0 | I117: 0 | K117: 0 | M117: 0
A118: Other Benefits | B118: 0 | C118: 0 | D118: 0 | E118: 0 | G118: 0 | I118: 0 | K118: 0 | M118: 0
A119: Bonuses | B119: 0 | C119: 0 | D119: 0 | E119: 0 | G119: 0 | I119: 0 | K119: 0 | M119: 0
A120: Other | B120: 0 | C120: 0 | D120: 0 | E120: 0 | G120: 0 | I120: 0 | K120: 0 | M120: 0
A121: Total Field Hockey Compensation | B121: =SUM(B116:B120) -> 0 | C121: 0 | D121: 0 | E121: 0 | G121: 0 | I121: 0 | K121: 0 | M121: 0
A122: Golf
A123: Salaries | B123: 0 | C123: 0 | D123: 0 | E123: =ROUND(C123+(C123*F123),-2) -> 0 | G123: 0 | I123: 0 | K123: 0 | M123: 0
A124: Fringe Benefits | B124: 0 | C124: 0 | D124: 0 | E124: 0 | G124: 0 | I124: 0 | K124: 0 | M124: 0
A125: Other Benefits | B125: 0 | C125: 0 | D125: 0 | E125: 0 | G125: 0 | I125: 0 | K125: 0 | M125: 0
A126: Bonuses | B126: 0 | C126: 0 | D126: 0 | E126: 0 | G126: 0 | I126: 0 | K126: 0 | M126: 0
A127: Other | B127: 0 | C127: 0 | D127: 0 | E127: 0 | G127: 0 | I127: 0 | K127: 0 | M127: 0
A128: Total Field Hockey Compensation | B128: =SUM(B123:B127) -> 0 | C128: 0 | D128: 0 | E128: 0 | G128: 0 | I128: 0 | K128: 0 | M128: 0
A129: Gymnastics
A130: Salaries | B130: 0 | C130: 0 | D130: 0 | E130: =ROUND(C130+(C130*F130),-2) -> 0 | G130: 0 | I130: 0 | K130: 0 | M130: 0
A131: Fringe Benefits | B131: 0 | C131: 0 | D131: 0 | E131: 0 | G131: 0 | I131: 0 | K131: 0 | M131: 0
A132: Other Benefits | B132: 0 | C132: 0 | D132: 0 | E132: 0 | G132: 0 | I132: 0 | K132: 0 | M132: 0
A133: Bonuses | B133: 0 | C133: 0 | D133: 0 | E133: 0 | G133: 0 | I133: 0 | K133: 0 | M133: 0
A134: Other | B134: 0 | C134: 0 | D134: 0 | E134: 0 | G134: 0 | I134: 0 | K134: 0 | M134: 0
A135: Total Gymnastics Compensation | B135: =SUM(B130:B134) -> 0 | C135: 0 | D135: 0 | E135: 0 | G135: 0 | I135: 0 | K135: 0 | M135: 0
A136: Ice Hockey
A137: Salaries | B137: 0 | C137: 0 | D137: 0 | E137: =ROUND(C137+(C137*F137),-2) -> 0 | G137: 0 | I137: 0 | K137: 0 | M137: 0
A138: Fringe Benefits | B138: 0 | C138: 0 | D138: 0 | E138: 0 | G138: 0 | I138: 0 | K138: 0 | M138: 0
A139: Other Benefits | B139: 0 | C139: 0 | D139: 0 | E139: 0 | G139: 0 | I139: 0 | K139: 0 | M139: 0
A140: Bonuses | B140: 0 | C140: 0 | D140: 0 | E140: 0 | G140: 0 | I140: 0 | K140: 0 | M140: 0
A141: Other | B141: 0 | C141: 0 | D141: 0 | E141: 0 | G141: 0 | I141: 0 | K141: 0 | M141: 0
A142: Total Ice Hockey Compensation | B142: =SUM(B137:B141) -> 0 | C142: 0 | D142: 0 | E142: 0 | G142: 0 | I142: 0 | K142: 0 | M142: 0
A143: Lacrosse
A144: Salaries | B144: 0 | C144: 0 | D144: 0 | E144: =ROUND(C144+(C144*F144),-2) -> 0 | G144: 0 | I144: 0 | K144: 0 | M144: 0
A145: Fringe Benefits | B145: 0 | C145: 0 | D145: 0 | E145: 0 | G145: 0 | I145: 0 | K145: 0 | M145: 0
A146: Other Benefits | B146: 0 | C146: 0 | D146: 0 | E146: 0 | G146: 0 | I146: 0 | K146: 0 | M146: 0
A147: Bonuses | B147: 0 | C147: 0 | D147: 0 | E147: 0 | G147: 0 | I147: 0 | K147: 0 | M147: 0
A148: Other | B148: 0 | C148: 0 | D148: 0 | E148: 0 | G148: 0 | I148: 0 | K148: 0 | M148: 0
A149: Total Lacrosse Compensation | B149: =SUM(B144:B148) -> 0 | C149: 0 | D149: 0 | E149: 0 | G149: 0 | I149: 0 | K149: 0 | M149: 0
A150: Soccer
A151: Salaries | B151: 38700 | C151: 39400 | D151: 25600 | E151: =ROUND(C151+(C151*F151),-2) -> 41400 | F151: 0.05 | G151: 43500 | H151: 0.05 | I151: 45700 | J151: 0.05 | K151: 48000 | L151: 0.05 | M151: 50400 | N151: 0.05
A152: Fringe Benefits | B152: 11610 | C152: 11820 | D152: 7680 | E152: 12400 | F152: 0.05 | G152: 13000 | H152: 0.05 | I152: 13700 | J152: 0.05 | K152: 14400 | L152: 0.05 | M152: 15100 | N152: 0.05
A153: Other Benefits | B153: 0 | C153: 0 | D153: 0 | E153: 0 | G153: 0 | I153: 0 | K153: 0 | M153: 0
A154: Bonuses | B154: 0 | C154: 1000 | D154: 0 | E154: 1000 | G154: 1000 | I154: 1000 | K154: 1000 | M154: 1000
A155: Other | B155: 0 | C155: 0 | D155: 0 | E155: 0 | G155: 0 | I155: 0 | K155: 0 | M155: 0
A156: Total Soccer Compensation | B156: =SUM(B151:B155) -> 50310 | C156: 52220 | D156: 33280 | E156: 54800 | G156: 57500 | I156: 60400 | K156: 63400 | M156: 66500
A157: Softball
A158: Salaries | B158: 35000 | C158: 36200 | D158: 22600 | E158: =ROUND(C158+(C158*F158),-2) -> 38000 | F158: 0.05 | G158: 39900 | H158: 0.05 | I158: 41900 | J158: 0.05 | K158: 44000 | L158: 0.05 | M158: 46200 | N158: 0.05
A159: Fringe Benefits | B159: 10500 | C159: 10860 | D159: 6780 | E159: 11400 | F159: 0.05 | G159: 12000 | H159: 0.05 | I159: 12600 | J159: 0.05 | K159: 13200 | L159: 0.05 | M159: 13900 | N159: 0.05
A160: Other Benefits | B160: 0 | C160: 0 | D160: 0 | E160: 0 | G160: 0 | I160: 0 | K160: 0 | M160: 0
A161: Bonuses | B161: 500 | C161: 500 | D161: 0 | E161: 500 | G161: 500 | I161: 500 | K161: 500 | M161: 500
A162: Other | B162: 0 | C162: 0 | D162: 0 | E162: 0 | G162: 0 | I162: 0 | K162: 0 | M162: 0
A163: Total Softball Compensation | B163: =SUM(B158:B162) -> 46000 | C163: 47560 | D163: 29380 | E163: 49900 | G163: 52400 | I163: 55000 | K163: 57700 | M163: 60600
A164: Swimming
A165: Salaries | B165: 67000 | C165: 69000 | D165: 51000 | E165: =ROUND(C165+(C165*F165),-2) -> 72500 | F165: 0.05 | G165: 76100 | H165: 0.05 | I165: 79900 | J165: 0.05 | K165: 83900 | L165: 0.05 | M165: 88100 | N165: 0.05
A166: Fringe Benefits | B166: 20100 | C166: 20700 | D166: 15300 | E166: 21700 | F166: 0.05 | G166: 22800 | H166: 0.05 | I166: 23900 | J166: 0.05 | K166: 25100 | L166: 0.05 | M166: 26400 | N166: 0.05
A167: Other Benefits | B167: 0 | C167: 0 | D167: 0 | E167: 0 | G167: 0 | I167: 0 | K167: 0 | M167: 0
A168: Bonuses | B168: 1500 | C168: 1500 | D168: 0 | E168: 1500 | G168: 1500 | I168: 1500 | K168: 1500 | M168: 1500
A169: Other | B169: 0 | C169: 0 | D169: 0 | E169: 0 | G169: 0 | I169: 0 | K169: 0 | M169: 0
A170: Total Swimming Compensation | B170: =SUM(B165:B169) -> 88600 | C170: 91200 | D170: 66300 | E170: 95700 | G170: 100400 | I170: 105300 | K170: 110500 | M170: 116000
A171: Tennis
A172: Salaries | B172: 25500 | C172: 28000 | D172: 15500 | E172: =ROUND(C172+(C172*F172),-2) -> 29400 | F172: 0.05 | G172: 30900 | H172: 0.05 | I172: 32400 | J172: 0.05 | K172: 34000 | L172: 0.05 | M172: 35700 | N172: 0.05
A173: Fringe Benefits | B173: 7650 | C173: 8400 | D173: 4650 | E173: 8800 | F173: 0.05 | G173: 9200 | H173: 0.05 | I173: 9700 | J173: 0.05 | K173: 10200 | L173: 0.05 | M173: 10700 | N173: 0.05
A174: Other Benefits | B174: 0 | C174: 0 | D174: 0 | E174: 0 | G174: 0 | I174: 0 | K174: 0 | M174: 0
A175: Bonuses | B175: 0 | C175: 0 | D175: 0 | E175: 0 | G175: 0 | I175: 0 | K175: 0 | M175: 0
A176: Other | B176: 0 | C176: 0 | D176: 0 | E176: 0 | G176: 0 | I176: 0 | K176: 0 | M176: 0
A177: Total Tennis Compensation | B177: =SUM(B172:B176) -> 33150 | C177: 36400 | D177: 20150 | E177: 38200 | G177: 40100 | I177: 42100 | K177: 44200 | M177: 46400
A178: Track and Field
A179: Salaries | B179: 30000 | C179: 31000 | D179: 22000 | E179: =ROUND(C179+(C179*F179),-2) -> 32600 | F179: 0.05 | G179: 34200 | H179: 0.05 | I179: 35900 | J179: 0.05 | K179: 37700 | L179: 0.05 | M179: 39600 | N179: 0.05
A180: Fringe Benefits | B180: 9000 | C180: 9300 | D180: 6600 | E180: 9800 | F180: 0.05 | G180: 10300 | H180: 0.05 | I180: 10800 | J180: 0.05 | K180: 11300 | L180: 0.05 | M180: 11900 | N180: 0.05
A181: Other Benefits | B181: 0 | C181: 0 | D181: 0 | E181: 0 | G181: 0 | I181: 0 | K181: 0 | M181: 0
A182: Bonuses | B182: 0 | C182: 0 | D182: 0 | E182: 0 | G182: 0 | I182: 0 | K182: 0 | M182: 0
A183: Other | B183: 0 | C183: 0 | D183: 0 | E183: 0 | G183: 0 | I183: 0 | K183: 0 | M183: 0
A184: Total Track and Field Compensation | B184: =SUM(B179:B183) -> 39000 | C184: 40300 | D184: 28600 | E184: 42400 | G184: 44500 | I184: 46700 | K184: 49000 | M184: 51500
A185: Volleyball
A186: Salaries | B186: 40000 | C186: 41000 | D186: 30000 | E186: =ROUND(C186+(C186*F186),-2) -> 43100 | F186: 0.05 | G186: 45300 | H186: 0.05 | I186: 47600 | J186: 0.05 | K186: 50000 | L186: 0.05 | M186: 52500 | N186: 0.05
A187: Fringe Benefits | B187: 12000 | C187: 12300 | D187: 9000 | E187: 12900 | F187: 0.05 | G187: 13500 | H187: 0.05 | I187: 14200 | J187: 0.05 | K187: 14900 | L187: 0.05 | M187: 15600 | N187: 0.05
A188: Other Benefits | B188: 0 | C188: 0 | D188: 0 | E188: 0 | G188: 0 | I188: 0 | K188: 0 | M188: 0
A189: Bonuses | B189: 0 | C189: 0 | D189: 0 | E189: 0 | G189: 0 | I189: 0 | K189: 0 | M189: 0
A190: Other | B190: 0 | C190: 0 | D190: 0 | E190: 0 | G190: 0 | I190: 0 | K190: 0 | M190: 0
A191: Total Volleyball Compensation | B191: =SUM(B186:B190) -> 52000 | C191: 53300 | D191: 39000 | E191: 56000 | G191: 58800 | I191: 61800 | K191: 64900 | M191: 68100
A192: Other
A193: Salaries | B193: 0 | C193: 0 | D193: 0 | E193: =ROUND(C193+(C193*F193),-2) -> 0 | G193: 0 | I193: 0 | K193: 0 | M193: 0
A194: Fringe Benefits | B194: 0 | C194: 0 | D194: 0 | E194: 0 | G194: 0 | I194: 0 | K194: 0 | M194: 0
A195: Other Benefits | B195: 0 | C195: 0 | D195: 0 | E195: 0 | G195: 0 | I195: 0 | K195: 0 | M195: 0
A196: Bonuses | B196: 0 | C196: 0 | D196: 0 | E196: 0 | G196: 0 | I196: 0 | K196: 0 | M196: 0
A197: Other | B197: 0 | C197: 0 | D197: 0 | E197: 0 | G197: 0 | I197: 0 | K197: 0 | M197: 0
A198: Total Other Compensation | B198: =SUM(B193:B197) -> 0 | C198: 0 | D198: 0 | E198: 0 | G198: 0 | I198: 0 | K198: 0 | M198: 0
A200: Total Coaching Salaries-Women's Sports | B200: =B114+B121+B128+B135+B142+B149+B156+B163+B170+B177+B184+B191+B198 -> 408410 | C200: 422150 | D200: 297960 | E200: 443200 | G200: 465200 | I200: 488400 | K200: 512600 | M200: 538100
A201: Total Coaching Salaries | B201: =B103+B200 -> 6059460 | C201: 6382500 | D201: 5271860 | E201: 6697000 | G201: 7026800 | I201: 7373100 | K201: 7736400 | M201: 8118100

Sheet Coaching Comp.
B1: Coaching Compensation and Benefits Paid by a Third Party
C2: Current Year | D2: Current Year
B3: Previous Year | C3: Budget | D3: Actual | E3: Year 1 | F3: Yr1 % | G3: Year 2 | H3: Yr2 % | I3: Year 3 | J3: Yr3 % | K3: Year 4 | L3: Yr4 % | M3: Year 5 | N3: Yr5 %
A5: Men's Sports
A6: Basketball | B6: 9000 | C6: 50000 | D6: 5000 | E6: =ROUND(C6+(C6*F6),-2) -> 32500 | F6: -0.35 | G6: =ROUND(E6+(E6*H6),-2) -> 34100 | H6: 0.05 | I6: =ROUND(G6+(G6*J6),-2) -> 35800 | J6: 0.05 | K6: =ROUND(I6+(I6*L6),-2) -> 37600 | L6: 0.05 | M6: =ROUND(K6+(K6*N6),-2) -> 39500 | N6: 0.05
A7: Baseball | B7: 0 | C7: 0 | D7: 0 | E7: =ROUND(C7+(C7*F7),-2) -> 0 | G7: 0 | I7: 0 | K7: 0 | M7: 0
A8: Football | B8: 28000 | C8: 100000 | D8: 20000 | E8: 85000 | F8: -0.15 | G8: 87600 | H8: 0.03 | I8: 90200 | J8: 0.03 | K8: 92900 | L8: 0.03 | M8: 95700 | N8: 0.03
A9: Gymnastics | B9: 0 | C9: 0 | D9: 0 | E9: 0 | G9: 0 | I9: 0 | K9: 0 | M9: 0
A10: Golf | B10: 0 | C10: 0 | D10: 0 | E10: 0 | G10: 0 | I10: 0 | K10: 0 | M10: 0
A11: Ice Hockey | B11: 0 | C11: 0 | D11: 0 | E11: 0 | G11: 0 | I11: 0 | K11: 0 | M11: 0
A12: Lacrosse | B12: 0 | C12: 0 | D12: 0 | E12: 0 | G12: 0 | I12: 0 | K12: 0 | M12: 0
A13: Soccer | B13: 0 | C13: 0 | D13: 0 | E13: 0 | G13: 0 | I13: 0 | K13: 0 | M13: 0
A14: Swimming | B14: 0 | C14: 0 | D14: 0 | E14: 0 | G14: 0 | I14: 0 | K14: 0 | M14: 0
A15: Tennis | B15: 0 | C15: 0 | D15: 0 | E15: 0 | G15: 0 | I15: 0 | K15: 0 | M15: 0
A16: Track and Field | B16: 0 | C16: 0 | D16: 0 | E16: 0 | G16: 0 | I16: 0 | K16: 0 | M16: 0
A17: Volleyball | B17: 0 | C17: 0 | D17: 0 | E17: 0 | G17: 0 | I17: 0 | K17: 0 | M17: 0
A18: Wrestling | B18: 0 | C18: 0 | D18: 0 | E18: 0 | G18: 0 | I18: 0 | K18: 0 | M18: 0
A19: Other | B19: 0 | C19: 0 | D19: 0 | E19: 0 | G19: 0 | I19: 0 | K19: 0 | M19: 0
A21: Women's Sports
A22: Basketball | B22: 0 | C22: 25000 | D22: 0 | E22: =ROUND(C22+(C22*F22),-2) -> 18800 | F22: -0.25 | G22: 19700 | H22: 0.05 | I22: 20700 | J22: 0.05 | K22: 21700 | L22: 0.05 | M22: 22800 | N22: 0.05
A23: Field Hockey | B23: 0 | C23: 0 | D23: 0 | E23: 0 | G23: 0 | I23: 0 | K23: 0 | M23: 0
A24: Golf | B24: 0 | C24: 0 | D24: 0 | E24: 0 | G24: 0 | I24: 0 | K24: 0 | M24: 0
A25: Gymnastics | B25: 0 | C25: 0 | D25: 0 | E25: 0 | G25: 0 | I25: 0 | K25: 0 | M25: 0
A26: Ice Hockey | B26: 0 | C26: 0 | D26: 0 | E26: 0 | G26: 0 | I26: 0 | K26: 0 | M26: 0
A27: Lacrosse | B27: 0 | C27: 0 | D27: 0 | E27: 0 | G27: 0 | I27: 0 | K27: 0 | M27: 0
A28: Soccer | B28: 0 | C28: 0 | D28: 0 | E28: 0 | G28: 0 | I28: 0 | K28: 0 | M28: 0
A29: Softball | B29: 0 | C29: 0 | D29: 0 | E29: 0 | G29: 0 | I29: 0 | K29: 0 | M29: 0
A30: Swimming | B30: 0 | C30: 0 | D30: 0 | E30: 0 | G30: 0 | I30: 0 | K30: 0 | M30: 0
A31: Tennis | B31: 0 | C31: 0 | D31: 0 | E31: 0 | G31: 0 | I31: 0 | K31: 0 | M31: 0
A32: Track and Field | B32: 0 | C32: 0 | D32: 0 | E32: 0 | G32: 0 | I32: 0 | K32: 0 | M32: 0
A33: Volleyball | B33: 0 | C33: 0 | D33: 0 | E33: 0 | G33: 0 | I33: 0 | K33: 0 | M33: 0
A34: Other | B34: 0 | C34: 0 | D34: 0 | E34: 0 | G34: 0 | I34: 0 | K34: 0 | M34: 0
A36: Total 3rd Party Compensation | B36: =SUM(B6:B34) -> 37000 | C36: 175000 | D36: =SUM(D6:D34) -> 25000 | E36: 136300 | G36: 141400 | I36: 146700 | K36: 152200 | M36: 158000

Sheet Support Salaries
B1: Support Staff/Administrative Salaries, Benefits & Bonuses paid by the University and Related Entities
C2: Current Year | D2: Current Year
B3: Previous Year | C3: Budget | D3: Actual | E3: Year 1 | F3: Yr1 % | G3: Year 2 | H3: Yr2 % | I3: Year 3 | J3: Yr3 % | K3: Year 4 | L3: Yr4 % | M3: Year 5 | N3: Yr5 %
A5: Academic Advisors
A6: Salaries | B6: 200000 | C6: 225000 | D6: 190000 | E6: =ROUND(C6+(C6*F6),-2) -> 229500 | F6: 0.02 | G6: =ROUND(E6+(E6*H6),-2) -> 241000 | H6: 0.05 | I6: =ROUND(G6+(G6*J6),-2) -> 253100 | J6: 0.05 | K6: =ROUND(I6+(I6*L6),-2) -> 265800 | L6: 0.05 | M6: =ROUND(K6+(K6*N6),-2) -> 279100 | N6: 0.05
A7: Benefits | B7: 80000 | C7: 90000 | D7: 76000 | E7: =ROUND(C7+(C7*F7),-2) -> 94500 | F7: 0.05 | G7: 99200 | H7: 0.05 | I7: 104200 | J7: 0.05 | K7: 109400 | L7: 0.05 | M7: 114900 | N7: 0.05
A8: Bonuses | B8: 0 | C8: 0 | D8: 0 | E8: 0 | G8: 0 | I8: 0 | K8: 0 | M8: 0
A9: Total Compensation | B9: =SUM(B6:B8) -> 280000 | C9: 315000 | D9: 266000 | E9: 324000 | G9: 340200 | I9: 357300 | K9: 375200 | M9: 394000
A10: Athletic Administration
A11: Salaries | B11: 550000 | C11: 600000 | D11: 500000 | E11: =ROUND(C11+(C11*F11),-2) -> 612000 | F11: 0.02 | G11: =ROUND(E11+(E11*H11),-2) -> 642600 | H11: 0.05 | I11: =ROUND(G11+(G11*J11),-2) -> 674700 | J11: 0.05 | K11: =ROUND(I11+(I11*L11),-2) -> 708400 | L11: 0.05 | M11: =ROUND(K11+(K11*N11),-2) -> 743800 | N11: 0.05
A12: Benefits | B12: 220000 | C12: 240000 | D12: 200000 | E12: =ROUND(C12+(C12*F12),-2) -> 252000 | F12: 0.05 | G12: =ROUND(E12+(E12*H12),-2) -> 264600 | H12: 0.05 | I12: =ROUND(G12+(G12*J12),-2) -> 277800 | J12: 0.05 | K12: =ROUND(I12+(I12*L12),-2) -> 291700 | L12: 0.05 | M12: =ROUND(K12+(K12*N12),-2) -> 306300 | N12: 0.05
A13: Bonuses | B13: 50000 | C13: 50000 | D13: 0 | E13: =ROUND(C13+(C13*F13),-2) -> 50000 | G13: =ROUND(E13+(E13*H13),-2) -> 50000 | I13: =ROUND(G13+(G13*J13),-2) -> 50000 | K13: =ROUND(I13+(I13*L13),-2) -> 50000 | M13: =ROUND(K13+(K13*N13),-2) -> 50000
A14: Total Compensation | B14: =SUM(B11:B13) -> 820000 | C14: 890000 | D14: 700000 | E14: 914000 | G14: 957200 | I14: 1002500 | K14: 1050100 | M14: 1100100
A15: Athletic Compliance
A16: Salaries | B16: 200000 | C16: 210000 | D16: 218000 | E16: =ROUND(C16+(C16*F16),-2) -> 214200 | F16: 0.02 | G16: =ROUND(E16+(E16*H16),-2) -> 224900 | H16: 0.05 | I16: =ROUND(G16+(G16*J16),-2) -> 236100 | J16: 0.05 | K16: =ROUND(I16+(I16*L16),-2) -> 247900 | L16: 0.05 | M16: =ROUND(K16+(K16*N16),-2) -> 260300 | N16: 0.05
A17: Benefits | B17: 80000 | C17: 84000 | D17: 87000 | E17: =ROUND(C17+(C17*F17),-2) -> 88200 | F17: 0.05 | G17: =ROUND(E17+(E17*H17),-2) -> 92600 | H17: 0.05 | I17: =ROUND(G17+(G17*J17),-2) -> 97200 | J17: 0.05 | K17: =ROUND(I17+(I17*L17),-2) -> 102100 | L17: 0.05 | M17: =ROUND(K17+(K17*N17),-2) -> 107200 | N17: 0.05
A18: Bonuses | B18: 0 | C18: 0 | D18: 0 | E18: =ROUND(C18+(C18*F18),-2) -> 0 | G18: =ROUND(E18+(E18*H18),-2) -> 0 | I18: =ROUND(G18+(G18*J18),-2) -> 0 | K18: =ROUND(I18+(I18*L18),-2) -> 0 | M18: =ROUND(K18+(K18*N18),-2) -> 0
A19: Total Compensation | B19: =SUM(B16:B18) -> 280000 | C19: 294000 | D19: 305000 | E19: 302400 | G19: 317500 | I19: 333300 | K19: 350000 | M19: 367500
A20: Sports Information
A21: Salaries | B21: 0 | C21: 0 | D21: 0 | E21: =ROUND(C21+(C21*F21),-2) -> 0 | G21: =ROUND(E21+(E21*H21),-2) -> 0 | I21: =ROUND(G21+(G21*J21),-2) -> 0 | K21: =ROUND(I21+(I21*L21),-2) -> 0 | M21: =ROUND(K21+(K21*N21),-2) -> 0
A22: Benefits | B22: 0 | C22: 0 | D22: 0 | E22: =ROUND(C22+(C22*F22),-2) -> 0 | G22: 0 | I22: 0 | K22: 0 | M22: 0
A23: Bonuses | B23: 0 | C23: 0 | D23: 0 | E23: 0 | G23: 0 | I23: 0 | K23: 0 | M23: 0
A24: Total Compensation | B24: =SUM(B21:B23) -> 0 | C24: 0 | D24: 0 | E24: 0 | G24: 0 | I24: 0 | K24: 0 | M24: 0
A25: Sports Medicine
A26: Salaries | B26: 788000 | C26: 800000 | D26: 832000 | E26: =ROUND(C26+(C26*F26),-2) -> 816000 | F26: 0.02 | G26: =ROUND(E26+(E26*H26),-2) -> 856800 | H26: 0.05 | I26: =ROUND(G26+(G26*J26),-2) -> 899600 | J26: 0.05 | K26: =ROUND(I26+(I26*L26),-2) -> 944600 | L26: 0.05 | M26: =ROUND(K26+(K26*N26),-2) -> 991800 | N26: 0.05
A27: Benefits | B27: 315000 | C27: 320000 | D27: 332000 | E27: =ROUND(C27+(C27*F27),-2) -> 336000 | F27: 0.05 | G27: =ROUND(E27+(E27*H27),-2) -> 352800 | H27: 0.05 | I27: =ROUND(G27+(G27*J27),-2) -> 370400 | J27: 0.05 | K27: =ROUND(I27+(I27*L27),-2) -> 388900 | L27: 0.05 | M27: =ROUND(K27+(K27*N27),-2) -> 408300 | N27: 0.05
A28: Bonuses | B28: 0 | C28: 0 | D28: 0 | E28: =ROUND(C28+(C28*F28),-2) -> 0 | G28: =ROUND(E28+(E28*H28),-2) -> 0 | I28: =ROUND(G28+(G28*J28),-2) -> 0 | K28: =ROUND(I28+(I28*L28),-2) -> 0 | M28: =ROUND(K28+(K28*N28),-2) -> 0
A29: Total Compensation | B29: =SUM(B26:B28) -> 1103000 | C29: 1120000 | D29: 1164000 | E29: 1152000 | G29: 1209600 | I29: 1270000 | K29: 1333500 | M29: 1400100
A30: Marketing
A31: Salaries | B31: 115000 | C31: 130000 | D31: 135000 | E31: =ROUND(C31+(C31*F31),-2) -> 132600 | F31: 0.02 | G31: =ROUND(E31+(E31*H31),-2) -> 139200 | H31: 0.05 | I31: =ROUND(G31+(G31*J31),-2) -> 146200 | J31: 0.05 | K31: =ROUND(I31+(I31*L31),-2) -> 153500 | L31: 0.05 | M31: =ROUND(K31+(K31*N31),-2) -> 161200 | N31: 0.05
A32: Benefits | B32: 46000 | C32: 52000 | D32: 54000 | E32: =ROUND(C32+(C32*F32),-2) -> 54600 | F32: 0.05 | G32: =ROUND(E32+(E32*H32),-2) -> 57300 | H32: 0.05 | I32: =ROUND(G32+(G32*J32),-2) -> 60200 | J32: 0.05 | K32: =ROUND(I32+(I32*L32),-2) -> 63200 | L32: 0.05 | M32: =ROUND(K32+(K32*N32),-2) -> 66400 | N32: 0.05
A33: Bonuses | B33: 0 | C33: 0 | D33: 0 | E33: =ROUND(C33+(C33*F33),-2) -> 0 | G33: =ROUND(E33+(E33*H33),-2) -> 0 | I33: =ROUND(G33+(G33*J33),-2) -> 0 | K33: =ROUND(I33+(I33*L33),-2) -> 0 | M33: =ROUND(K33+(K33*N33),-2) -> 0
A34: Total Compensation | B34: =SUM(B31:B33) -> 161000 | C34: 182000 | D34: 189000 | E34: 187200 | G34: 196500 | I34: 206400 | K34: 216700 | M34: 227600
A35: Strength and Conditioning
A36: Salaries | B36: 200000 | C36: 210000 | D36: 218000 | E36: =ROUND(C36+(C36*F36),-2) -> 214200 | F36: 0.02 | G36: =ROUND(E36+(E36*H36),-2) -> 224900 | H36: 0.05 | I36: =ROUND(G36+(G36*J36),-2) -> 236100 | J36: 0.05 | K36: =ROUND(I36+(I36*L36),-2) -> 247900 | L36: 0.05 | M36: =ROUND(K36+(K36*N36),-2) -> 260300 | N36: 0.05
A37: Benefits | B37: 80000 | C37: 84000 | D37: 87000 | E37: =ROUND(C37+(C37*F37),-2) -> 88200 | F37: 0.05 | G37: =ROUND(E37+(E37*H37),-2) -> 92600 | H37: 0.05 | I37: =ROUND(G37+(G37*J37),-2) -> 97200 | J37: 0.05 | K37: =ROUND(I37+(I37*L37),-2) -> 102100 | L37: 0.05 | M37: =ROUND(K37+(K37*N37),-2) -> 107200 | N37: 0.05
A38: Bonuses | B38: 0 | C38: 0 | D38: 0 | E38: =ROUND(C38+(C38*F38),-2) -> 0 | G38: =ROUND(E38+(E38*H38),-2) -> 0 | I38: =ROUND(G38+(G38*J38),-2) -> 0 | K38: =ROUND(I38+(I38*L38),-2) -> 0 | M38: =ROUND(K38+(K38*N38),-2) -> 0
A39: Total Compensation | B39: =SUM(B36:B38) -> 280000 | C39: 294000 | D39: 305000 | E39: 302400 | G39: 317500 | I39: 333300 | K39: 350000 | M39: 367500
A40: Ticket Office
A41: Salaries | B41: 122000 | C41: 130000 | D41: 135000 | E41: =ROUND(C41+(C41*F41),-2) -> 132600 | F41: 0.02 | G41: =ROUND(E41+(E41*H41),-2) -> 139200 | H41: 0.05 | I41: =ROUND(G41+(G41*J41),-2) -> 146200 | J41: 0.05 | K41: =ROUND(I41+(I41*L41),-2) -> 153500 | L41: 0.05 | M41: =ROUND(K41+(K41*N41),-2) -> 161200 | N41: 0.05
A42: Benefits | B42: 8000 | C42: 52000 | D42: 54000 | E42: =ROUND(C42+(C42*F42),-2) -> 54600 | F42: 0.05 | G42: =ROUND(E42+(E42*H42),-2) -> 57300 | H42: 0.05 | I42: =ROUND(G42+(G42*J42),-2) -> 60200 | J42: 0.05 | K42: =ROUND(I42+(I42*L42),-2) -> 63200 | L42: 0.05 | M42: =ROUND(K42+(K42*N42),-2) -> 66400 | N42: 0.05
A43: Bonuses | B43: 0 | C43: 0 | D43: 0 | E43: =ROUND(C43+(C43*F43),-2) -> 0 | G43: =ROUND(E43+(E43*H43),-2) -> 0 | I43: =ROUND(G43+(G43*J43),-2) -> 0 | K43: =ROUND(I43+(I43*L43),-2) -> 0 | M43: =ROUND(K43+(K43*N43),-2) -> 0
A44: Total Compensation | B44: =SUM(B41:B43) -> 130000 | C44: 182000 | D44: 189000 | E44: 187200 | G44: 196500 | I44: 206400 | K44: 216700 | M44: 227600
A45: Business Office
A46: Salaries | B46: 155000 | C46: 160000 | D46: 166000 | E46: =ROUND(C46+(C46*F46),-2) -> 163200 | F46: 0.02 | G46: =ROUND(E46+(E46*H46),-2) -> 171400 | H46: 0.05 | I46: =ROUND(G46+(G46*J46),-2) -> 180000 | J46: 0.05 | K46: =ROUND(I46+(I46*L46),-2) -> 189000 | L46: 0.05 | M46: =ROUND(K46+(K46*N46),-2) -> 198500 | N46: 0.05
A47: Benefits | B47: 0 | C47: 64000 | D47: 66000 | E47: =ROUND(C47+(C47*F47),-2) -> 67200 | F47: 0.05 | G47: =ROUND(E47+(E47*H47),-2) -> 70600 | H47: 0.05 | I47: =ROUND(G47+(G47*J47),-2) -> 74100 | J47: 0.05 | K47: =ROUND(I47+(I47*L47),-2) -> 77800 | L47: 0.05 | M47: =ROUND(K47+(K47*N47),-2) -> 81700 | N47: 0.05
A48: Bonuses | B48: 0 | C48: 0 | D48: 0 | E48: =ROUND(C48+(C48*F48),-2) -> 0 | G48: =ROUND(E48+(E48*H48),-2) -> 0 | I48: =ROUND(G48+(G48*J48),-2) -> 0 | K48: =ROUND(I48+(I48*L48),-2) -> 0 | M48: =ROUND(K48+(K48*N48),-2) -> 0
A49: Total Compensation | B49: =SUM(B46:B48) -> 155000 | C49: 224000 | D49: 232000 | E49: 230400 | G49: 242000 | I49: 254100 | K49: 266800 | M49: 280200
A50: Development
A51: Salaries | B51: 135000 | C51: 140000 | D51: 145000 | E51: =ROUND(C51+(C51*F51),-2) -> 142800 | F51: 0.02 | G51: =ROUND(E51+(E51*H51),-2) -> 149900 | H51: 0.05 | I51: =ROUND(G51+(G51*J51),-2) -> 157400 | J51: 0.05 | K51: =ROUND(I51+(I51*L51),-2) -> 165300 | L51: 0.05 | M51: =ROUND(K51+(K51*N51),-2) -> 173600 | N51: 0.05
A52: Benefits | B52: 54000 | C52: 56000 | D52: 58000 | E52: =ROUND(C52+(C52*F52),-2) -> 58800 | F52: 0.05 | G52: =ROUND(E52+(E52*H52),-2) -> 61700 | H52: 0.05 | I52: =ROUND(G52+(G52*J52),-2) -> 64800 | J52: 0.05 | K52: =ROUND(I52+(I52*L52),-2) -> 68000 | L52: 0.05 | M52: =ROUND(K52+(K52*N52),-2) -> 71400 | N52: 0.05
A53: Bonuses | B53: 0 | C53: 0 | D53: 0 | E53: =ROUND(C53+(C53*F53),-2) -> 0 | G53: =ROUND(E53+(E53*H53),-2) -> 0 | I53: =ROUND(G53+(G53*J53),-2) -> 0 | K53: =ROUND(I53+(I53*L53),-2) -> 0 | M53: =ROUND(K53+(K53*N53),-2) -> 0
A54: Total Compensation | B54: =SUM(B51:B53) -> 189000 | C54: 196000 | D54: 203000 | E54: 201600 | G54: 211600 | I54: 222200 | K54: 233300 | M54: 245000
A55: Athletic Director
A56: Salaries | B56: 135000 | C56: 140000 | D56: 145000 | E56: =ROUND(C56+(C56*F56),-2) -> 142800 | F56: 0.02 | G56: =ROUND(E56+(E56*H56),-2) -> 149900 | H56: 0.05 | I56: =ROUND(G56+(G56*J56),-2) -> 157400 | J56: 0.05 | K56: =ROUND(I56+(I56*L56),-2) -> 165300 | L56: 0.05 | M56: =ROUND(K56+(K56*N56),-2) -> 173600 | N56: 0.05
A57: Benefits | B57: 54000 | C57: 56000 | D57: 58000 | E57: =ROUND(C57+(C57*F57),-2) -> 58800 | F57: 0.05 | G57: =ROUND(E57+(E57*H57),-2) -> 61700 | H57: 0.05 | I57: =ROUND(G57+(G57*J57),-2) -> 64800 | J57: 0.05 | K57: =ROUND(I57+(I57*L57),-2) -> 68000 | L57: 0.05 | M57: =ROUND(K57+(K57*N57),-2) -> 71400 | N57: 0.05
A58: Bonuses | B58: 0 | C58: 50000 | D58: 0 | E58: =ROUND(C58+(C58*F58),-2) -> 50000 | G58: =ROUND(E58+(E58*H58),-2) -> 50000 | I58: =ROUND(G58+(G58*J58),-2) -> 50000 | K58: =ROUND(I58+(I58*L58),-2) -> 50000 | M58: =ROUND(K58+(K58*N58),-2) -> 50000
A59: Total Compensation | B59: =SUM(B56:B58) -> 189000 | C59: 246000 | D59: 203000 | E59: 251600 | G59: 261600 | I59: 272200 | K59: 283300 | M59: 295000
A60: Facilities
A61: Salaries | B61: 75000 | C61: 80000 | D61: 83000 | E61: =ROUND(C61+(C61*F61),-2) -> 81600 | F61: 0.02 | G61: =ROUND(E61+(E61*H61),-2) -> 85700 | H61: 0.05 | I61: =ROUND(G61+(G61*J61),-2) -> 90000 | J61: 0.05 | K61: =ROUND(I61+(I61*L61),-2) -> 94500 | L61: 0.05 | M61: =ROUND(K61+(K61*N61),-2) -> 99200 | N61: 0.05
A62: Benefits | B62: 30000 | C62: 32000 | D62: 33000 | E62: =ROUND(C62+(C62*F62),-2) -> 33600 | F62: 0.05 | G62: =ROUND(E62+(E62*H62),-2) -> 35300 | H62: 0.05 | I62: =ROUND(G62+(G62*J62),-2) -> 37100 | J62: 0.05 | K62: =ROUND(I62+(I62*L62),-2) -> 39000 | L62: 0.05 | M62: =ROUND(K62+(K62*N62),-2) -> 41000 | N62: 0.05
A63: Bonuses | B63: 0 | C63: 0 | D63: 0 | E63: =ROUND(C63+(C63*F63),-2) -> 0 | G63: =ROUND(E63+(E63*H63),-2) -> 0 | I63: =ROUND(G63+(G63*J63),-2) -> 0 | K63: =ROUND(I63+(I63*L63),-2) -> 0 | M63: =ROUND(K63+(K63*N63),-2) -> 0
A64: Total Compensation | B64: =SUM(B61:B63) -> 105000 | C64: 112000 | D64: 116000 | E64: 115200 | G64: 121000 | I64: 127100 | K64: 133500 | M64: 140200
A65: Other
A66: Salaries | B66: 85000 | C66: 90000 | D66: 93000 | E66: =ROUND(C66+(C66*F66),-2) -> 91800 | F66: 0.02 | G66: =ROUND(E66+(E66*H66),-2) -> 96400 | H66: 0.05 | I66: =ROUND(G66+(G66*J66),-2) -> 101200 | J66: 0.05 | K66: =ROUND(I66+(I66*L66),-2) -> 106300 | L66: 0.05 | M66: =ROUND(K66+(K66*N66),-2) -> 111600 | N66: 0.05
A67: Benefits | B67: 34000 | C67: 36000 | D67: 37000 | E67: =ROUND(C67+(C67*F67),-2) -> 37800 | F67: 0.05 | G67: =ROUND(E67+(E67*H67),-2) -> 39700 | H67: 0.05 | I67: =ROUND(G67+(G67*J67),-2) -> 41700 | J67: 0.05 | K67: =ROUND(I67+(I67*L67),-2) -> 43800 | L67: 0.05 | M67: =ROUND(K67+(K67*N67),-2) -> 46000 | N67: 0.05
A68: Bonuses | B68: 0 | C68: 0 | D68: 0 | E68: =ROUND(C68+(C68*F68),-2) -> 0 | G68: =ROUND(E68+(E68*H68),-2) -> 0 | I68: =ROUND(G68+(G68*J68),-2) -> 0 | K68: =ROUND(I68+(I68*L68),-2) -> 0 | M68: =ROUND(K68+(K68*N68),-2) -> 0
A69: Total Compensation | B69: =SUM(B66:B68) -> 119000 | C69: 126000 | D69: 130000 | E69: 129600 | G69: 136100 | I69: 142900 | K69: 150100 | M69: 157600
A72: Total Support Staff/Admin Salaries | B72: =B9+B14+B19+B24+B29+B34+B39+B44+B49+B54+B59+B64+B69 -> 3811000 | C72: 4181000 | D72: 4002000 | E72: 4297600 | G72: 4507300 | I72: 4727700 | K72: 4959200 | M72: 5202400

Sheet Support Comp.
B1: Support Staff/Administrative Benefits & Bonuses paid by a Third Party
C2: Current Year | D2: Current Year
B3: Previous Year | C3: Budget | D3: Actual | E3: Year 1 | F3: Yr1 % | G3: Year 2 | H3: Yr2 % | I3: Year 3 | J3: Yr3 % | K3: Year 4 | L3: Yr4 % | M3: Year 5 | N3: Yr5 %
A5: Academic Advisors | B5: 0 | C5: 0 | D5: 0 | E5: =ROUND(C5+(C5*F5),-2) -> 0 | G5: =ROUND(E5+(E5*H5),-2) -> 0 | I5: =ROUND(G5+(G5*J5),-2) -> 0 | K5: =ROUND(I5+(I5*L5),-2) -> 0 | M5: =ROUND(K5+(K5*N5),-2) -> 0
A6: Athletic Administration | B6: 0 | C6: 0 | D6: 0 | E6: =ROUND(C6+(C6*F6),-2) -> 0 | G6: 0 | I6: 0 | K6: 0 | M6: 0
A7: Athletic Compliance | B7: 0 | C7: 0 | D7: 0 | E7: 0 | G7: 0 | I7: 0 | K7: 0 | M7: 0
A8: Public Relations | B8: 0 | C8: 0 | D8: 0 | E8: 0 | G8: 0 | I8: 0 | K8: 0 | M8: 0
A9: Sports Medicine | B9: 0 | C9: 0 | D9: 0 | E9: 0 | G9: 0 | I9: 0 | K9: 0 | M9: 0
A10: Sports Promotion | B10: 0 | C10: 0 | D10: 0 | E10: 0 | G10: 0 | I10: 0 | K10: 0 | M10: 0
A11: Strength and Conditioning | B11: 0 | C11: 0 | D11: 0 | E11: 0 | G11: 0 | I11: 0 | K11: 0 | M11: 0
A12: Student-Athlete Services | B12: 0 | C12: 0 | D12: 0 | E12: 0 | G12: 0 | I12: 0 | K12: 0 | M12: 0
A13: Ticket Office | B13: 0 | C13: 0 | D13: 0 | E13: 0 | G13: 0 | I13: 0 | K13: 0 | M13: 0
A14: Business Office | B14: 0 | C14: 0 | D14: 0 | E14: 0 | G14: 0 | I14: 0 | K14: 0 | M14: 0
A15: Development | B15: 0 | C15: 0 | D15: 0 | E15: 0 | G15: 0 | I15: 0 | K15: 0 | M15: 0
A16: Athletic Director | B16: 0 | C16: 0 | D16: 0 | E16: 0 | G16: 0 | I16: 0 | K16: 0 | M16: 0
A17: Facilities | B17: 0 | C17: 0 | D17: 0 | E17: 0 | G17: 0 | I17: 0 | K17: 0 | M17: 0
A18: Other | B18: 0 | C18: 0 | D18: 0 | E18: 0 | G18: 0 | I18: 0 | K18: 0 | M18: 0
A20: Total Third Party Compensation | B20: =SUM(B5:B19) -> 0 | C20: 0 | D20: 0 | E20: 0 | G20: 0 | I20: 0 | K20: 0 | M20: 0

Sheet Severance
B1: Severance Payments
C2: Current Year | D2: Current Year
B3: Previous Year | C3: Budget | D3: Actual | E3: Year 1 | F3: Yr1 % | G3: Year 2 | H3: Yr2 % | I3: Year 3 | J3: Yr3 % | K3: Year 4 | L3: Yr4 % | M3: Year 5 | N3: Yr5 %
A5: Person A | B5: 0 | C5: 0 | D5: 0 | E5: =ROUND(C5+(C5*F5),-2) -> 0 | G5: =ROUND(E5+(E5*H5),-2) -> 0 | I5: =ROUND(G5+(G5*J5),-2) -> 0 | K5: =ROUND(I5+(I5*L5),-2) -> 0 | M5: =ROUND(K5+(K5*N5),-2) -> 0
A6: Person B | B6: 0 | C6: 100000 | D6: 100000 | E6: =ROUND(C6+(C6*F6),-2) -> 100000 | G6: 100000 | I6: 100000 | K6: 100000 | M6: 100000
A7: Person C | B7: 0 | C7: 0 | D7: 0 | E7: 0 | G7: 0 | I7: 0 | K7: 0 | M7: 0
A10: Total Severance Payments | B10: =SUM(B5:B9) -> 0 | C10: 100000 | D10: =SUM(D5:D9) -> 100000 | E10: 100000 | G10: 100000 | I10: 100000 | K10: 100000 | M10: 100000

Sheet Recruiting
B1: Recruiting
C2: Current Year | D2: Current Year
B3: Previous Year | C3: Budget | D3: Actual | E3: Year 1 | F3: Yr1 % | G3: Year 2 | H3: Yr2 % | I3: Year 3 | J3: Yr3 % | K3: Year 4 | L3: Yr4 % | M3: Year 5 | N3: Yr5 %
A4: Men's Sports
A5: Basketball | B5: 145000 | C5: 150000 | D5: 140000 | E5: =ROUND(C5+(C5*F5),-2) -> 160500 | F5: 0.07 | G5: =ROUND(E5+(E5*H5),-2) -> 171700 | H5: 0.07 | I5: =ROUND(G5+(G5*J5),-2) -> 183700 | J5: 0.07 | K5: =ROUND(I5+(I5*L5),-2) -> 196600 | L5: 0.07 | M5: =ROUND(K5+(K5*N5),-2) -> 210400 | N5: 0.07
A6: Baseball | B6: 9000 | C6: 10085 | D6: 10000 | E6: =ROUND(C6+(C6*F6),-2) -> 10800 | F6: 0.07 | G6: 11600 | H6: 0.07 | I6: 12400 | J6: 0.07 | K6: 13300 | L6: 0.07 | M6: 14200 | N6: 0.07
A7: Football | B7: 230000 | C7: 250000 | D7: 240000 | E7: 267500 | F7: 0.07 | G7: 286200 | H7: 0.07 | I7: 306200 | J7: 0.07 | K7: 327600 | L7: 0.07 | M7: 350500 | N7: 0.07
A8: Gymnastics | B8: 0 | C8: 0 | D8: 0 | E8: 0 | G8: 0 | I8: 0 | K8: 0 | M8: 0
A9: Golf | B9: 4500 | C9: 4900 | D9: 4000 | E9: 4900 | G9: 4900 | I9: 4900 | K9: 4900 | M9: 4900
A10: Ice Hockey | B10: 0 | C10: 0 | D10: 0 | E10: 0 | G10: 0 | I10: 0 | K10: 0 | M10: 0
A11: Lacrosse | B11: 0 | C11: 0 | D11: 0 | E11: 0 | G11: 0 | I11: 0 | K11: 0 | M11: 0
A12: Soccer | B12: 5200 | C12: 5500 | D12: 5000 | E12: 5500 | G12: 5500 | I12: 5500 | K12: 5500 | M12: 5500
A13: Swimming | B13: 5100 | C13: 5000 | D13: 6000 | E13: 5000 | G13: 5000 | I13: 5000 | K13: 5000 | M13: 5000
A14: Tennis | B14: 0 | C14: 0 | D14: 0 | E14: 0 | G14: 0 | I14: 0 | K14: 0 | M14: 0
A15: Track and Field | B15: 0 | C15: 0 | D15: 0 | E15: 0 | G15: 0 | I15: 0 | K15: 0 | M15: 0
A16: Volleyball | B16: 0 | C16: 0 | D16: 0 | E16: 0 | G16: 0 | I16: 0 | K16: 0 | M16: 0
A17: Wrestling | B17: 0 | C17: 0 | D17: 0 | E17: 0 | G17: 0 | I17: 0 | K17: 0 | M17: 0
A18: Other | B18: 0 | C18: 0 | D18: 0 | E18: 0 | G18: 0 | I18: 0 | K18: 0 | M18: 0
A19: In-Kind Value of Transportation Services | B19: 1000 | C19: 1200 | D19: 1000 | E19: 1200 | G19: 1200 | I19: 1200 | K19: 1200 | M19: 1200
A21: Women's Sports
A22: Basketball | B22: 38000 | C22: 50000 | D22: 48000 | E22: =ROUND(C22+(C22*F22),-2) -> 53500 | F22: 0.07 | G22: 57200 | H22: 0.07 | I22: 61200 | J22: 0.07 | K22: 65500 | L22: 0.07 | M22: 70100 | N22: 0.07
A23: Field Hockey | B23: 0 | C23: 0 | D23: 0 | E23: 0 | G23: 0 | I23: 0 | K23: 0 | M23: 0
A24: Golf | B24: 0 | C24: 0 | D24: 0 | E24: 0 | G24: 0 | I24: 0 | K24: 0 | M24: 0
A25: Gymnastics | B25: 0 | C25: 0 | D25: 0 | E25: 0 | G25: 0 | I25: 0 | K25: 0 | M25: 0
A26: Ice Hockey | B26: 0 | C26: 0 | D26: 0 | E26: 0 | G26: 0 | I26: 0 | K26: 0 | M26: 0
A27: Lacrosse | B27: 0 | C27: 0 | D27: 0 | E27: 0 | G27: 0 | I27: 0 | K27: 0 | M27: 0
A28: Soccer | B28: 5800 | C28: 6100 | D28: 5000 | E28: 6100 | G28: 6100 | I28: 6100 | K28: 6100 | M28: 6100
A29: Softball | B29: 9200 | C29: 9800 | D29: 8000 | E29: 9800 | G29: 9800 | I29: 9800 | K29: 9800 | M29: 9800
A30: Swimming | B30: 3600 | C30: 4000 | D30: 4000 | E30: 4000 | G30: 4000 | I30: 4000 | K30: 4000 | M30: 4000
A31: Tennis | B31: 280 | C31: 300 | D31: 300 | E31: 300 | G31: 300 | I31: 300 | K31: 300 | M31: 300
A32: Track and Field | B32: 1300 | C32: 1500 | D32: 1400 | E32: 1500 | G32: 1500 | I32: 1500 | K32: 1500 | M32: 1500
A33: Volleyball | B33: 9500 | C33: 15000 | D33: 9000 | E33: 15000 | G33: 15000 | I33: 15000 | K33: 15000 | M33: 15000
A34: Other | B34: 0 | C34: 0 | D34: 0 | E34: 0 | G34: 0 | I34: 0 | K34: 0 | M34: 0
A35: In-Kind Value of Transportation Services | B35: 400 | C35: 500 | D35: 400 | E35: 500 | G35: 500 | I35: 500 | K35: 500 | M35: 500
A37: Total Recruiting Expenses | B37: =SUM(B5:B35) -> 467880 | C37: 513885 | D37: 482100 | E37: 546100 | G37: 580500 | I37: 617300 | K37: 656800 | M37: 699000
A39: Total In-Kind Value of Transportation Services | B39: =B19+B35 -> 1400 | C39: 1700 | D39: 1400 | E39: 1700 | G39: 1700 | I39: 1700 | K39: 1700 | M39: 1700
A40: Total Recruiting Expenses less In-Kind Value* | B40: =B37-B39 -> 466480 | C40: 512185 | D40: 480700 | E40: 544400 | G40: 578800 | I40: 615600 | K40: 655100 | M40: 697300
A42: *Fills to Summary #2

Sheet Team Travel
B1: Team Travel
C2: Current Year | D2: Current Year
B3: Previous Year | C3: Budget | D3: Actual | E3: Year 1 | F3: Yr1 % | G3: Year 2 | H3: Yr2 % | I3: Year 3 | J3: Yr3 % | K3: Year 4 | L3: Yr4 % | M3: Year 5 | N3: Yr5 %
A5: Men's Sports
A6: Basketball | B6: 720000 | C6: 750000 | D6: 690000 | E6: =ROUND(C6+(C6*F6),-2) -> 900000 | F6: 0.2 | G6: 945000 | H6: 0.05 | I6: 992300 | J6: 0.05 | K6: 1041900 | L6: 0.05 | M6: 1094000 | N6: 0.05
A7: Baseball | B7: 92000 | C7: 100000 | D7: 88000 | E7: 105000 | F7: 0.05 | G7: 110300 | H7: 0.05 | I7: 115800 | J7: 0.05 | K7: 121600 | L7: 0.05 | M7: 127700 | N7: 0.05
A8: Football | B8: 1200000 | C8: 1280000 | D8: 1150000 | E8: 1344000 | F8: 0.05 | G8: 1411200 | H8: 0.05 | I8: 1481800 | J8: 0.05 | K8: 1555900 | L8: 0.05 | M8: 1633700 | N8: 0.05
A9: Gymnastics | B9: 0 | C9: 0 | D9: 0 | E9: 0 | G9: 0 | I9: 0 | K9: 0 | M9: 0
A10: Golf | B10: 9000 | C10: 10000 | D10: 8000 | E10: 10000 | G10: 10000 | I10: 10000 | K10: 10000 | M10: 10000
A11: Ice Hockey | B11: 0 | C11: 0 | D11: 0 | E11: 0 | G11: 0 | I11: 0 | K11: 0 | M11: 0
A12: Lacrosse | B12: 0 | C12: 0 | D12: 0 | E12: 0 | G12: 0 | I12: 0 | K12: 0 | M12: 0
A13: Soccer | B13: 8150 | C13: 15000 | D13: 8800 | E13: 15000 | G13: 15000 | I13: 15000 | K13: 15000 | M13: 15000
A14: Swimming | B14: 14525 | C14: 20000 | D14: 12900 | E14: 20000 | G14: 20000 | I14: 20000 | K14: 20000 | M14: 20000
A15: Tennis | B15: 0 | C15: 0 | D15: 0 | E15: 0 | G15: 0 | I15: 0 | K15: 0 | M15: 0
A16: Track and Field | B16: 0 | C16: 0 | D16: 0 | E16: 0 | G16: 0 | I16: 0 | K16: 0 | M16: 0
A17: Volleyball | B17: 0 | C17: 0 | D17: 0 | E17: 0 | G17: 0 | I17: 0 | K17: 0 | M17: 0
A18: Wrestling | B18: 0 | C18: 0 | D18: 0 | E18: 0 | G18: 0 | I18: 0 | K18: 0 | M18: 0
A19: Other | B19: 0 | C19: 0 | D19: 0 | E19: 0 | G19: 0 | I19: 0 | K19: 0 | M19: 0
A21: Total Travel Expenses-Men's Sports | B21: =SUM(B6:B20) -> 2043675 | C21: 2175000 | D21: 1957700 | E21: 2394000 | G21: 2511500 | I21: 2634900 | K21: 2764400 | M21: 2900400
A22: Women's Sports
A23: Basketball | B23: 290000 | C23: 300000 | D23: 280000 | E23: =ROUND(C23+(C23*F23),-2) -> 360000 | F23: 0.2 | G23: 378000 | H23: 0.05 | I23: 396900 | J23: 0.05 | K23: 416700 | L23: 0.05 | M23: 437500 | N23: 0.05
A24: Field Hockey | B24: 0 | C24: 0 | D24: 0 | E24: 0 | G24: 0 | I24: 0 | K24: 0 | M24: 0
A25: Golf | B25: 0 | C25: 0 | D25: 0 | E25: 0 | G25: 0 | I25: 0 | K25: 0 | M25: 0
A26: Gymnastics | B26: 0 | C26: 0 | D26: 0 | E26: 0 | G26: 0 | I26: 0 | K26: 0 | M26: 0
A27: Ice Hockey | B27: 0 | C27: 0 | D27: 0 | E27: 0 | G27: 0 | I27: 0 | K27: 0 | M27: 0
A28: Lacrosse | B28: 0 | C28: 0 | D28: 0 | E28: 0 | G28: 0 | I28: 0 | K28: 0 | M28: 0
A29: Soccer | B29: 12000 | C29: 15000 | D29: 8800 | E29: 15000 | G29: 15000 | I29: 15000 | K29: 15000 | M29: 15000
A30: Softball | B30: 9000 | C30: 10000 | D30: 9000 | E30: 10000 | G30: 10000 | I30: 10000 | K30: 10000 | M30: 10000
A31: Swimming | B31: 14525 | C31: 20000 | D31: 12900 | E31: 20000 | G31: 20000 | I31: 20000 | K31: 20000 | M31: 20000
A32: Tennis | B32: 3500 | C32: 5000 | D32: 2900 | E32: 5000 | G32: 5000 | I32: 5000 | K32: 5000 | M32: 5000
A33: Track and Field | B33: 12000 | C33: 15000 | D33: 9000 | E33: 15000 | G33: 15000 | I33: 15000 | K33: 15000 | M33: 15000
A34: Volleyball | B34: 9000 | C34: 10000 | D34: 8000 | E34: 10000 | G34: 10000 | I34: 10000 | K34: 10000 | M34: 10000
A35: Other | B35: 0 | C35: 0 | D35: 0 | E35: 0 | G35: 0 | I35: 0 | K35: 0 | M35: 0
A37: Total Travel Expenses-Women's Sports | B37: =SUM(B23:B36) -> 350025 | C37: 375000 | D37: 330600 | E37: 435000 | G37: 453000 | I37: 471900 | K37: 491700 | M37: 512500
A39: Total Men's and Women's Team Travel Expenses | B39: =B37+B21 -> 2393700 | C39: 2550000 | D39: 2288300 | E39: 2829000 | G39: 2964500 | I39: 3106800 | K39: 3256100 | M39: 3412900
A41: Total Men's and Women's Team Travel In-Kind Value | B41: 7300 | C41: 7550 | D41: 6900 | E41: =ROUND(C41+(C41*F41),-2) -> 7900 | F41: 0.05 | G41: 8300 | H41: 0.05 | I41: 8700 | J41: 0.05 | K41: 9100 | L41: 0.05 | M41: 9600 | N41: 0.05
A42: Total Men's and Women's Team Travel less In-Kind Value* | B42: =B39-B41 -> 2386400 | C42: 2542450 | D42: 2281400 | E42: 2821100 | G42: 2956200 | I42: 3098100 | K42: 3247000 | M42: 3403300
A44: *Fills to Summary #2

Sheet Equipment
B1: Equipment, Uniforms and Supplies
C2: Current Year | D2: Current Year
B3: Previous Year | C3: Budget | D3: Actual | E3: Year 1 | F3: Yr1 % | G3: Year 2 | H3: Yr2 % | I3: Year 3 | J3: Yr3 % | K3: Year 4 | L3: Yr4 % | M3: Year 5 | N3: Yr5 %
A5: Men's Sports
A6: Basketball | B6: 70000 | C6: 75000 | D6: 70000 | E6: =ROUND(C6+(C6*F6),-2) -> 77300 | F6: 0.03 | G6: 79600 | H6: 0.03 | I6: 82000 | J6: 0.03 | K6: 84500 | L6: 0.03 | M6: 87000 | N6: 0.03
A7: Baseball | B7: 32000 | C7: 35000 | D7: 32000 | E7: 36100 | F7: 0.03 | G7: 37200 | H7: 0.03 | I7: 38300 | J7: 0.03 | K7: 39400 | L7: 0.03 | M7: 40600 | N7: 0.03
A8: Football | B8: 190000 | C8: 200000 | D8: 190000 | E8: 206000 | F8: 0.03 | G8: 212200 | H8: 0.03 | I8: 218600 | J8: 0.03 | K8: 225200 | L8: 0.03 | M8: 232000 | N8: 0.03
A9: Gymnastics | B9: 0 | C9: 0 | D9: 0 | E9: 0 | G9: 0 | I9: 0 | K9: 0 | M9: 0
A10: Golf | B10: 11000 | C10: 12500 | D10: 12000 | E10: 12900 | F10: 0.03 | G10: 13300 | H10: 0.03 | I10: 13700 | J10: 0.03 | K10: 14100 | L10: 0.03 | M10: 14500 | N10: 0.03
A11: Ice Hockey | B11: 0 | C11: 0 | D11: 0 | E11: 0 | G11: 0 | I11: 0 | K11: 0 | M11: 0
A12: Lacrosse | B12: 0 | C12: 0 | D12: 0 | E12: 0 | G12: 0 | I12: 0 | K12: 0 | M12: 0
A13: Soccer | B13: 12000 | C13: 15000 | D13: 6500 | E13: 15500 | F13: 0.03 | G13: 16000 | H13: 0.03 | I13: 16500 | J13: 0.03 | K13: 17000 | L13: 0.03 | M13: 17500 | N13: 0.03
A14: Swimming | B14: 10000 | C14: 12000 | D14: 10000 | E14: 12400 | F14: 0.03 | G14: 12800 | H14: 0.03 | I14: 13200 | J14: 0.03 | K14: 13600 | L14: 0.03 | M14: 14000 | N14: 0.03
A15: Tennis | B15: 6000 | C15: 7000 | D15: 6000 | E15: 7200 | F15: 0.03 | G15: 7400 | H15: 0.03 | I15: 7600 | J15: 0.03 | K15: 7800 | L15: 0.03 | M15: 8000 | N15: 0.03
A16: Track and Field | B16: 0 | C16: 0 | D16: 0 | E16: 0 | G16: 0 | I16: 0 | K16: 0 | M16: 0
A17: Volleyball | B17: 0 | C17: 0 | D17: 0 | E17: 0 | G17: 0 | I17: 0 | K17: 0 | M17: 0
A18: Wrestling | B18: 0 | C18: 0 | D18: 0 | E18: 0 | G18: 0 | I18: 0 | K18: 0 | M18: 0
A19: In-Kind Value | B19: 45000 | C19: 50000 | D19: 48000 | E19: 51500 | F19: 0.03 | G19: 53000 | H19: 0.03 | I19: 54600 | J19: 0.03 | K19: 56200 | L19: 0.03 | M19: 57900 | N19: 0.03
A20: Other | B20: 0 | C20: 0 | D20: 0 | E20: 0 | G20: 0 | I20: 0 | K20: 0 | M20: 0
A22: Women's Sports
A23: Basketball | B23: 65000 | C23: 70000 | D23: 62000 | E23: =ROUND(C23+(C23*F23),-2) -> 72100 | F23: 0.03 | G23: 74300 | H23: 0.03 | I23: 76500 | J23: 0.03 | K23: 78800 | L23: 0.03 | M23: 81200 | N23: 0.03
A24: Field Hockey | B24: 0 | C24: 0 | D24: 0 | E24: 0 | G24: 0 | I24: 0 | K24: 0 | M24: 0
A25: Golf | B25: 0 | C25: 0 | D25: 0 | E25: 0 | G25: 0 | I25: 0 | K25: 0 | M25: 0
A26: Gymnastics | B26: 0 | C26: 0 | D26: 0 | E26: 0 | G26: 0 | I26: 0 | K26: 0 | M26: 0
A27: Ice Hockey | B27: 0 | C27: 0 | D27: 0 | E27: 0 | G27: 0 | I27: 0 | K27: 0 | M27: 0
A28: Lacrosse | B28: 0 | C28: 0 | D28: 0 | E28: 0 | G28: 0 | I28: 0 | K28: 0 | M28: 0
A29: Soccer | B29: 12000 | C29: 15000 | D29: 7000 | E29: 15500 | F29: 0.03 | G29: 16000 | H29: 0.03 | I29: 16500 | J29: 0.03 | K29: 17000 | L29: 0.03 | M29: 17500 | N29: 0.03
A30: Softball | B30: 32000 | C30: 35000 | D30: 21000 | E30: 36100 | F30: 0.03 | G30: 37200 | H30: 0.03 | I30: 38300 | J30: 0.03 | K30: 39400 | L30: 0.03 | M30: 40600 | N30: 0.03
A31: Swimming | B31: 10000 | C31: 12000 | D31: 7000 | E31: 12400 | F31: 0.03 | G31: 12800 | H31: 0.03 | I31: 13200 | J31: 0.03 | K31: 13600 | L31: 0.03 | M31: 14000 | N31: 0.03
A32: Tennis | B32: 6000 | C32: 7000 | D32: 6500 | E32: 7200 | F32: 0.03 | G32: 7400 | H32: 0.03 | I32: 7600 | J32: 0.03 | K32: 7800 | L32: 0.03 | M32: 8000 | N32: 0.03
A33: Track and Field | B33: 18000 | C33: 20000 | D33: 12000 | E33: 20600 | F33: 0.03 | G33: 21200 | H33: 0.03 | I33: 21800 | J33: 0.03 | K33: 22500 | L33: 0.03 | M33: 23200 | N33: 0.03
A34: Volleyball | B34: 38000 | C34: 40000 | D34: 35000 | E34: 41200 | F34: 0.03 | G34: 42400 | H34: 0.03 | I34: 43700 | J34: 0.03 | K34: 45000 | L34: 0.03 | M34: 46400 | N34: 0.03
A35: In-Kind Value | B35: 28000 | C35: 30000 | D35: 25000 | E35: 30900 | F35: 0.03 | G35: 31800 | H35: 0.03 | I35: 32800 | J35: 0.03 | K35: 33800 | L35: 0.03 | M35: 34800 | N35: 0.03
A36: Other | B36: 0 | C36: 0 | D36: 0 | E36: 0 | G36: 0 | I36: 0 | K36: 0 | M36: 0
A39: Total Equipment, Uniforms & Supplies | B39: =SUM(B6:B38)-B19 -> 540000 | C39: =SUM(C6:C38)-C19 -> 585500 | D39: =SUM(D6:D38)-D19 -> 502000 | E39: =SUM(E6:E38) -> 654900 | G39: =SUM(G6:G38) -> 674600 | I39: =SUM(I6:I38) -> 694900 | K39: =SUM(K6:K38) -> 715700 | M39: =SUM(M6:M38) -> 737200
A41: Total In-Kind Value | B41: =B19+B35 -> 73000 | C41: 80000 | D41: 73000 | E41: 82400 | G41: 84800 | I41: 87400 | K41: 90000 | M41: 92700
A43: Total Equipment less In-Kind Value* | B43: =B39-B41 -> 467000 | C43: 505500 | D43: 429000 | E43: 572500 | G43: 589800 | I43: 607500 | K43: 625700 | M43: 644500
A45: *Fills to Summary #2

Sheet Game Expenses
B1: Game Expenses
C2: Current Year | D2: Current Year
B3: Previous Year | C3: Budget | D3: Actual | E3: Year 1 | F3: Yr1 % | G3: Year 2 | H3: Yr2 % | I3: Year 3 | J3: Yr3 % | K3: Year 4 | L3: Yr4 % | M3: Year 5 | N3: Yr5 %
A5: Ambulance | B5: 22000 | C5: 25000 | D5: 23000 | E5: =ROUND(C5+(C5*F5),-2) -> 25800 | F5: 0.03 | G5: 26600 | H5: 0.03 | I5: 27400 | J5: 0.03 | K5: 28200 | L5: 0.03 | M5: 29000 | N5: 0.03
A6: Event Staff | B6: 325000 | C6: 350000 | D6: 342000 | E6: 360500 | F6: 0.03 | G6: 371300 | H6: 0.03 | I6: 382400 | J6: 0.03 | K6: 393900 | L6: 0.03 | M6: 405700 | N6: 0.03
A7: Security | B7: 62000 | C7: 65000 | D7: 62000 | E7: 67000 | F7: 0.03 | G7: 69000 | H7: 0.03 | I7: 71100 | J7: 0.03 | K7: 73200 | L7: 0.03 | M7: 75400 | N7: 0.03
A8: Officials (prefilled from next sheet) | B8: =SUM(Officials!B36) -> 256000 | C8: =SUM(Officials!C36) -> 297850 | D8: =SUM(Officials!D36) -> 234300 | E8: =SUM(Officials!E36) -> 283100 | G8: =SUM(Officials!G36) -> 316400 | I8: =SUM(Officials!I36) -> 353900 | K8: =SUM(Officials!K36) -> 396400 | M8: =SUM(Officials!M36) -> 444700
A10: Total Game Expenses | B10: =SUM(B5:B9) -> 665000 | C10: 737850 | D10: =SUM(D5:D9) -> 661300 | E10: 736400 | G10: 783300 | I10: 834800 | K10: 891700 | M10: 954800

Sheet Officials
B1: Officials
C2: Current Year | D2: Current Year
B3: Previous Year | C3: Budget | D3: Actual | E3: Year 1 | F3: Yr1 % | G3: Year 2 | H3: Yr2 % | I3: Year 3 | J3: Yr3 % | K3: Year 4 | L3: Yr4 % | M3: Year 5 | N3: Yr5 %
A5: Men's Sports
A6: Basketball | B6: 50000 | C6: 52000 | D6: 48000 | E6: =ROUND(C6+(C6*F6),-2) -> 49400 | F6: -0.05 | G6: 59300 | H6: 0.2 | I6: 71200 | J6: 0.2 | K6: 85400 | L6: 0.2 | M6: 102500 | N6: 0.2
A7: Baseball | B7: 6000 | C7: 7250 | D7: 7000 | E7: 6900 | F7: -0.05 | G7: 7600 | H7: 0.1 | I7: 8400 | J7: 0.1 | K7: 9200 | L7: 0.1 | M7: 10100 | N7: 0.1
A8: Football | B8: 120000 | C8: 125000 | D8: 100000 | E8: 118800 | F8: -0.05 | G8: 130700 | H8: 0.1 | I8: 143800 | J8: 0.1 | K8: 158200 | L8: 0.1 | M8: 174000 | N8: 0.1
A9: Gymnastics | B9: 0 | C9: 0 | D9: 0 | E9: 0 | G9: 0 | I9: 0 | K9: 0 | M9: 0
A10: Golf | B10: 3200 | C10: 4000 | D10: 2800 | E10: 3800 | F10: -0.05 | G10: 4200 | H10: 0.1 | I10: 4600 | J10: 0.1 | K10: 5100 | L10: 0.1 | M10: 5600 | N10: 0.1
A11: Ice Hockey | B11: 0 | C11: 0 | D11: 0 | E11: 0 | G11: 0 | I11: 0 | K11: 0 | M11: 0
A12: Lacrosse | B12: 0 | C12: 0 | D12: 0 | E12: 0 | G12: 0 | I12: 0 | K12: 0 | M12: 0
A13: Soccer | B13: 6000 | C13: 8800 | D13: 6200 | E13: 8400 | F13: -0.05 | G13: 9200 | H13: 0.1 | I13: 10100 | J13: 0.1 | K13: 11100 | L13: 0.1 | M13: 12200 | N13: 0.1
A14: Swimming | B14: 3200 | C14: 6000 | D14: 3000 | E14: 5700 | F14: -0.05 | G14: 6300 | H14: 0.1 | I14: 6900 | J14: 0.1 | K14: 7600 | L14: 0.1 | M14: 8400 | N14: 0.1
A15: Tennis | B15: 1800 | C15: 2000 | D15: 1500 | E15: 1900 | F15: -0.05 | G15: 2100 | H15: 0.1 | I15: 2300 | J15: 0.1 | K15: 2500 | L15: 0.1 | M15: 2800 | N15: 0.1
A16: Track and Field | B16: 0 | C16: 0 | D16: 0 | E16: 0 | G16: 0 | I16: 0 | K16: 0 | M16: 0
A17: Volleyball | B17: 0 | C17: 0 | D17: 0 | E17: 0 | G17: 0 | I17: 0 | K17: 0 | M17: 0
A18: Wrestling | B18: 0 | C18: 0 | D18: 0 | E18: 0 | G18: 0 | I18: 0 | K18: 0 | M18: 0
A19: Other | B19: 0 | C19: 0 | D19: 0 | E19: 0 | G19: 0 | I19: 0 | K19: 0 | M19: 0
A21: Women's Sports
A22: Basketball | B22: 48000 | C22: 52000 | D22: 46000 | E22: =ROUND(C22+(C22*F22),-2) -> 49400 | F22: -0.05 | G22: 54300 | H22: 0.1 | I22: 59700 | J22: 0.1 | K22: 65700 | L22: 0.1 | M22: 72300 | N22: 0.1
A23: Field Hockey | B23: 0 | C23: 0 | D23: 0 | E23: 0 | G23: 0 | I23: 0 | K23: 0 | M23: 0
A24: Golf | B24: 0 | C24: 0 | D24: 0 | E24: 0 | G24: 0 | I24: 0 | K24: 0 | M24: 0
A25: Gymnastics | B25: 0 | C25: 0 | D25: 0 | E25: 0 | G25: 0 | I25: 0 | K25: 0 | M25: 0
A26: Ice Hockey | B26: 0 | C26: 0 | D26: 0 | E26: 0 | G26: 0 | I26: 0 | K26: 0 | M26: 0
A27: Lacrosse | B27: 0 | C27: 0 | D27: 0 | E27: 0 | G27: 0 | I27: 0 | K27: 0 | M27: 0
A28: Soccer | B28: 6000 | C28: 8800 | D28: 7500 | E28: 8400 | F28: -0.05 | G28: 9200 | H28: 0.1 | I28: 10100 | J28: 0.1 | K28: 11100 | L28: 0.1 | M28: 12200 | N28: 0.1
A29: Softball | B29: 1800 | C29: 2200 | D29: 1800 | E29: 2100 | F29: -0.05 | G29: 2300 | H29: 0.1 | I29: 2500 | J29: 0.1 | K29: 2800 | L29: 0.1 | M29: 3100 | N29: 0.1
A30: Swimming | B30: 3200 | C30: 6000 | D30: 4000 | E30: 5700 | F30: -0.05 | G30: 6300 | H30: 0.1 | I30: 6900 | J30: 0.1 | K30: 7600 | L30: 0.1 | M30: 8400 | N30: 0.1
A31: Tennis | B31: 1800 | C31: 2000 | D31: 2000 | E31: 1900 | F31: -0.05 | G31: 2100 | H31: 0.1 | I31: 2300 | J31: 0.1 | K31: 2500 | L31: 0.1 | M31: 2800 | N31: 0.1
A32: Track and Field | B32: 1800 | C32: 1800 | D32: 1500 | E32: 1700 | F32: -0.05 | G32: 1900 | H32: 0.1 | I32: 2100 | J32: 0.1 | K32: 2300 | L32: 0.1 | M32: 2500 | N32: 0.1
A33: Volleyball | B33: 3200 | C33: 20000 | D33: 3000 | E33: 19000 | F33: -0.05 | G33: 20900 | H33: 0.1 | I33: 23000 | J33: 0.1 | K33: 25300 | L33: 0.1 | M33: 27800 | N33: 0.1
A34: Other | B34: 0 | C34: 0 | D34: 0 | E34: 0 | G34: 0 | I34: 0 | K34: 0 | M34: 0
A36: Total Official Fees | B36: =SUM(B6:B35) -> 256000 | C36: 297850 | D36: 234300 | E36: 283100 | G36: 316400 | I36: 353900 | K36: 396400 | M36: 444700

Sheet Medical Expenses
B1: Medical Expenses and Insurance
C2: Current Year | D2: Current Year
B3: Previous Year | C3: Budget | D3: Actual | E3: Year 1 | F3: Yr1 % | G3: Year 2 | H3: Yr2 % | I3: Year 3 | J3: Yr3 % | K3: Year 4 | L3: Yr4 % | M3: Year 5 | N3: Yr5 %
A5: Insurance claims collected | B5: 360000 | C5: 402000 | D5: 350000 | E5: =ROUND(C5+(C5*F5),-2) -> 442200 | F5: 0.1 | G5: 486400 | H5: 0.1 | I5: 535000 | J5: 0.1 | K5: 588500 | L5: 0.1 | M5: 647400 | N5: 0.1
A6: Other Medical Expenses | B6: 120000 | C6: 150000 | D6: 100000 | E6: 157500 | F6: 0.05 | G6: 165400 | H6: 0.05 | I6: 173700 | J6: 0.05 | K6: 182400 | L6: 0.05 | M6: 191500 | N6: 0.05
A9: Total Medical Expenses | B9: =SUM(B5:B8) -> 480000 | C9: 552000 | D9: =SUM(D5:D8) -> 450000 | E9: 599700 | G9: 651800 | I9: 708700 | K9: 770900 | M9: 838900

Sheet Guarantees-Exp
B1: Guarantees
C2: Current Year | D2: Current Year
B3: Previous Year | C3: Budget | D3: Actual | E3: Year 1 | F3: Yr1 % | G3: Year 2 | H3: Yr2 % | I3: Year 3 | J3: Yr3 % | K3: Year 4 | L3: Yr4 % | M3: Year 5 | N3: Yr5 %
A5: Football | B5: 210000 | C5: 240000 | D5: 230000 | E5: =ROUND(C5+(C5*F5),-2) -> 252000 | F5: 0.05 | G5: 264600 | H5: 0.05 | I5: 277800 | J5: 0.05 | K5: 283400 | L5: 0.02 | M5: 289100 | N5: 0.02
A6: Men's Basketball | B6: 65000 | C6: 70000 | D6: 65000 | E6: 73500 | F6: 0.05 | G6: 77200 | H6: 0.05 | I6: 81100 | J6: 0.05 | K6: 82700 | L6: 0.02 | M6: 84400 | N6: 0.02
A7: Women's Basketball | B7: 45000 | C7: 50000 | D7: 45000 | E7: 52500 | F7: 0.05 | G7: 55100 | H7: 0.05 | I7: 57900 | J7: 0.05 | K7: 59100 | L7: 0.02 | M7: 60300 | N7: 0.02
A8: Other | B8: 0 | C8: 0 | D8: 0 | E8: 0 | G8: 0 | I8: 0 | K8: 0 | M8: 0
A9: Other | B9: 0 | C9: 0 | D9: 0 | E9: 0 | G9: 0 | I9: 0 | K9: 0 | M9: 0
A10: Other | B10: 0 | C10: 0 | D10: 0 | E10: 0 | G10: 0 | I10: 0 | K10: 0 | M10: 0
A11: Other | B11: 0 | C11: 0 | D11: 0 | E11: 0 | G11: 0 | I11: 0 | K11: 0 | M11: 0
A14: Total Guarantees-Expenses | B14: =SUM(B5:B13) -> 320000 | C14: 360000 | D14: =SUM(D5:D13) -> 340000 | E14: 378000 | G14: 396900 | I14: 416800 | K14: 425200 | M14: 433800

Sheet Direct Facilities
B1: Direct Costs for Facilities, Maintenance, Rental, etc.
C2: Current Year | D2: Current Year
B3: Previous Year | C3: Budget | D3: Actual | E3: Year 1 | F3: Yr1 % | G3: Year 2 | H3: Yr2 % | I3: Year 3 | J3: Yr3 % | K3: Year 4 | L3: Yr4 % | M3: Year 5 | N3: Yr5 %
A5: Building & grounds maintenance | B5: 180000 | C5: 200000 | D5: 150000 | E5: =ROUND(C5+(C5*F5),-2) -> 202000 | F5: 0.01 | G5: 208100 | H5: 0.03 | I5: 214300 | J5: 0.03 | K5: 220700 | L5: 0.03 | M5: 227300 | N5: 0.03
A6: Direct debt service | B6: 400000 | C6: 425000 | D6: 330000 | E6: 595000 | F6: 0.4 | G6: 612900 | H6: 0.03 | I6: 631300 | J6: 0.03 | K6: 650200 | L6: 0.03 | M6: 669700 | N6: 0.03
A7: Equipment repair & maintenance | B7: 98000 | C7: 125000 | D7: 110000 | E7: 126300 | F7: 0.01 | G7: 130100 | H7: 0.03 | I7: 134000 | J7: 0.03 | K7: 138000 | L7: 0.03 | M7: 142100 | N7: 0.03
A8: Operating leases | B8: 10000 | C8: 10000 | D8: 8000 | E8: 10100 | F8: 0.01 | G8: 10400 | H8: 0.03 | I8: 10700 | J8: 0.03 | K8: 11000 | L8: 0.03 | M8: 11300 | N8: 0.03
A9: Rental fees | B9: 4800 | C9: 5000 | D9: 4000 | E9: 5100 | F9: 0.01 | G9: 5300 | H9: 0.03 | I9: 5500 | J9: 0.03 | K9: 5700 | L9: 0.03 | M9: 5900 | N9: 0.03
A10: Utilities | B10: 120000 | C10: 130000 | D10: 119000 | E10: 131300 | F10: 0.01 | G10: 135200 | H10: 0.03 | I10: 139300 | J10: 0.03 | K10: 143500 | L10: 0.03 | M10: 147800 | N10: 0.03
A11: Other | B11: 0 | C11: 0 | D11: 0 | E11: 0 | G11: 0 | I11: 0 | K11: 0 | M11: 0
A13: Total Facilities, Maintenance & Rental | B13: =SUM(B5:B12) -> 812800 | C13: 895000 | D13: =SUM(D5:D12) -> 721000 | E13: 1069800 | G13: 1102000 | I13: 1135100 | K13: 1169100 | M13: 1204100

Sheet Indirect Facilities
B1: Indirect Costs for Facilities and Administrative Support
C2: Current Year | D2: Current Year
B3: Previous Year | C3: Budget | D3: Actual | E3: Year 1 | F3: Yr1 % | G3: Year 2 | H3: Yr2 % | I3: Year 3 | J3: Yr3 % | K3: Year 4 | L3: Yr4 % | M3: Year 5 | N3: Yr5 %
A5: Administrative costs | B5: 0 | C5: 0 | D5: 0 | E5: =ROUND(C5+(C5*F5),-2) -> 0 | G5: 0 | I5: 0 | K5: 0 | M5: 0
A6: Facilities & maintenance | B6: 0 | C6: 0 | D6: 0 | E6: 0 | G6: 0 | I6: 0 | K6: 0 | M6: 0
A7: Grounds & field maintenance | B7: 0 | C7: 0 | D7: 0 | E7: 0 | G7: 0 | I7: 0 | K7: 0 | M7: 0
A8: Security | B8: 0 | C8: 0 | D8: 0 | E8: 0 | G8: 0 | I8: 0 | K8: 0 | M8: 0
A9: Risk management | B9: 0 | C9: 0 | D9: 0 | E9: 0 | G9: 0 | I9: 0 | K9: 0 | M9: 0
A10: Utilities | B10: 0 | C10: 0 | D10: 0 | E10: 0 | G10: 0 | I10: 0 | K10: 0 | M10: 0
A11: Depreciation | B11: 0 | C11: 0 | D11: 0 | E11: 0 | G11: 0 | I11: 0 | K11: 0 | M11: 0
A12: Indirect debt service | B12: 100000 | C12: 100000 | D12: 90000 | E12: 110000 | F12: 0.1 | G12: 165000 | H12: 0.5 | I12: 247500 | J12: 0.5 | K12: 371300 | L12: 0.5 | M12: 519800 | N12: 0.4
A15: Total Indirect Facilities & Admin. Support | B15: =SUM(B5:B14) -> 100000 | C15: 100000 | D15: =SUM(D5:D14) -> 90000 | E15: 110000 | G15: 165000 | I15: 247500 | K15: 371300 | M15: 519800

Sheet Fundraising
B1: Fundraising, Marketing & Promotion
C2: Current Year | D2: Current Year
B3: Previous Year | C3: Budget | D3: Actual | E3: Year 1 | F3: Yr1 % | G3: Year 2 | H3: Yr2 % | I3: Year 3 | J3: Yr3 % | K3: Year 4 | L3: Yr4 % | M3: Year 5 | N3: Yr5 %
A5: Fundraising | B5: 45000 | C5: 50000 | D5: 45000 | E5: =ROUND(C5+(C5*F5),-2) -> 55000 | F5: 0.1 | G5: 60500 | H5: 0.1 | I5: 66600 | J5: 0.1 | K5: 73300 | L5: 0.1 | M5: 80600 | N5: 0.1
A6: Marketing | B6: 93000 | C6: 125000 | D6: 90000 | E6: 131300 | F6: 0.05 | G6: 137900 | H6: 0.05 | I6: 144800 | J6: 0.05 | K6: 152000 | L6: 0.05 | M6: 159600 | N6: 0.05
A7: Promotion | B7: 20500 | C7: 30000 | D7: 18000 | E7: 31500 | F7: 0.05 | G7: 33100 | H7: 0.05 | I7: 34800 | J7: 0.05 | K7: 36500 | L7: 0.05 | M7: 38300 | N7: 0.05
A8: Other | B8: 0 | C8: 0 | D8: 0 | E8: 0 | G8: 0 | I8: 0 | K8: 0 | M8: 0
A9: Other | B9: 0 | C9: 0 | D9: 0 | E9: 0 | G9: 0 | I9: 0 | K9: 0 | M9: 0
A10: Other | B10: 0 | C10: 0 | D10: 0 | E10: 0 | G10: 0 | I10: 0 | K10: 0 | M10: 0
A12: Total Fundraising, Marketing & Promotion | B12: =SUM(B5:B11) -> 158500 | C12: 205000 | D12: =SUM(D5:D11) -> 153000 | E12: 217800 | G12: 231500 | I12: 246200 | K12: 261800 | M12: 278500

Sheet Sports Camp Exp.
B1: Sports Camp Expenses
C2: Current Year | D2: Current Year
B3: Previous Year | C3: Budget | D3: Actual | E3: Year 1 | F3: Yr1 % | G3: Year 2 | H3: Yr2 % | I3: Year 3 | J3: Yr3 % | K3: Year 4 | L3: Yr4 % | M3: Year 5 | N3: Yr5 %
A5: Expenses
A6: Men's-Boy's Sports
A7: Basketball | B7: 31000 | C7: 50000 | D7: 35000 | E7: =ROUND(C7+(C7*F7),-2) -> 52500 | F7: 0.05 | G7: 55100 | H7: 0.05 | I7: 57900 | J7: 0.05 | K7: 60800 | L7: 0.05 | M7: 63800 | N7: 0.05
A8: Baseball | B8: 34000 | C8: 35600 | D8: 30000 | E8: 37400 | F8: 0.05 | G8: 39300 | H8: 0.05 | I8: 41300 | J8: 0.05 | K8: 43400 | L8: 0.05 | M8: 45600 | N8: 0.05
A9: Football | B9: 70000 | C9: 75000 | D9: 65000 | E9: 78800 | F9: 0.05 | G9: 82700 | H9: 0.05 | I9: 86800 | J9: 0.05 | K9: 91100 | L9: 0.05 | M9: 95700 | N9: 0.05
A10: Gymnastics | B10: 0 | C10: 0 | D10: 0 | E10: 0 | G10: 0 | I10: 0 | K10: 0 | M10: 0
A11: Golf | B11: 0 | C11: 0 | D11: 0 | E11: 0 | G11: 0 | I11: 0 | K11: 0 | M11: 0
A12: Ice Hockey | B12: 0 | C12: 0 | D12: 0 | E12: 0 | G12: 0 | I12: 0 | K12: 0 | M12: 0
A13: Lacrosse | B13: 0 | C13: 0 | D13: 0 | E13: 0 | G13: 0 | I13: 0 | K13: 0 | M13: 0
A14: Soccer | B14: 9000 | C14: 9800 | D14: 9000 | E14: 10300 | F14: 0.05 | G14: 10800 | H14: 0.05 | I14: 11300 | J14: 0.05 | K14: 11900 | L14: 0.05 | M14: 12500 | N14: 0.05
A15: Swimming | B15: 5800 | C15: 6000 | D15: 6000 | E15: 6300 | F15: 0.05 | G15: 6600 | H15: 0.05 | I15: 6900 | J15: 0.05 | K15: 7200 | L15: 0.05 | M15: 7600 | N15: 0.05
A16: Tennis | B16: 0 | C16: 0 | D16: 0 | E16: 0 | G16: 0 | I16: 0 | K16: 0 | M16: 0
A17: Track and Field | B17: 0 | C17: 0 | D17: 0 | E17: 0 | G17: 0 | I17: 0 | K17: 0 | M17: 0
A18: Volleyball | B18: 0 | C18: 0 | D18: 0 | E18: 0 | G18: 0 | I18: 0 | K18: 0 | M18: 0
A19: Wrestling | B19: 0 | C19: 0 | D19: 0 | E19: 0 | G19: 0 | I19: 0 | K19: 0 | M19: 0
A20: Strength | E20: 0 | G20: =ROUND(E20+(E20*H20),-2) -> 0 | I20: =ROUND(G20+(G20*J20),-2) -> 0 | K20: =ROUND(I20+(I20*L20),-2) -> 0 | M20: =ROUND(K20+(K20*N20),-2) -> 0
A21: Other | B21: 0 | C21: 0 | D21: 0 | E21: 0 | G21: 0 | I21: 0 | K21: 0 | M21: 0
A23: Women's-Girls Sports
A24: Basketball | B24: 22000 | C24: 25000 | D24: 20000 | E24: =ROUND(C24+(C24*F24),-2) -> 26300 | F24: 0.05 | G24: 27600 | H24: 0.05 | I24: 29000 | J24: 0.05 | K24: 30500 | L24: 0.05 | M24: 32000 | N24: 0.05
A25: Field Hockey | B25: 0 | C25: 0 | D25: 0 | E25: 0 | G25: 0 | I25: 0 | K25: 0 | M25: 0
A26: Golf | B26: 0 | C26: 0 | D26: 0 | E26: 0 | G26: 0 | I26: 0 | K26: 0 | M26: 0
A27: Gymnastics | B27: 0 | C27: 0 | D27: 0 | E27: 0 | G27: 0 | I27: 0 | K27: 0 | M27: 0
A28: Ice Hockey | B28: 0 | C28: 0 | D28: 0 | E28: 0 | G28: 0 | I28: 0 | K28: 0 | M28: 0
A29: Lacrosse | B29: 0 | C29: 0 | D29: 0 | E29: 0 | G29: 0 | I29: 0 | K29: 0 | M29: 0
A30: Soccer | B30: 9100 | C30: 9800 | D30: 9000 | E30: 10300 | F30: 0.05 | G30: 10800 | H30: 0.05 | I30: 11300 | J30: 0.05 | K30: 11900 | L30: 0.05 | M30: 12500 | N30: 0.05
A31: Softball | B31: 11800 | C31: 12500 | D31: 12000 | E31: 13100 | F31: 0.05 | G31: 13800 | H31: 0.05 | I31: 14500 | J31: 0.05 | K31: 15200 | L31: 0.05 | M31: 16000 | N31: 0.05
A32: Swimming | B32: 3500 | C32: 6000 | D32: 5000 | E32: 6300 | F32: 0.05 | G32: 6600 | H32: 0.05 | I32: 6900 | J32: 0.05 | K32: 7200 | L32: 0.05 | M32: 7600 | N32: 0.05
A33: Tennis | B33: 0 | C33: 0 | D33: 0 | E33: 0 | G33: 0 | I33: 0 | K33: 0 | M33: 0
A34: Track and Field | B34: 0 | C34: 0 | D34: 0 | E34: 0 | G34: 0 | I34: 0 | K34: 0 | M34: 0
A35: Volleyball | B35: 0 | C35: 20000 | D35: 0 | E35: 21000 | F35: 0.05 | G35: 22100 | H35: 0.05 | I35: 23200 | J35: 0.05 | K35: 24400 | L35: 0.05 | M35: 25600 | N35: 0.05
A36: Cheerleading | E36: 0 | G36: =ROUND(E36+(E36*H36),-2) -> 0 | I36: 0 | K36: =ROUND(I36+(I36*L36),-2) -> 0 | M36: =ROUND(K36+(K36*N36),-2) -> 0
A37: Dance | E37: =ROUND(C37+(C37*F37),-2) -> 0 | G37: =ROUND(E37+(E37*H37),-2) -> 0 | I37: =ROUND(G37+(G37*J37),-2) -> 0 | K37: =ROUND(I37+(I37*L37),-2) -> 0 | M37: =ROUND(K37+(K37*N37),-2) -> 0
A38: Strength | E38: =ROUND(C38+(C38*F38),-2) -> 0 | G38: =ROUND(E38+(E38*H38),-2) -> 0 | I38: =ROUND(G38+(G38*J38),-2) -> 0 | K38: =ROUND(I38+(I38*L38),-2) -> 0 | M38: =ROUND(K38+(K38*N38),-2) -> 0
A39: Other | E39: =ROUND(C39+(C39*F39),-2) -> 0 | G39: =ROUND(E39+(E39*H39),-2) -> 0 | I39: =ROUND(G39+(G39*J39),-2) -> 0 | K39: =ROUND(I39+(I39*L39),-2) -> 0 | M39: =ROUND(K39+(K39*N39),-2) -> 0
A42: Total Sports Camp Expenses | B42: =SUM(B7:B41) -> 196200 | C42: 249700 | D42: =SUM(D7:D41) -> 191000 | E42: 262300 | G42: 275400 | I42: 289100 | K42: 303600 | M42: 318900

Sheet Spirit Groups
B1: Spirit Group Expenses
C2: Current Year | D2: Current Year
B3: Previous Year | C3: Budget | D3: Actual | E3: Year 1 | F3: Yr1 % | G3: Year 2 | H3: Yr2 % | I3: Year 3 | J3: Yr3 % | K3: Year 4 | L3: Yr4 % | M3: Year 5 | N3: Yr5 %
A5: Cheerleaders | B5: 5500 | C5: 6000 | D5: 5000 | E5: =ROUND(C5+(C5*F5),-2) -> 6300 | F5: 0.05 | G5: 6600 | H5: 0.05 | I5: 6900 | J5: 0.05 | K5: 7200 | L5: 0.05 | M5: 7600 | N5: 0.05
A6: Dance squad | B6: 2000 | C6: 3000 | D6: 2500 | E6: 3200 | F6: 0.05 | G6: 3400 | H6: 0.05 | I6: 3600 | J6: 0.05 | K6: 3800 | L6: 0.05 | M6: 4000 | N6: 0.05
A7: Band | B7: 10000 | C7: 12000 | D7: 8000 | E7: 12600 | F7: 0.05 | G7: 13200 | H7: 0.05 | I7: 13900 | J7: 0.05 | K7: 14600 | L7: 0.05 | M7: 15300 | N7: 0.05
A8: Mascot | B8: 800 | C8: 1000 | D8: 800 | E8: 1100 | F8: 0.05 | G8: 1200 | H8: 0.05 | I8: 1300 | J8: 0.05 | K8: 1400 | L8: 0.05 | M8: 1500 | N8: 0.05
A9: Other
A12: Total Spirit Group Expenses | B12: =SUM(B5:B11) -> 18300 | C12: 22000 | D12: =SUM(D5:D11) -> 16300 | E12: 23200 | G12: 24400 | I12: 25700 | K12: 27000 | M12: 28400

Sheet Memberships & Dues
B1: Memberships & Dues
C2: Current Year | D2: Current Year
B3: Previous Year | C3: Budget | D3: Actual | E3: Year 1 | F3: Yr1 % | G3: Year 2 | H3: Yr2 % | I3: Year 3 | J3: Yr3 % | K3: Year 4 | L3: Yr4 % | M3: Year 5 | N3: Yr5 %
A4: Association dues
A5: Men's Sports
A6: Basketball | B6: 11000 | C6: 12850 | D6: 12000 | E6: =ROUND(C6+(C6*F6),-2) -> 13700 | F6: 0.07 | G6: 14700 | H6: 0.07 | I6: 15700 | J6: 0.07 | K6: 16800 | L6: 0.07 | M6: 18000 | N6: 0.07
A7: Baseball | B7: 6000 | C7: 9000 | D7: 8000 | E7: 9500 | F7: 0.05 | G7: 10000 | H7: 0.05 | I7: 10500 | J7: 0.05 | K7: 11000 | L7: 0.05 | M7: 11600 | N7: 0.05
A8: Football | B8: 60000 | C8: 82450 | D8: 80000 | E8: 86600 | F8: 0.05 | G8: 90900 | H8: 0.05 | I8: 95400 | J8: 0.05 | K8: 100200 | L8: 0.05 | M8: 105200 | N8: 0.05
A9: Gymnastics | B9: 0 | C9: 0 | D9: 0 | E9: 0 | G9: 0 | I9: 0 | K9: 0 | M9: 0
A10: Golf | B10: 3200 | C10: 3300 | D10: 3100 | E10: 3300 | G10: 3300 | I10: 3300 | K10: 3300 | M10: 3300
A11: Ice Hockey | B11: 0 | C11: 0 | D11: 0 | E11: 0 | G11: 0 | I11: 0 | K11: 0 | M11: 0
A12: Lacrosse | B12: 0 | C12: 0 | D12: 0 | E12: 0 | G12: 0 | I12: 0 | K12: 0 | M12: 0
A13: Soccer | B13: 6000 | C13: 6800 | D13: 6500 | E13: 6800 | G13: 6800 | I13: 6800 | K13: 6800 | M13: 6800
A14: Swimming | B14: 3200 | C14: 3700 | D14: 3200 | E14: 3700 | G14: 3700 | I14: 3700 | K14: 3700 | M14: 3700
A15: Tennis | B15: 1800 | C15: 2000 | D15: 1500 | E15: 2000 | G15: 2000 | I15: 2000 | K15: 2000 | M15: 2000
A16: Track and Field | B16: 0 | C16: 0 | D16: 0 | E16: 0 | G16: 0 | I16: 0 | K16: 0 | M16: 0
A17: Volleyball | B17: 0 | C17: 0 | D17: 0 | E17: 0 | G17: 0 | I17: 0 | K17: 0 | M17: 0
A18: Wrestling | B18: 0 | C18: 0 | D18: 0 | E18: 0 | G18: 0 | I18: 0 | K18: 0 | M18: 0
A19: Other | B19: 0 | C19: 0 | D19: 0 | E19: 0 | G19: 0 | I19: 0 | K19: 0 | M19: 0
A20: Association dues
A21: Women's Sports
A22: Basketball | B22: 6000 | C22: 7000 | D22: 7200 | E22: =ROUND(C22+(C22*F22),-2) -> 7500 | F22: 0.07 | G22: 8000 | H22: 0.07 | I22: 8600 | J22: 0.07 | K22: 9200 | L22: 0.07 | M22: 9800 | N22: 0.07
A23: Field Hockey | B23: 0 | C23: 0 | D23: 0 | E23: 0 | G23: 0 | I23: 0 | K23: 0 | M23: 0
A24: Golf | B24: 0 | C24: 0 | D24: 0 | E24: 0 | G24: 0 | I24: 0 | K24: 0 | M24: 0
A25: Gymnastics | B25: 0 | C25: 0 | D25: 0 | E25: 0 | G25: 0 | I25: 0 | K25: 0 | M25: 0
A26: Ice Hockey | B26: 0 | C26: 0 | D26: 0 | E26: 0 | G26: 0 | I26: 0 | K26: 0 | M26: 0
A27: Lacrosse | B27: 0 | C27: 0 | D27: 0 | E27: 0 | G27: 0 | I27: 0 | K27: 0 | M27: 0
A28: Soccer | B28: 6000 | C28: 8800 | D28: 8000 | E28: 9200 | F28: 0.05 | G28: 9700 | H28: 0.05 | I28: 10200 | J28: 0.05 | K28: 10700 | L28: 0.05 | M28: 11200 | N28: 0.05
A29: Softball | B29: 1800 | C29: 2250 | D29: 2000 | E29: 2300 | G29: 2300 | I29: 2300 | K29: 2300 | M29: 2300
A30: Swimming | B30: 3200 | C30: 6000 | D30: 5000 | E30: 6000 | G30: 6000 | I30: 6000 | K30: 6000 | M30: 6000
A31: Tennis | B31: 1800 | C31: 2000 | D31: 2100 | E31: 2000 | G31: 2000 | I31: 2000 | K31: 2000 | M31: 2000
A32: Track and Field | B32: 1800 | C32: 1800 | D32: 1900 | E32: 1800 | G32: 1800 | I32: 1800 | K32: 1800 | M32: 1800
A33: Volleyball | B33: 3200 | C33: 3400 | D33: 3000 | E33: 3400 | G33: 3400 | I33: 3400 | K33: 3400 | M33: 3400
A34: Other | B34: 0 | C34: 0 | D34: 0 | E34: 0 | G34: 0 | I34: 0 | K34: 0 | M34: 0
A36: Conferences | B36: 5000 | C36: 6000 | D36: 5000 | E36: =ROUND(C36+(C36*F36),-2) -> 6000 | G36: 6000 | I36: 6000 | K36: 6000 | M36: 6000
A37: Memberships | B37: 650 | C37: 700 | D37: 600 | E37: 700 | G37: 700 | I37: 700 | K37: 700 | M37: 700
A40: Total Memberships & Dues | B40: =SUM(B6:B39) -> 120650 | C40: 158050 | D40: =SUM(D6:D39) -> 149100 | E40: 164500 | G40: 171300 | I40: 178400 | K40: 185900 | M40: 193800

Sheet Other Expenses
B1: Other Expenses
C2: Current Year | D2: Current Year
B3: Previous Year | C3: Budget | D3: Actual | E3: Year 1 | F3: Yr1 % | G3: Year 2 | H3: Yr2 % | I3: Year 3 | J3: Yr3 % | K3: Year 4 | L3: Yr4 % | M3: Year 5 | N3: Yr5 %
A5: Other | B5: 0 | C5: 0 | D5: 0 | E5: =ROUND(C5+(C5*F5),-2) -> 0 | G5: 0 | I5: 0 | K5: 0 | M5: 0
A6: Other | B6: 0 | C6: 0 | D6: 0 | E6: 0 | G6: 0 | I6: 0 | K6: 0 | M6: 0
A7: Other | B7: 0 | C7: 0 | D7: 0 | E7: 0 | G7: 0 | I7: 0 | K7: 0 | M7: 0
A8: Other | B8: 0 | C8: 0 | D8: 0 | E8: 0 | G8: 0 | I8: 0 | K8: 0 | M8: 0
A11: Total Other Expenses | B11: =SUM(B5:B10) -> 0 | C11: 0 | D11: 0 | E11: 0 | G11: 0 | I11: 0 | K11: 0 | M11: 0

Sheet Rev.vs. Exp

Sheet Graphs

Sheet Empty Sheet
B1: Empty Sheet
D2: Current Year | E2: Current Year | F2: Projected
B3: Previous Year | C3: Previous Year | D3: Budget | E3: Actual | F3: Year End | G3: Year 1 | H3: Year 2 | I3: Year 3 | J3: Year 4 | K3: Year 5
